Workbook

Sheet PBMT scores
X1: P | Y1: B/M | Z1: T
A2: CAS RN | B2: CAS correct? | C2: SCORES explained <0.33 not P/M/B/T 0.33-0.5 P/M/B/(T) >0.5 vP/vM/vB, T Name | D2: Source | F2: PMT(HH)-score (equal weight) | G2: PBT(HH)-score (equal weight) | I2: T-score (HH) average | J2: T-score (HH) min | K2: T-score (HH) max | M2: P(MT)-score | N2: P(BT)-score | O2: M-score | P2: B-score | Q2: T-score (ECO) | S2: PMT(HH)-score (weight as given) | T2: PBT(HH)-score (weight as given) | W2: weight: | X2: 0.2 | Y2: 0.6 | Z2: 0.2
A3: 57-74-9 | B3: TRUE | C3: chloordaan | D3: RIWA | F3: =M3^(1/3)*O3^(1/3)*I3^(1/3) -> 0.38 | G3: =N3^(1/3)*P3^(1/3)*I3^(1/3) -> 0.83 | I3: 0.61 | J3: 0.61 | K3: 0.61 | M3: 1.00 | N3: 1.00 | O3: 0.09 | P3: 0.95 | S3: =M3^($X$2)*O3^($Y$2)*I3^($Z$2) -> 0.21 | T3: =N3^($X$2)*P3^($Y$2)*I3^($Z$2) -> 0.88
A4: 5103-71-9 | B4: TRUE | C4: cis-chloordaan | D4: RIWA | F4: =M4^(1/3)*O4^(1/3)*I4^(1/3) -> 0.38 | G4: =N4^(1/3)*P4^(1/3)*I4^(1/3) -> 0.83 | I4: 0.61 | J4: 0.61 | K4: 0.61 | M4: 1.00 | N4: 1.00 | O4: 0.09 | P4: 0.95 | S4: =M4^($X$2)*O4^($Y$2)*I4^($Z$2) -> 0.21 | T4: =N4^($X$2)*P4^($Y$2)*I4^($Z$2) -> 0.88
A5: 5103-74-2 | B5: TRUE | C5: trans-chloordaan | D5: RIWA | F5: 0.38 | G5: 0.83 | I5: 0.61 | J5: 0.61 | K5: 0.61 | M5: 1.00 | N5: 1.00 | O5: 0.09 | P5: 0.95 | S5: 0.21 | T5: 0.88
A6: 2385-85-5 | B6: TRUE | C6: mirex | D6: RIWA | F6: 0.33 | G6: 0.83 | I6: 0.61 | J6: 0.61 | K6: 0.61 | M6: 1.00 | N6: 1.00 | O6: 0.06 | P6: 0.94 | S6: 0.17 | T6: 0.87
A7: 309-00-2 | B7: TRUE | C7: aldrin | D7: RIWA | F7: 0.36 | G7: 0.83 | I7: 0.61 | J7: 0.61 | K7: 0.61 | M7: 0.99 | N7: 1.00 | O7: 0.07 | P7: 0.94 | S7: 0.19 | T7: 0.87
A8: 465-73-6 | B8: TRUE | C8: isodrin | D8: RIWA | F8: 0.36 | G8: 0.83 | I8: 0.61 | J8: 0.61 | K8: 0.61 | M8: 0.99 | N8: 1.00 | O8: 0.07 | P8: 0.94 | S8: 0.19 | T8: 0.87
A9: 76-44-8 | B9: TRUE | C9: heptachloor | D9: RIWA | F9: 0.43 | G9: 0.83 | I9: 0.61 | J9: 0.61 | K9: 0.61 | M9: 1.00 | N9: 0.99 | O9: 0.13 | P9: 0.93 | S9: 0.27 | T9: 0.87
A10: 789-02-6 | B10: TRUE | C10: o,p'-DDT | D10: RIWA | F10: 0.29 | G10: 0.73 | I10: 0.42 | J10: 0.42 | K10: 0.42 | M10: 0.98 | N10: 0.99 | O10: 0.06 | P10: 0.94 | S10: 0.16 | T10: 0.81
A11: 50-29-3 | B11: TRUE | C11: p,p'-DDT | D11: RIWA | F11: 0.34 | G11: 0.85 | I11: 0.66 | J11: 0.66 | K11: 0.66 | M11: 0.98 | N11: 0.99 | O11: 0.06 | P11: 0.94 | S11: 0.17 | T11: 0.88
A12: 2991-50-6 | B12: TRUE | C12: perfluoroctaansulfonylamide(N-ethyl)acetaat | D12: RIWA | F12: 0.43 | G12: 0.67 | I12: 0.33 | J12: 0.33 | K12: 0.33 | M12: 1.00 | N12: 1.00 | O12: 0.23 | P12: 0.91 | S12: 0.34 | T12: 0.76
A13: 72-20-8 | B13: TRUE | C13: endrin | D13: RIWA | F13: 0.57 | G13: 0.90 | I13: 0.80 | J13: 0.80 | K13: 0.80 | M13: 1.00 | N13: 1.00 | O13: 0.23 | P13: 0.92 | S13: 0.40 | T13: 0.91
A14: 60-57-1 | B14: TRUE | C14: dieldrin | D14: RIWA | F14: 0.57 | G14: 0.90 | I14: 0.80 | J14: 0.80 | K14: 0.80 | M14: 1.00 | N14: 1.00 | O14: 0.23 | P14: 0.92 | S14: 0.40 | T14: 0.91
A15: 335-77-3 | B15: TRUE | C15: perfluordecaansulfonzuur (PFDS) | D15: RIWA | F15: 0.47 | G15: 0.79 | I15: 0.55 | J15: 0.55 | K15: 0.55 | M15: 1.00 | N15: 1.00 | O15: 0.18 | P15: 0.88 | S15: 0.32 | T15: 0.82
A16: 1024-57-3 | B16: TRUE | C16: cis-heptachloorepoxide | D16: RIWA | F16: 0.58 | G16: 0.88 | I16: 0.80 | J16: 0.80 | K16: 0.80 | M16: 1.00 | N16: 1.00 | O16: 0.25 | P16: 0.87 | S16: 0.42 | T16: 0.88
A17: 1763-23-1 | B17: TRUE | C17: perfluoroctaansulfonaat (PFOS) | D17: RIWA | F17: =M17^(1/3)*O17^(1/3)*I17^(1/3) -> 0.53 | G17: 0.79 | I17: 0.55 | J17: 0.55 | K17: 0.55 | M17: 1.00 | N17: 1.00 | O17: 0.27 | P17: 0.87 | S17: 0.41 | T17: 0.82
A18: 115-32-2 | B18: TRUE | C18: dicofol | D18: RIWA | F18: 0.56 | G18: 0.81 | I18: 0.62 | J18: 0.62 | K18: 0.62 | M18: 0.99 | N18: 0.99 | O18: 0.29 | P18: 0.86 | S18: 0.43 | T18: 0.83
A19: 754-91-6 | B19: TRUE | C19: perfluoroctaansulfonamide (PFOSA) | D19: RIWA | F19: 0.44 | G19: 0.74 | I19: 0.49 | J19: 0.49 | K19: 0.49 | M19: 1.00 | N19: 1.00 | O19: 0.17 | P19: 0.84 | S19: 0.30 | T19: 0.78
A20: 34598-33-9 | B20: TRUE | C20: 2H,2H,3H,3H-perfluorundecanoaat (OTS) | D20: RIWA | F20: 0.50 | G20: 0.77 | I20: 0.54 | J20: 0.54 | K20: 0.54 | M20: 1.00 | N20: 1.00 | O20: 0.23 | P20: 0.86 | S20: 0.37 | T20: 0.81
A21: 375-95-1 | B21: TRUE | C21: perfluornonaanzuur (PFNA) | D21: RIWA | F21: 0.57 | G21: 0.82 | I21: 0.61 | J21: 0.61 | K21: 0.61 | M21: 1.00 | N21: 0.99 | O21: 0.31 | P21: 0.91 | S21: 0.44 | T21: 0.85
A22: 72-55-9 | B22: TRUE | C22: p,p'-DDE | D22: RIWA | F22: 0.35 | G22: 0.84 | I22: 0.64 | J22: 0.64 | K22: 0.64 | M22: 0.87 | N22: 0.95 | O22: 0.07 | P22: 0.96 | S22: 0.19 | T22: 0.88
A23: 72-54-8 | B23: TRUE | C23: p,p'-DDD | D23: RIWA | F23: 0.40 | G23: 0.88 | I23: 0.77 | J23: 0.72 | K23: 0.81 | M23: 0.90 | N23: 0.96 | O23: 0.10 | P23: 0.92 | S23: 0.23 | T23: 0.90
A24: 3424-82-6 | B24: TRUE | C24: o,p'-DDE | D24: RIWA | F24: 0.30 | G24: 0.67 | I24: 0.33 | J24: 0.33 | K24: 0.33 | M24: 0.87 | N24: 0.94 | O24: 0.10 | P24: 0.95 | S24: 0.19 | T24: 0.77
A25: 118-74-1 | B25: TRUE | C25: hexachloorbenzeen (HCB) | D25: RIWA | F25: 0.49 | G25: 0.83 | I25: 0.70 | J25: 0.70 | K25: 0.70 | M25: 0.96 | N25: 0.97 | O25: 0.17 | P25: 0.85 | S25: 0.32 | T25: 0.84
A26: 53-19-0 | B26: TRUE | C26: o,p'-DDD | D26: RIWA | F26: 0.38 | G26: 0.81 | I26: 0.61 | J26: 0.53 | K26: 0.69 | M26: 0.90 | N26: 0.95 | O26: 0.10 | P26: 0.92 | S26: 0.23 | T26: 0.85
A27: 335-76-2 | B27: TRUE | C27: perfluordecaanzuur (PFDA) | D27: RIWA | F27: 0.54 | G27: 0.80 | I27: 0.61 | J27: 0.61 | K27: 0.61 | M27: 1.00 | N27: 1.00 | O27: 0.25 | P27: 0.84 | S27: 0.40 | T27: 0.82
A28: 297-78-9 | B28: TRUE | C28: telodrine | D28: RIWA | F28: 0.60 | G28: 0.83 | I28: 0.74 | J28: 0.74 | K28: 0.74 | M28: 1.00 | N28: 1.00 | O28: 0.28 | P28: 0.79 | S28: 0.44 | T28: 0.81
A29: 86479-06-3 | B29: TRUE | C29: hexaflumuron | D29: RIWA | F29: 0.42 | G29: 0.63 | I29: 0.33 | J29: 0.33 | K29: 0.33 | M29: 1.00 | N29: 1.00 | O29: 0.22 | P29: 0.77 | S29: 0.32 | T29: 0.69
A30: 31251-03-3 | B30: TRUE | C30: fluotrimazool | D30: RIWA | F30: 0.45 | G30: 0.78 | I30: 0.56 | J30: 0.56 | K30: 0.56 | M30: 0.89 | N30: 0.96 | O30: 0.18 | P30: 0.88 | S30: 0.31 | T30: 0.82
A31: 72-43-5 | B31: TRUE | C31: methoxychloor | D31: RIWA | F31: 0.50 | G31: 0.78 | I31: 0.61 | J31: 0.61 | K31: 0.61 | M31: 0.93 | N31: 0.95 | O31: 0.22 | P31: 0.82 | S31: 0.36 | T31: 0.80
A32: 375-92-8 | B32: TRUE | C32: perfluorheptaansulfonaat (PFHpS) | D32: RIWA | F32: 0.57 | G32: 0.75 | I32: 0.55 | J32: 0.55 | K32: 0.55 | M32: 1.00 | N32: 0.99 | O32: 0.33 | P32: 0.76 | S32: 0.45 | T32: 0.75
A33: 335-67-1 | B33: TRUE | C33: perfluoroctaanzuur (PFOA) | D33: RIWA | F33: 0.60 | G33: 0.80 | I33: 0.61 | J33: 0.61 | K33: 0.61 | M33: 0.99 | N33: 0.98 | O33: 0.36 | P33: 0.87 | S33: 0.49 | T33: 0.83
A34: 608-93-5 | B34: TRUE | C34: pentachloorbenzeen | D34: RIWA | F34: 0.50 | G34: 0.78 | I34: 0.66 | J34: 0.66 | K34: 0.66 | M34: 0.91 | N34: 0.92 | O34: 0.21 | P34: 0.78 | S34: 0.35 | T34: 0.78
A35: 39108-34-4 | B35: TRUE | C35: 1H,1H,2H,2H-perfluordecaansulfonzuur (8:2 FTS) | D35: RIWA | F35: 0.56 | G35: 0.76 | I35: 0.56 | J35: 0.56 | K35: 0.56 | M35: 1.00 | N35: 1.00 | O35: 0.31 | P35: 0.78 | S35: 0.44 | T35: 0.77
A36: 26644-46-2 | B36: TRUE | C36: triforine | D36: RIWA | F36: 0.62 | G36: 0.11 | I36: 0.42 | J36: 0.42 | K36: 0.42 | M36: 1.00 | N36: 1.00 | O36: 0.58 | P36: 0.00 | S36: 0.61 | T36: 0.03
A37: 19666-30-9 | B37: TRUE | C37: oxadiazon | D37: RIWA | F37: 0.42 | G37: 0.62 | I37: 0.33 | J37: 0.33 | K37: 0.33 | M37: 0.86 | N37: 0.89 | O37: 0.26 | P37: 0.81 | S37: 0.34 | T37: 0.69
A38: 96489-71-3 | B38: TRUE | C38: pyridaben | D38: RIWA | F38: 0.43 | G38: 0.78 | I38: 0.61 | J38: 0.53 | K38: 0.69 | M38: 0.85 | N38: 0.95 | O38: 0.16 | P38: 0.81 | S38: 0.29 | T38: 0.79
A39: 105024-66-6 | B39: TRUE | C39: silafluofen | D39: RIWA | F39: 0.35 | G39: 0.78 | I39: 0.63 | J39: 0.56 | K39: 0.70 | M39: 0.88 | N39: 0.98 | O39: 0.08 | P39: 0.77 | S39: 0.19 | T39: 0.78
A40: 4824-78-6 | B40: TRUE | C40: bromofos-ethyl | D40: RIWA | F40: 0.45 | G40: 0.82 | I40: 0.68 | J40: 0.56 | K40: 0.80 | M40: 0.78 | N40: 0.93 | O40: 0.18 | P40: 0.87 | S40: 0.31 | T40: 0.84
A41: 7012-37-5 | B41: TRUE | C41: 2,4,4'-trichloorbifenyl (PCB 28) | D41: RIWA | F41: 0.45 | G41: 0.79 | I41: 0.68 | J41: 0.68 | K41: 0.68 | M41: 0.73 | N41: 0.79 | O41: 0.18 | P41: 0.93 | S41: 0.31 | T41: 0.85
A42: 58-89-9 | B42: TRUE | C42: gamma-hexachloorcyclohexaan (gamma-HCH) | D42: RIWA | F42: 0.54 | G42: 0.75 | I42: 0.66 | J42: 0.66 | K42: 0.66 | M42: 0.93 | N42: 0.91 | O42: 0.25 | P42: 0.71 | S42: 0.39 | T42: 0.73
A43: 319-84-6 | B43: TRUE | C43: alfa-hexachloorcyclohexaan (alfa-HCH) | D43: RIWA | F43: 0.54 | G43: 0.75 | I43: 0.66 | J43: 0.66 | K43: 0.66 | M43: 0.93 | N43: 0.91 | O43: 0.25 | P43: 0.71 | S43: 0.39 | T43: 0.73
A44: 319-85-7 | B44: TRUE | C44: bèta-hexachloorcyclohexaan (bèta-HCH) | D44: RIWA | F44: 0.54 | G44: 0.75 | I44: 0.66 | J44: 0.66 | K44: 0.66 | M44: 0.93 | N44: 0.91 | O44: 0.25 | P44: 0.71 | S44: 0.39 | T44: 0.73
A45: 319-86-8 | B45: TRUE | C45: delta-hexachloorcyclohexaan (delta-HCH) | D45: RIWA | F45: 0.54 | G45: 0.75 | I45: 0.66 | J45: 0.66 | K45: 0.66 | M45: 0.93 | N45: 0.91 | O45: 0.25 | P45: 0.71 | S45: 0.39 | T45: 0.73
A46: 608-73-1 | B46: TRUE | C46: hexachloorcyclohexaan (5 isomeren) | D46: RIWA | F46: 0.54 | G46: 0.75 | I46: 0.66 | J46: 0.66 | K46: 0.66 | M46: 0.93 | N46: 0.91 | O46: 0.25 | P46: 0.71 | S46: 0.39 | T46: 0.73
A47: 327-98-0 | B47: TRUE | C47: trichloronaat | D47: RIWA | F47: 0.43 | G47: 0.66 | I47: 0.44 | J47: 0.33 | K47: 0.56 | M47: 0.82 | N47: 0.80 | O47: 0.21 | P47: 0.79 | S47: 0.32 | T47: 0.71
A48: 2058-94-8 | B48: TRUE | C48: perfluorundecaanzuur (PFUnA) | D48: RIWA | F48: 0.50 | G48: 0.71 | I48: 0.61 | J48: 0.61 | K48: 0.61 | M48: 1.00 | N48: 1.00 | O48: 0.21 | P48: 0.58 | S48: 0.35 | T48: 0.65
A49: 67747-09-5 | B49: TRUE | C49: prochloraz | D49: RIWA | F49: 0.50 | G49: 0.70 | I49: 0.56 | J49: 0.56 | K49: 0.56 | M49: 0.89 | N49: 0.88 | O49: 0.26 | P49: 0.70 | S49: 0.39 | T49: 0.70
A50: 82-68-8 | B50: TRUE | C50: pentachloornitrobenzeen (quintoceen) | D50: RIWA | F50: 0.49 | G50: 0.70 | I50: 0.58 | J50: 0.58 | K50: 0.58 | M50: 0.96 | N50: 0.96 | O50: 0.22 | P50: 0.62 | S50: 0.35 | T50: 0.67
A51: 83164-33-4 | B51: TRUE | C51: diflufenican | D51: RIWA | F51: 0.43 | G51: 0.57 | I51: 0.33 | J51: 0.33 | K51: 0.33 | M51: 1.00 | N51: 1.00 | O51: 0.25 | P51: 0.57 | S51: 0.35 | T51: 0.57
A52: 68085-85-8 | B52: TRUE | C52: cyhalothrine | D52: RIWA | F52: 0.39 | G52: 0.69 | I52: 0.61 | J52: 0.53 | K52: 0.69 | M52: 0.96 | N52: 0.99 | O52: 0.10 | P52: 0.55 | S52: 0.22 | T52: 0.63
A53: 1031-07-8 | B53: TRUE | C53: endosulfansulfaat | D53: RIWA | F53: 0.58 | G53: 0.68 | I53: 0.61 | J53: 0.61 | K53: 0.61 | M53: 1.00 | N53: 0.99 | O53: 0.32 | P53: 0.51 | S53: 0.45 | T53: 0.61
A54: 153233-91-1 | B54: TRUE | C54: etoxazool | D54: RIWA | F54: 0.34 | G54: 0.56 | I54: 0.33 | J54: 0.33 | K54: 0.33 | M54: 0.96 | N54: 0.99 | O54: 0.12 | P54: 0.54 | S54: 0.22 | T54: 0.55
A55: 2104-96-3 | B55: TRUE | C55: bromofos-methyl | D55: RIWA | F55: 0.49 | G55: 0.70 | I55: 0.68 | J55: 0.56 | K55: 0.80 | M55: 0.74 | N55: 0.65 | O55: 0.23 | P55: 0.79 | S55: 0.36 | T55: 0.74
A56: 355-46-4 | B56: TRUE | C56: perfluorhexaansulfonaat (PFHxS) | D56: RIWA | F56: 0.60 | G56: 0.66 | I56: 0.55 | J56: 0.55 | K56: 0.55 | M56: 0.99 | N56: 0.99 | O56: 0.39 | P56: 0.53 | S56: 0.50 | T56: 0.61
A57: 299-84-3 | B57: TRUE | C57: fenchloorfos | D57: RIWA | F57: 0.49 | G57: 0.70 | I57: 0.68 | J57: 0.56 | K57: 0.80 | M57: 0.72 | N57: 0.64 | O57: 0.24 | P57: 0.78 | S57: 0.37 | T57: 0.73
A58: 116-29-0 | B58: TRUE | C58: tetradifon | D58: RIWA | F58: 0.51 | G58: 0.68 | I58: 0.61 | J58: 0.61 | K58: 0.61 | M58: 0.92 | N58: 0.93 | O58: 0.24 | P58: 0.55 | S58: 0.38 | T58: 0.62
A59: 85509-19-9 | B59: TRUE | C59: flusilazool | D59: RIWA | F59: 0.62 | G59: 0.75 | I59: 0.81 | J59: 0.81 | K59: 0.81 | M59: 0.89 | N59: 0.86 | O59: 0.33 | P59: 0.60 | S59: 0.48 | T59: 0.68
A60: 83657-24-3 | B60: TRUE | C60: diniconazool | D60: RIWA | F60: 0.53 | G60: 0.70 | I60: 0.61 | J60: 0.61 | K60: 0.61 | M60: 0.73 | N60: 0.76 | O60: 0.34 | P60: 0.74 | S60: 0.44 | T60: 0.72
A61: 124495-18-7 | B61: TRUE | C61: quinoxyfen | D61: RIWA | F61: 0.52 | G61: 0.68 | I61: 0.61 | J61: 0.61 | K61: 0.61 | M61: 0.90 | N61: 0.92 | O61: 0.25 | P61: 0.55 | S61: 0.39 | T61: 0.62
A62: 60238-56-4 | B62: TRUE | C62: chloorthiofos | D62: RIWA | F62: 0.45 | G62: 0.81 | I62: 0.72 | J62: 0.61 | K62: 0.83 | M62: 0.63 | N62: 0.90 | O62: 0.20 | P62: 0.82 | S62: 0.32 | T62: 0.81
A63: 39807-15-3 | B63: TRUE | C63: oxadiargyl | D63: RIWA | F63: 0.45 | G63: 0.55 | I63: 0.33 | J63: 0.33 | K63: 0.33 | M63: 0.86 | N63: 0.85 | O63: 0.32 | P63: 0.59 | S63: 0.40 | T63: 0.57
A64: 959-98-8 | B64: TRUE | C64: alfa-endosulfan | D64: RIWA | F64: 0.57 | G64: 0.66 | I64: 0.61 | J64: 0.61 | K64: 0.61 | M64: 1.00 | N64: 0.99 | O64: 0.30 | P64: 0.48 | S64: 0.44 | T64: 0.58
A65: 33213-65-9 | B65: TRUE | C65: bèta-endosulfan | D65: RIWA | F65: 0.57 | G65: 0.66 | I65: 0.61 | J65: 0.61 | K65: 0.61 | M65: 1.00 | N65: 0.99 | O65: 0.30 | P65: 0.48 | S65: 0.44 | T65: 0.58
A66: 115-29-7 | B66: TRUE | C66: endosulfan (3 isomeren) | D66: RIWA | F66: 0.57 | G66: 0.66 | I66: 0.61 | J66: 0.61 | K66: 0.61 | M66: 1.00 | N66: 0.99 | O66: 0.30 | P66: 0.48 | S66: 0.44 | T66: 0.58
A67: 86598-92-7 | B67: TRUE | C67: imibenconazool | D67: RIWA | F67: 0.49 | G67: 0.67 | I67: 0.61 | J67: 0.61 | K67: 0.61 | M67: 0.89 | N67: 0.92 | O67: 0.21 | P67: 0.55 | S67: 0.35 | T67: 0.62
A68: 2921-88-2 | B68: TRUE | C68: chloorpyrifos-ethyl | D68: RIWA | F68: =M68^(1/3)*O68^(1/3)*I68^(1/3) -> 0.50 | G68: =N68^(1/3)*P68^(1/3)*I68^(1/3) -> 0.69 | I68: 0.68 | J68: 0.56 | K68: 0.80 | M68: 0.87 | N68: 0.87 | O68: 0.21 | P68: 0.56 | S68: =M68^($X$2)*O68^($Y$2)*I68^($Z$2) -> 0.35 | T68: =N68^($X$2)*P68^($Y$2)*I68^($Z$2) -> 0.64
A69: 218-01-9 | B69: TRUE | C69: chryseen | D69: RIWA | F69: 0.43 | G69: 0.81 | I69: 0.92 | J69: 0.89 | K69: 0.94 | M69: 0.80 | N69: 0.93 | O69: 0.11 | P69: 0.63 | S69: 0.25 | T69: 0.74
A70: 56-55-3 | B70: TRUE | C70: benzo(a)antraceen | D70: RIWA | F70: 0.44 | G70: 0.82 | I70: 0.96 | J70: 0.94 | K70: 0.97 | M70: 0.80 | N70: 0.91 | O70: 0.11 | P70: 0.63 | S70: 0.25 | T70: 0.74
A71: 87-68-3 | B71: TRUE | C71: hexachloorbutadieen | D71: RIWA | F71: 0.49 | G71: 0.67 | I71: 0.68 | J71: 0.61 | K71: 0.74 | M71: 0.92 | N71: 0.94 | O71: 0.18 | P71: 0.48 | S71: 0.33 | T71: 0.59
A72: 120068-37-3 | B72: TRUE | C72: fipronil | D72: RIWA | F72: 0.53 | G72: 0.67 | I72: 0.74 | J72: 0.69 | K72: 0.79 | M72: 1.00 | N72: 1.00 | O72: 0.20 | P72: 0.40 | S72: 0.36 | T72: 0.54
A73: 731-27-1 | B73: TRUE | C73: tolylfluanide | D73: RIWA | F73: 0.52 | G73: 0.64 | I73: 0.56 | J73: 0.56 | K73: 0.56 | M73: 0.84 | N73: 0.83 | O73: 0.31 | P73: 0.58 | S73: 0.42 | T73: 0.62
A74: 207-08-9 | B74: TRUE | C74: benzo(k)fluorantheen | D74: RIWA | F74: 0.39 | G74: 0.76 | I74: 0.79 | J74: 0.75 | K74: 0.83 | M74: 0.82 | N74: 0.96 | O74: 0.09 | P74: 0.58 | S74: 0.22 | T74: 0.68
A75: 634-66-2 | B75: TRUE | C75: 1,2,3,4-tetrachloorbenzeen | D75: RIWA | F75: 0.50 | G75: 0.70 | I75: 0.65 | J75: 0.65 | K75: 0.65 | M75: 0.80 | N75: 0.82 | O75: 0.25 | P75: 0.64 | S75: 0.38 | T75: 0.67
A76: 66246-88-6 | B76: TRUE | C76: penconazool | D76: RIWA | F76: 0.45 | G76: 0.67 | I76: 0.56 | J76: 0.56 | K76: 0.56 | M76: 0.68 | N76: 0.74 | O76: 0.25 | P76: 0.73 | S76: 0.36 | T76: 0.69
A77: 95-94-3 | B77: TRUE | C77: 1,2,4,5-tetrachloorbenzeen | D77: RIWA | F77: 0.51 | G77: 0.70 | I77: 0.67 | J77: 0.67 | K77: 0.67 | M77: 0.80 | N77: 0.82 | O77: 0.24 | P77: 0.63 | S77: 0.38 | T77: 0.67
A78: 103055-07-8 | B78: TRUE | C78: lufenuron | D78: RIWA | F78: 0.47 | G78: 0.54 | I78: 0.42 | J78: 0.42 | K78: 0.42 | M78: 1.00 | N78: 1.00 | O78: 0.25 | P78: 0.38 | S78: 0.37 | T78: 0.47
A79: 205-99-2 | B79: TRUE | C79: benzo(b)fluorantheen | D79: RIWA | F79: 0.42 | G79: 0.75 | I79: 0.79 | J79: 0.75 | K79: 0.83 | M79: 0.82 | N79: 0.95 | O79: 0.11 | P79: 0.57 | S79: 0.24 | T79: 0.67
A80: 168316-95-8 | B80: TRUE | C80: spinosad | D80: RIWA | F80: 0.43 | G80: 0.52 | I80: 0.33 | J80: 0.33 | K80: 0.33 | M80: 0.96 | N80: 0.98 | O80: 0.25 | P80: 0.42 | S80: 0.35 | T80: 0.48
A81: 116714-46-6 | B81: TRUE | C81: novaluron | D81: RIWA | F81: 0.47 | G81: 0.54 | I81: 0.42 | J81: 0.42 | K81: 0.42 | M81: 1.00 | N81: 1.00 | O81: 0.26 | P81: 0.37 | S81: 0.37 | T81: 0.46
A82: 375-85-9 | B82: TRUE | C82: perfluorheptaanzuur (PFHpA) | D82: RIWA | F82: 0.63 | G82: 0.74 | I82: 0.61 | J82: 0.61 | K82: 0.61 | M82: 0.98 | N82: 0.95 | O82: 0.42 | P82: 0.71 | S82: 0.54 | T82: 0.73
A83: 87-86-5 | B83: TRUE | C83: pentachloorfenol | D83: RIWA | F83: 0.48 | G83: 0.65 | I83: 0.65 | J83: 0.65 | K83: 0.65 | M83: 0.90 | N83: 0.94 | O83: 0.19 | P83: 0.46 | S83: 0.33 | T83: 0.56
A84: 206-44-0 | B84: TRUE | C84: fluorantheen | D84: RIWA | F84: 0.45 | G84: 0.73 | I84: 0.79 | J84: 0.75 | K84: 0.83 | M84: 0.76 | N84: 0.83 | O84: 0.15 | P84: 0.60 | S84: 0.29 | T84: 0.68
A85: 118134-30-8 | B85: TRUE | C85: spiroxamine | D85: RIWA | F85: 0.40 | G85: 0.55 | I85: 0.33 | J85: 0.33 | K85: 0.33 | M85: 0.82 | N85: 0.94 | O85: 0.23 | P85: 0.53 | S85: 0.32 | T85: 0.54
A86: 112281-77-3 | B86: TRUE | C86: tetraconazool | D86: RIWA | F86: 0.56 | G86: 0.61 | I86: 0.56 | J86: 0.56 | K86: 0.56 | M86: 0.89 | N86: 0.86 | O86: 0.35 | P86: 0.47 | S86: 0.47 | T86: 0.55
A87: 18181-80-1 | B87: TRUE | C87: broompropylaat | D87: RIWA | F87: 0.45 | G87: 0.59 | I87: 0.42 | J87: 0.42 | K87: 0.42 | M87: 0.79 | N87: 0.92 | O87: 0.27 | P87: 0.54 | S87: 0.36 | T87: 0.57
A88: 54910-89-3 | B88: TRUE | C88: fluoxetine | D88: RIWA | F88: 0.51 | G88: 0.63 | I88: 0.56 | J88: 0.56 | K88: 0.56 | M88: 0.74 | N88: 0.75 | O88: 0.33 | P88: 0.60 | S88: 0.43 | T88: 0.62
A89: 125116-23-6 | B89: TRUE | C89: metconazool | D89: RIWA | F89: 0.58 | G89: 0.62 | I89: 0.61 | J89: 0.61 | K89: 0.61 | M89: 0.85 | N89: 0.83 | O89: 0.38 | P89: 0.48 | S89: 0.49 | T89: 0.56
A90: 60168-88-9 | B90: TRUE | C90: fenarimol | D90: RIWA | F90: 0.46 | G90: 0.51 | I90: 0.33 | J90: 0.33 | K90: 0.33 | M90: 0.82 | N90: 0.79 | O90: 0.35 | P90: 0.51 | S90: 0.41 | T90: 0.51
A91: 101463-69-8 | B91: TRUE | C91: flufenoxuron | D91: RIWA | F91: 0.44 | G91: 0.51 | I91: 0.44 | J91: 0.33 | K91: 0.56 | M91: 1.00 | N91: 1.00 | O91: 0.20 | P91: 0.30 | S91: 0.32 | T91: 0.41
A92: 51596-10-2 | B92: TRUE | C92: milbemectine | D92: RIWA | F92: 0.47 | G92: 0.54 | I92: 0.33 | J92: 0.33 | K92: 0.33 | M92: 0.80 | N92: 0.92 | O92: 0.38 | P92: 0.50 | S92: 0.43 | T92: 0.52
A93: 162320-67-4 | B93: TRUE | C93: diflovidazin | D93: RIWA | F93: 0.52 | G93: 0.52 | I93: 0.42 | J93: 0.42 | K93: 0.42 | M93: 0.93 | N93: 0.90 | O93: 0.36 | P93: 0.38 | S93: 0.45 | T93: 0.46
A94: 5598-13-0 | B94: TRUE | C94: chloorpyrifos-methyl | D94: RIWA | F94: 0.53 | G94: 0.63 | I94: 0.68 | J94: 0.56 | K94: 0.80 | M94: 0.84 | N94: 0.78 | O94: 0.26 | P94: 0.47 | S94: 0.39 | T94: 0.56
A95: 112410-23-8 | B95: TRUE | C95: tebufenozide | D95: RIWA | F95: 0.59 | G95: 0.68 | I95: 0.74 | J95: 0.69 | K95: 0.79 | M95: 0.74 | N95: 0.77 | O95: 0.37 | P95: 0.56 | S95: 0.48 | T95: 0.63
A96: 60207-90-1 | B96: TRUE | C96: propiconazool | D96: RIWA | F96: 0.55 | G96: 0.60 | I96: 0.56 | J96: 0.56 | K96: 0.56 | M96: 0.84 | N96: 0.83 | O96: 0.35 | P96: 0.46 | S96: 0.46 | T96: 0.54
A97: 52645-53-1 | B97: TRUE | C97: permethrin | D97: RIWA | F97: 0.38 | G97: 0.59 | I97: 0.44 | J97: 0.33 | K97: 0.56 | M97: 0.80 | N97: 0.96 | O97: 0.15 | P97: 0.48 | S97: 0.26 | T97: 0.54
A98: 1582-09-8 | B98: TRUE | C98: trifluraline | D98: RIWA | F98: 0.51 | G98: 0.62 | I98: 0.79 | J98: 0.79 | K98: 0.79 | M98: 0.96 | N98: 0.95 | O98: 0.17 | P98: 0.32 | S98: 0.33 | T98: 0.48
A99: 119446-68-3 | B99: TRUE | C99: difenoconazool | D99: RIWA | F99: 0.55 | G99: 0.59 | I99: 0.63 | J99: 0.56 | K99: 0.70 | M99: 0.91 | N99: 0.92 | O99: 0.30 | P99: 0.36 | S99: 0.43 | T99: 0.48
A100: 97-17-6 | B100: TRUE | C100: dichlofenthion | D100: RIWA | F100: 0.45 | G100: 0.58 | I100: 0.68 | J100: 0.56 | K100: 0.80 | M100: 0.55 | N100: 0.39 | O100: 0.24 | P100: 0.76 | S100: 0.35 | T100: 0.65
A101: 52315-07-8 | B101: TRUE | C101: cypermethrine | D101: RIWA | F101: 0.38 | G101: 0.62 | I101: 0.63 | J101: 0.56 | K101: 0.70 | M101: 0.87 | N101: 0.97 | O101: 0.10 | P101: 0.39 | S101: 0.22 | T101: 0.52
A102: 53-70-3 | B102: TRUE | C102: dibenzo(a,h)antraceen | D102: RIWA | F102: 0.39 | G102: 0.72 | I102: 0.96 | J102: 0.94 | K102: 0.97 | M102: 0.85 | N102: 0.97 | O102: 0.07 | P102: 0.41 | S102: 0.20 | T102: 0.57
A103: 307-55-1 | B103: TRUE | C103: perfluordodecaanzuur (PFDoA) | D103: RIWA | F103: 0.47 | G103: 0.52 | I103: 0.61 | J103: 0.61 | K103: 0.61 | M103: 1.00 | N103: 1.00 | O103: 0.17 | P103: 0.23 | S103: 0.31 | T103: 0.38
A104: 113036-88-7 | B104: TRUE | C104: flucycloxuron | D104: RIWA | F104: 0.40 | G104: 0.47 | I104: 0.42 | J104: 0.42 | K104: 0.42 | M104: 0.98 | N104: 0.99 | O104: 0.15 | P104: 0.25 | S104: 0.27 | T104: 0.37
A105: 67-72-1 | B105: TRUE | C105: hexachloorethaan | D105: RIWA | F105: 0.47 | G105: 0.46 | I105: 0.42 | J105: 0.42 | K105: 0.42 | M105: 0.97 | N105: 0.98 | O105: 0.25 | P105: 0.23 | S105: 0.36 | T105: 0.35
A106: 634-90-2 | B106: TRUE | C106: 1,2,3,5-tetrachloorbenzeen | D106: RIWA | F106: 0.51 | G106: 0.66 | I106: 0.65 | J106: 0.65 | K106: 0.65 | M106: 0.80 | N106: 0.78 | O106: 0.25 | P106: 0.57 | S106: 0.38 | T106: 0.62
A107: 58-90-2 | B107: TRUE | C107: 2,3,4,6-tetrachloorfenol | D107: RIWA | F107: 0.50 | G107: 0.62 | I107: 0.68 | J107: 0.68 | K107: 0.68 | M107: 0.78 | N107: 0.78 | O107: 0.24 | P107: 0.46 | S107: 0.37 | T107: 0.55
A108: 80-07-9 | B108: TRUE | C108: bis(4-chloorfenyl)sulfon | D108: RIWA | F108: 0.50 | G108: 0.63 | I108: 0.62 | J108: 0.62 | K108: 0.62 | M108: 0.62 | N108: 0.64 | O108: 0.32 | P108: 0.62 | S108: 0.42 | T108: 0.62
A109: 79622-59-6 | B109: TRUE | C109: fluazinam | D109: RIWA | F109: 0.51 | G109: 0.48 | I109: 0.56 | J109: 0.56 | K109: 0.56 | M109: 1.00 | N109: 1.00 | O109: 0.23 | P109: 0.20 | S109: 0.37 | T109: 0.34
A110: 106325-08-0 | B110: TRUE | C110: epoxiconazool | D110: RIWA | F110: 0.66 | G110: 0.63 | I110: 0.88 | J110: 0.85 | K110: 0.90 | M110: 0.90 | N110: 0.86 | O110: 0.36 | P110: 0.32 | S110: 0.52 | T110: 0.48
A111: 88283-41-4 | B111: TRUE | C111: pyrifenox | D111: RIWA | F111: 0.52 | G111: 0.56 | I111: 0.56 | J111: 0.56 | K111: 0.56 | M111: 0.82 | N111: 0.79 | O111: 0.31 | P111: 0.40 | S111: 0.42 | T111: 0.49
A112: 67564-91-4 | B112: TRUE | C112: fenpropimorf | D112: RIWA | F112: 0.40 | G112: 0.49 | I112: 0.33 | J112: 0.33 | K112: 0.33 | M112: 0.75 | N112: 0.77 | O112: 0.26 | P112: 0.47 | S112: 0.34 | T112: 0.48
A113: 80844-07-1 | B113: TRUE | C113: etofenprox | D113: RIWA | F113: 0.34 | G113: 0.60 | I113: 0.44 | J113: 0.33 | K113: 0.56 | M113: 0.70 | N113: 0.96 | O113: 0.12 | P113: 0.51 | S113: 0.22 | T113: 0.56
A114: 66332-96-5 | B114: TRUE | C114: flutolanil | D114: RIWA | F114: 0.46 | G114: 0.47 | I114: 0.33 | J114: 0.33 | K114: 0.33 | M114: 0.82 | N114: 0.79 | O114: 0.37 | P114: 0.40 | S114: 0.42 | T114: 0.44
A115: 17090-79-8 | B115: TRUE | C115: monensin | D115: RIWA | F115: 0.55 | G115: 0.44 | I115: 0.33 | J115: 0.33 | K115: 0.33 | M115: 0.94 | N115: 0.97 | O115: 0.54 | P115: 0.26 | S115: 0.54 | T115: 0.35
A116: 57-83-0 | B116: TRUE | C116: progesteron | D116: RIWA | F116: 0.52 | G116: 0.64 | I116: 0.74 | J116: 0.69 | K116: 0.79 | M116: 0.71 | N116: 0.71 | O116: 0.27 | P116: 0.50 | S116: 0.40 | T116: 0.58
A117: 4901-51-3 | B117: TRUE | C117: 2,3,4,5-tetrachloorfenol | D117: RIWA | F117: 0.50 | G117: 0.60 | I117: 0.65 | J117: 0.65 | K117: 0.65 | M117: 0.78 | N117: 0.80 | O117: 0.25 | P117: 0.42 | S117: 0.38 | T117: 0.52
A118: 104030-54-8 | B118: TRUE | C118: carpropamide | D118: RIWA | F118: 0.49 | G118: 0.46 | I118: 0.42 | J118: 0.42 | K118: 0.42 | M118: 0.95 | N118: 0.95 | O118: 0.30 | P118: 0.24 | S118: 0.40 | T118: 0.36
A119: 1085-98-9 | B119: TRUE | C119: dichlofluanide | D119: RIWA | F119: 0.44 | G119: 0.48 | I119: 0.33 | J119: 0.33 | K119: 0.33 | M119: 0.78 | N119: 0.75 | O119: 0.32 | P119: 0.43 | S119: 0.39 | T119: 0.46
A120: 520-85-4 | B120: TRUE | C120: medroxyprogesteron | D120: RIWA | F120: 0.61 | G120: 0.59 | I120: 0.74 | J120: 0.69 | K120: 0.79 | M120: 0.86 | N120: 0.82 | O120: 0.36 | P120: 0.35 | S120: 0.49 | T120: 0.48
A121: 22248-79-9 | B121: TRUE | C121: tetrachloorvinfos | D121: RIWA | F121: 0.65 | G121: 0.62 | I121: 0.86 | J121: 0.86 | K121: 0.86 | M121: 0.86 | N121: 0.84 | O121: 0.37 | P121: 0.33 | S121: 0.52 | T121: 0.48
A122: 57018-04-9 | B122: TRUE | C122: tolclofos-methyl | D122: RIWA | F122: 0.48 | G122: 0.58 | I122: 0.68 | J122: 0.56 | K122: 0.80 | M122: 0.59 | N122: 0.46 | O122: 0.28 | P122: 0.64 | S122: 0.39 | T122: 0.60
A123: 142459-58-3 | B123: TRUE | C123: flufenacet | D123: RIWA | F123: 0.50 | G123: 0.45 | I123: 0.42 | J123: 0.42 | K123: 0.42 | M123: 0.96 | N123: 0.92 | O123: 0.32 | P123: 0.23 | S123: 0.42 | T123: 0.34
A124: 470-90-6 | B124: TRUE | C124: chloorfenvinfos | D124: RIWA | F124: 0.62 | G124: 0.65 | I124: 0.86 | J124: 0.86 | K124: 0.86 | M124: 0.75 | N124: 0.74 | O124: 0.36 | P124: 0.44 | S124: 0.50 | T124: 0.56
A125: 101-05-3 | B125: TRUE | C125: anilazine | D125: RIWA | F125: 0.50 | G125: 0.46 | I125: 0.42 | J125: 0.42 | K125: 0.42 | M125: 0.92 | N125: 0.91 | O125: 0.33 | P125: 0.26 | S125: 0.42 | T125: 0.37
A126: 64628-44-0 | B126: TRUE | C126: triflumuron | D126: RIWA | F126: 0.47 | G126: 0.47 | I126: 0.42 | J126: 0.42 | K126: 0.42 | M126: 0.90 | N126: 0.92 | O126: 0.27 | P126: 0.26 | S126: 0.37 | T126: 0.37
A127: 2303-17-5 | B127: TRUE | C127: triallaat | D127: RIWA | F127: 0.56 | G127: 0.62 | I127: 0.81 | J127: 0.78 | K127: 0.85 | M127: 0.76 | N127: 0.69 | O127: 0.28 | P127: 0.43 | S127: 0.43 | T127: 0.54
A128: 69806-40-2 | B128: TRUE | C128: haloxyfop-methyl | D128: RIWA | F128: 0.54 | G128: 0.50 | I128: 0.61 | J128: 0.61 | K128: 0.61 | M128: 0.94 | N128: 0.94 | O128: 0.28 | P128: 0.22 | S128: 0.41 | T128: 0.36
A129: 79-94-7 | B129: TRUE | C129: tetrabroombisfenol A | D129: RIWA | F129: 0.37 | G129: 0.47 | I129: 0.56 | J129: 0.56 | K129: 0.56 | M129: 0.96 | N129: 0.99 | O129: 0.10 | P129: 0.19 | S129: 0.22 | T129: 0.33
A130: 69409-94-5 | B130: TRUE | C130: fluvalinaat | D130: RIWA | F130: 0.38 | G130: 0.45 | I130: 0.51 | J130: 0.42 | K130: 0.61 | M130: 0.97 | N130: 0.99 | O130: 0.11 | P130: 0.18 | S130: 0.23 | T130: 0.31
A131: 50-32-8 | B131: TRUE | C131: benzo(a)pyreen | D131: RIWA | F131: 0.42 | G131: 0.67 | I131: 0.96 | J131: 0.94 | K131: 0.97 | M131: 0.82 | N131: 0.96 | O131: 0.09 | P131: 0.33 | S131: 0.23 | T131: 0.51
A132: 38083-17-9 | B132: TRUE | C132: climbazool | D132: RIWA | F132: =M132^(1/3)*O132^(1/3)*I132^(1/3) -> 0.47 | G132: =N132^(1/3)*P132^(1/3)*I132^(1/3) -> 0.58 | I132: 0.61 | J132: 0.61 | K132: 0.61 | M132: 0.70 | N132: 0.69 | O132: 0.24 | P132: 0.47 | S132: =M132^($X$2)*O132^($Y$2)*I132^($Z$2) -> 0.36 | T132: =N132^($X$2)*P132^($Y$2)*I132^($Z$2) -> 0.54
A133: 2706-91-4 | B133: TRUE | C133: perfluorpentaansulfonaat (PFPeS) | D133: RIWA | F133: 0.69 | G133: 0.56 | I133: 0.77 | J133: 0.77 | K133: 0.77 | M133: 0.97 | N133: 0.95 | O133: 0.45 | P133: 0.24 | S133: 0.58 | T133: 0.40
A134: 935-95-5 | B134: TRUE | C134: 2,3,5,6-tetrachloorfenol | D134: RIWA | F134: 0.52 | G134: 0.58 | I134: 0.66 | J134: 0.66 | K134: 0.66 | M134: 0.78 | N134: 0.78 | O134: 0.28 | P134: 0.37 | S134: 0.41 | T134: 0.48
A135: 35367-38-5 | B135: TRUE | C135: diflubenzuron | D135: RIWA | F135: 0.52 | G135: 0.43 | I135: 0.42 | J135: 0.42 | K135: 0.42 | M135: 0.94 | N135: 0.92 | O135: 0.36 | P135: 0.20 | S135: 0.45 | T135: 0.31
A136: 192-97-2 | B136: TRUE | C136: benzo(e)pyreen | D136: RIWA | F136: 0.39 | G136: 0.66 | I136: 0.96 | J136: 0.94 | K136: 0.97 | M136: 0.82 | N136: 0.97 | O136: 0.08 | P136: 0.31 | S136: 0.20 | T136: 0.49
A137: 193-39-5 | B137: TRUE | C137: indeno(1,2,3-cd)pyreen | D137: RIWA | F137: 0.35 | G137: 0.60 | I137: 0.79 | J137: 0.75 | K137: 0.83 | M137: 0.85 | N137: 0.97 | O137: 0.07 | P137: 0.28 | S137: 0.18 | T137: 0.44
A138: 79983-71-4 | B138: TRUE | C138: hexaconazool | D138: RIWA | F138: 0.56 | G138: 0.64 | I138: 0.78 | J138: 0.78 | K138: 0.78 | M138: 0.60 | N138: 0.63 | O138: 0.37 | P138: 0.54 | S138: 0.48 | T138: 0.60
A139: 74738-17-3 | B139: TRUE | C139: fenpiclonil | D139: RIWA | F139: 0.45 | G139: 0.57 | I139: 0.56 | J139: 0.56 | K139: 0.56 | M139: 0.60 | N139: 0.62 | O139: 0.27 | P139: 0.54 | S139: 0.36 | T139: 0.56
A140: 114369-43-6 | B140: TRUE | C140: fenbuconazool | D140: RIWA | F140: 0.53 | G140: 0.55 | I140: 0.61 | J140: 0.61 | K140: 0.61 | M140: 0.79 | N140: 0.73 | O140: 0.31 | P140: 0.37 | S140: 0.43 | T140: 0.47
A141: 71422-67-8 | B141: TRUE | C141: chloorfluazuron | D141: RIWA | F141: 0.39 | G141: 0.34 | I141: 0.33 | J141: 0.33 | K141: 0.33 | M141: 1.00 | N141: 1.00 | O141: 0.17 | P141: 0.11 | S141: 0.28 | T141: 0.22
A142: 33089-61-1 | B142: TRUE | C142: amitraz | D142: RIWA | F142: 0.40 | G142: 0.63 | I142: 0.56 | J142: 0.56 | K142: 0.56 | M142: 0.54 | N142: 0.76 | O142: 0.21 | P142: 0.59 | S142: 0.31 | T142: 0.61
A143: 1897-45-6 | B143: TRUE | C143: chloorthalonil | D143: RIWA | F143: 0.51 | G143: 0.50 | I143: 0.57 | J143: 0.57 | K143: 0.57 | M143: 0.91 | N143: 0.86 | O143: 0.26 | P143: 0.25 | S143: 0.39 | T143: 0.38
A144: 42576-02-3 | B144: TRUE | C144: bifenox | D144: RIWA | F144: 0.51 | G144: 0.58 | I144: 0.69 | J144: 0.69 | K144: 0.69 | M144: 0.77 | N144: 0.80 | O144: 0.25 | P144: 0.35 | S144: 0.38 | T144: 0.47
A145: 35554-44-0 | B145: TRUE | C145: imazalil | D145: RIWA | F145: 0.47 | G145: 0.56 | I145: 0.56 | J145: 0.56 | K145: 0.56 | M145: 0.65 | N145: 0.66 | O145: 0.28 | P145: 0.47 | S145: 0.38 | T145: 0.52
A146: 116255-48-2 | B146: TRUE | C146: bromuconazool | D146: RIWA | F146: 0.57 | G146: 0.50 | I146: 0.56 | J146: 0.56 | K146: 0.56 | M146: 0.86 | N146: 0.80 | O146: 0.38 | P146: 0.27 | S146: 0.48 | T146: 0.39
A147: 1593-77-7 | B147: TRUE | C147: dodemorf | D147: RIWA | F147: 0.46 | G147: 0.73 | I147: 0.78 | J147: 0.78 | K147: 0.78 | M147: 0.49 | N147: 0.80 | O147: 0.25 | P147: 0.62 | S147: 0.36 | T147: 0.68
A148: 117337-19-6 | B148: TRUE | C148: fluthiacet-methyl | D148: RIWA | F148: 0.47 | G148: 0.42 | I148: 0.33 | J148: 0.33 | K148: 0.33 | M148: 0.83 | N148: 0.81 | O148: 0.37 | P148: 0.27 | S148: 0.42 | T148: 0.35
A149: 76-13-1 | B149: TRUE | C149: dichloorfluordifluorchloorethaan (freon 113) | D149: RIWA | F149: 0.47 | G149: 0.30 | I149: 0.33 | J149: 0.33 | K149: 0.33 | M149: 0.82 | N149: 1.00 | O149: 0.37 | P149: 0.08 | S149: 0.43 | T149: 0.17
A150: 85-01-8 | B150: TRUE | C150: fenanthreen | D150: RIWA | F150: 0.48 | G150: 0.65 | I150: 0.91 | J150: 0.89 | K150: 0.94 | M150: 0.57 | N150: 0.54 | O150: 0.21 | P150: 0.55 | S150: 0.35 | T150: 0.61
A151: 427-51-0 | B151: TRUE | C151: cyproteronacetaat | D151: RIWA | F151: 0.56 | G151: 0.48 | I151: 0.74 | J151: 0.69 | K151: 0.79 | M151: 0.92 | N151: 0.92 | O151: 0.25 | P151: 0.16 | S151: 0.41 | T151: 0.31
A152: 5611-51-8 | B152: TRUE | C152: triamcinolonehexacetonide | D152: RIWA | F152: 0.60 | G152: 0.40 | I152: 0.74 | J152: 0.69 | K152: 0.79 | M152: 0.99 | N152: 0.99 | O152: 0.29 | P152: 0.09 | S152: 0.45 | T152: 0.22
A153: 72629-94-8 | B153: TRUE | C153: perfluor-n-tridecaanzuur (PFTDA) | D153: RIWA | F153: 0.44 | G153: 0.36 | I153: 0.61 | J153: 0.61 | K153: 0.61 | M153: 1.00 | N153: 1.00 | O153: 0.14 | P153: 0.07 | S153: 0.27 | T153: 0.19
A154: 83121-18-0 | B154: TRUE | C154: teflubenzuron | D154: RIWA | F154: 0.55 | G154: 0.34 | I154: 0.56 | J154: 0.56 | K154: 0.56 | M154: 1.00 | N154: 1.00 | O154: 0.31 | P154: 0.07 | S154: 0.44 | T154: 0.19
A155: 93-72-1 | B155: TRUE | C155: 2-(2,4,5-trichloorfenoxy)propionzuur (2,4,5-TP) | D155: RIWA | F155: 0.51 | G155: 0.58 | I155: 0.61 | J155: 0.61 | K155: 0.61 | M155: 0.51 | N155: 0.54 | O155: 0.42 | P155: 0.58 | S155: 0.47 | T155: 0.58
A156: 120-12-7 | B156: TRUE | C156: antraceen | D156: RIWA | F156: 0.49 | G156: 0.67 | I156: 0.96 | J156: 0.94 | K156: 0.97 | M156: 0.57 | N156: 0.59 | O156: 0.22 | P156: 0.54 | S156: 0.35 | T156: 0.62
A157: 2593-15-9 | B157: TRUE | C157: etridiazool | D157: RIWA | F157: 0.47 | G157: 0.45 | I157: 0.42 | J157: 0.42 | K157: 0.42 | M157: 0.81 | N157: 0.72 | O157: 0.30 | P157: 0.29 | S157: 0.39 | T157: 0.38
A158: 129-00-0 | B158: TRUE | C158: pyreen | D158: RIWA | F158: 0.50 | G158: 0.62 | I158: 0.92 | J158: 0.89 | K158: 0.94 | M158: 0.76 | N158: 0.79 | O158: 0.18 | P158: 0.33 | S158: 0.33 | T158: 0.48
A159: 120928-09-8 | B159: TRUE | C159: fenazaquin | D159: RIWA | F159: 0.32 | G159: 0.52 | I159: 0.33 | J159: 0.33 | K159: 0.33 | M159: 0.60 | N159: 0.87 | O159: 0.16 | P159: 0.48 | S159: 0.24 | T159: 0.50
A160: 63284-71-9 | B160: TRUE | C160: nuarimol | D160: RIWA | F160: 0.38 | G160: 0.42 | I160: 0.33 | J160: 0.33 | K160: 0.33 | M160: 0.81 | N160: 0.84 | O160: 0.21 | P160: 0.27 | S160: 0.30 | T160: 0.35
A161: 75736-33-3 | B161: TRUE | C161: diclobutrazool | D161: RIWA | F161: 0.57 | G161: 0.52 | I161: 0.61 | J161: 0.61 | K161: 0.61 | M161: 0.77 | N161: 0.76 | O161: 0.38 | P161: 0.31 | S161: 0.48 | T161: 0.42
A162: 52918-63-5 | B162: TRUE | C162: deltamethrin | D162: RIWA | F162: 0.35 | G162: 0.51 | I162: 0.44 | J162: 0.33 | K162: 0.56 | M162: 0.77 | N162: 0.95 | O162: 0.13 | P162: 0.31 | S162: 0.24 | T162: 0.41
A163: 51022-69-6 | B163: TRUE | C163: amcinonide | D163: RIWA | F163: 0.64 | G163: 0.40 | I163: 0.74 | J163: 0.69 | K163: 0.79 | M163: 0.97 | N163: 0.96 | O163: 0.37 | P163: 0.09 | S163: 0.52 | T163: 0.22
A164: 107534-96-3 | B164: TRUE | C164: tebuconazool | D164: RIWA | F164: 0.59 | G164: 0.49 | I164: 0.61 | J164: 0.61 | K164: 0.61 | M164: 0.84 | N164: 0.81 | O164: 0.39 | P164: 0.23 | S164: 0.50 | T164: 0.36
A165: 81406-37-3 | B165: TRUE | C165: fluroxypyr-1-methylheptylester | D165: RIWA | F165: 0.42 | G165: 0.35 | I165: 0.33 | J165: 0.33 | K165: 0.33 | M165: 0.91 | N165: 0.92 | O165: 0.25 | P165: 0.14 | S165: 0.34 | T165: 0.24
A166: 60207-93-4 | B166: TRUE | C166: etaconazool | D166: RIWA | F166: 0.58 | G166: 0.48 | I166: 0.56 | J166: 0.56 | K166: 0.56 | M166: 0.83 | N166: 0.75 | O166: 0.42 | P166: 0.27 | S166: 0.51 | T166: 0.38
A167: 634-93-5 | B167: TRUE | C167: 2,4,6-trichlooraniline | D167: RIWA | F167: 0.51 | G167: 0.55 | I167: 0.71 | J167: 0.71 | K167: 0.71 | M167: 0.73 | N167: 0.66 | O167: 0.25 | P167: 0.34 | S167: 0.38 | T167: 0.45
A168: 376-06-7 | B168: TRUE | C168: perfluortetradecaanzuur (PFTeDA) | D168: RIWA | F168: 0.40 | G168: 0.26 | I168: 0.61 | J168: 0.61 | K168: 0.61 | M168: 1.00 | N168: 1.00 | O168: 0.11 | P168: 0.03 | S168: 0.24 | T168: 0.11
A169: 3089-11-0 | B169: TRUE | C169: hexa(methoxymethyl) melamine (HMMM) | D169: RIWA | F169: 0.60 | G169: 0.09 | I169: 0.34 | J169: 0.34 | K169: 0.34 | M169: 0.97 | N169: 0.93 | O169: 0.67 | P169: 0.00 | S169: 0.63 | T169: 0.02
A170: 3383-96-8 | B170: TRUE | C170: temefos | D170: RIWA | F170: 0.36 | G170: 0.72 | I170: 0.68 | J170: 0.56 | K170: 0.80 | M170: 0.36 | N170: 0.82 | O170: 0.20 | P170: 0.68 | S170: 0.28 | T170: 0.70
A171: 75-71-8 | B171: TRUE | C171: dichloordifluormethaan (Freon 12) | D171: RIWA | F171: 0.43 | G171: 0.19 | I171: 0.33 | J171: 0.33 | K171: 0.33 | M171: 0.44 | N171: 1.00 | O171: 0.52 | P171: 0.02 | S171: 0.46 | T171: 0.08
A172: 131983-72-7 | B172: TRUE | C172: triticonazool | D172: RIWA | F172: 0.60 | G172: 0.48 | I172: 0.61 | J172: 0.61 | K172: 0.61 | M172: 0.81 | N172: 0.75 | O172: 0.43 | P172: 0.24 | S172: 0.52 | T172: 0.37
A173: 173584-44-6 | B173: TRUE | C173: indoxacarb | D173: RIWA | F173: 0.46 | G173: 0.23 | I173: 0.33 | J173: 0.33 | K173: 0.33 | M173: 0.98 | N173: 0.99 | O173: 0.29 | P173: 0.04 | S173: 0.38 | T173: 0.11
A174: 136426-54-5 | B174: TRUE | C174: fluquinconazool | D174: RIWA | F174: 0.60 | G174: 0.37 | I174: 0.56 | J174: 0.56 | K174: 0.56 | M174: 0.94 | N174: 0.90 | O174: 0.41 | P174: 0.11 | S174: 0.51 | T174: 0.23
A175: 83657-22-1 | B175: TRUE | C175: uniconazool | D175: RIWA | F175: 0.50 | G175: 0.56 | I175: 0.61 | J175: 0.61 | K175: 0.61 | M175: 0.51 | N175: 0.52 | O175: 0.39 | P175: 0.55 | S175: 0.45 | T175: 0.55
A176: 35400-43-2 | B176: TRUE | C176: sulprofos | D176: RIWA | F176: 0.29 | G176: 0.59 | I176: 0.44 | J176: 0.33 | K176: 0.56 | M176: 0.25 | N176: 0.59 | O176: 0.22 | P176: 0.78 | S176: 0.26 | T176: 0.66
A177: 131807-57-3 | B177: TRUE | C177: famoxadon | D177: RIWA | F177: 0.47 | G177: 0.55 | I177: 0.61 | J177: 0.53 | K177: 0.69 | M177: 0.63 | N177: 0.69 | O177: 0.27 | P177: 0.40 | S177: 0.37 | T177: 0.48
A178: 140-66-9 | B178: TRUE | C178: 4-tert-octylfenol | D178: RIWA | F178: 0.41 | G178: 0.67 | I178: 0.79 | J178: 0.78 | K178: 0.80 | M178: 0.44 | N178: 0.64 | O178: 0.20 | P178: 0.59 | S178: 0.31 | T178: 0.63
A179: 67306-00-7 | B179: TRUE | C179: fenpropidin | D179: RIWA | F179: 0.33 | G179: 0.47 | I179: 0.33 | J179: 0.33 | K179: 0.33 | M179: 0.70 | N179: 0.95 | O179: 0.16 | P179: 0.32 | S179: 0.25 | T179: 0.40
A180: 636-30-6 | B180: TRUE | C180: 2,4,5-trichlooraniline | D180: RIWA | F180: 0.61 | G180: 0.57 | I180: 0.90 | J180: 0.88 | K180: 0.93 | M180: 0.73 | N180: 0.62 | O180: 0.34 | P180: 0.33 | S180: 0.48 | T180: 0.46
A181: 1163-19-5 | B181: TRUE | C181: 2,2',3,3',4,4',5,5',6,6'-decabroomdiphenylether (PBDE-209) | D181: RIWA | F181: 0.23 | G181: 0.16 | I181: 0.67 | J181: 0.60 | K181: 0.74 | M181: 1.00 | N181: 1.00 | O181: 0.02 | P181: 0.01 | S181: 0.09 | T181: 0.04
A182: 76-25-5 | B182: TRUE | C182: triamcinolonacetonide | D182: RIWA | F182: 0.75 | G182: 0.28 | I182: 0.82 | J182: 0.79 | K182: 0.86 | M182: 0.95 | N182: 0.89 | O182: 0.55 | P182: 0.03 | S182: 0.66 | T182: 0.11
A183: 87237-48-7 | B183: TRUE | C183: haloxyfop-ethoxyethyl | D183: RIWA | F183: 0.54 | G183: 0.30 | I183: 0.61 | J183: 0.61 | K183: 0.61 | M183: 0.96 | N183: 0.96 | O183: 0.27 | P183: 0.05 | S183: 0.41 | T183: 0.14
A184: 7440-31-5 | B184: TRUE | C184: tin | D184: RIWA | F184: 0.32 | G184: 0.06 | I184: 0.44 | J184: 0.33 | K184: 0.56 | M184: 0.11 | N184: 0.11 | O184: 0.65 | P184: 0.01 | S184: 0.42 | T184: 0.02
A185: 7440-38-2 | B185: TRUE | C185: arseen | D185: RIWA | F185: 0.31 | G185: 0.12 | I185: 0.51 | J185: 0.42 | K185: 0.61 | M185: 0.08 | N185: 1.00 | O185: 0.73 | P185: 0.00 | S185: 0.44 | T185: 0.03
A186: 7440-36-0 | B186: TRUE | C186: antimoon | D186: RIWA | F186: 0.33 | G186: 0.06 | I186: 0.44 | J186: 0.33 | K186: 0.56 | M186: 0.11 | N186: 0.10 | O186: 0.72 | P186: 0.00 | S186: 0.45 | T186: 0.02
A187: 7439-93-2 | B187: TRUE | C187: lithium | D187: RIWA | F187: 0.28 | G187: 0.04 | I187: 0.44 | J187: 0.33 | K187: 0.56 | M187: 0.06 | N187: 0.05 | O187: 0.86 | P187: 0.00 | S187: 0.44 | T187: 0.01
A188: 15541-45-4 | B188: TRUE | C188: bromaat | D188: RIWA | F188: 0.30 | G188: 0.05 | I188: 0.44 | J188: 0.33 | K188: 0.56 | M188: 0.08 | N188: 0.08 | O188: 0.73 | P188: 0.00 | S188: 0.43 | T188: 0.02
A189: 24959-67-9 | B189: TRUE | C189: bromide | D189: RIWA | F189: 0.30 | G189: 0.05 | I189: 0.44 | J189: 0.33 | K189: 0.56 | M189: 0.08 | N189: 0.08 | O189: 0.73 | P189: 0.00 | S189: 0.43 | T189: 0.02
A190: 7727-37-9 | B190: TRUE | C190: organisch gebonden stikstof als N | D190: RIWA | F190: 0.27 | G190: 0.12 | I190: 0.44 | J190: 0.33 | K190: 0.56 | M190: 0.06 | N190: 0.94 | O190: 0.73 | P190: 0.00 | S190: 0.40 | T190: 0.03
A191: 7440-23-5 | B191: TRUE | C191: natrium | D191: RIWA | F191: 0.26 | G191: 0.04 | I191: 0.44 | J191: 0.33 | K191: 0.56 | M191: 0.05 | N191: 0.04 | O191: 0.86 | P191: 0.00 | S191: 0.42 | T191: 0.01
A192: 124-38-9 | B192: TRUE | C192: koolstofdioxide | D192: RIWA | F192: 0.23 | G192: 0.10 | I192: 0.28 | J192: 0.00 | K192: 0.56 | M192: 0.07 | N192: 0.93 | O192: 0.64 | P192: 0.00 | S192: 0.34 | T192: 0.03
A193: 7439-92-1 | B193: TRUE | C193: lood | D193: RIWA | F193: 0.39 | G193: 0.06 | I193: 0.44 | J193: 0.33 | K193: 0.56 | M193: 0.19 | N193: 0.17 | O193: 0.72 | P193: 0.00 | S193: 0.50 | T193: 0.02
A194: 7429-90-5 | B194: TRUE | C194: aluminium | D194: RIWA | F194: 0.27 | G194: 0.04 | I194: 0.44 | J194: 0.33 | K194: 0.56 | M194: 0.06 | N194: 0.06 | O194: 0.77 | P194: 0.00 | S194: 0.41 | T194: 0.02
A195: 7439-97-6 | B195: TRUE | C195: kwik | D195: RIWA | F195: 0.41 | G195: 0.06 | I195: 0.51 | J195: 0.42 | K195: 0.61 | M195: 0.18 | N195: 0.17 | O195: 0.73 | P195: 0.00 | S195: 0.52 | T195: 0.02
A196: 7440-42-8 | B196: TRUE | C196: boor | D196: RIWA | F196: =M196^(1/3)*O196^(1/3)*I196^(1/3) -> 0.26 | G196: =N196^(1/3)*P196^(1/3)*I196^(1/3) -> 0.04 | I196: 0.44 | J196: 0.33 | K196: 0.56 | M196: 0.05 | N196: 0.05 | O196: 0.78 | P196: 0.00 | S196: =M196^($X$2)*O196^($Y$2)*I196^($Z$2) -> 0.41 | T196: =N196^($X$2)*P196^($Y$2)*I196^($Z$2) -> 0.01
A197: 7440-32-6 | B197: TRUE | C197: titaan | D197: RIWA | F197: 0.29 | G197: 0.04 | I197: 0.44 | J197: 0.33 | K197: 0.56 | M197: 0.07 | N197: 0.06 | O197: 0.78 | P197: 0.00 | S197: 0.43 | T197: 0.01
A198: 7440-62-2 | B198: TRUE | C198: vanadium | D198: RIWA | F198: 0.29 | G198: 0.04 | I198: 0.44 | J198: 0.33 | K198: 0.56 | M198: 0.07 | N198: 0.06 | O198: 0.78 | P198: 0.00 | S198: 0.43 | T198: 0.01
A199: 7440-47-3 | B199: TRUE | C199: chroom | D199: RIWA | F199: 0.30 | G199: 0.05 | I199: 0.51 | J199: 0.42 | K199: 0.61 | M199: 0.07 | N199: 0.06 | O199: 0.78 | P199: 0.00 | S199: 0.44 | T199: 0.02
A200: 7439-96-5 | B200: TRUE | C200: mangaan | D200: RIWA | F200: 0.29 | G200: 0.04 | I200: 0.44 | J200: 0.33 | K200: 0.56 | M200: 0.07 | N200: 0.07 | O200: 0.78 | P200: 0.00 | S200: 0.43 | T200: 0.01
... 4299 more rows

Sheet Unique CAS
W1: P | X1: B/M | Y1: T
A2: CAS RN | B2: SCORES explained <0.33 not P/M/B/T 0.33-0.5 P/M/B/(T) >0.5 vP/vM/vB, T Name | C2: Source | E2: PMT(HH)-score (equal weight) | F2: PBT(HH)-score (equal weight) | H2: T-score (HH) average | I2: T-score (HH) min | J2: T-score (HH) max | L2: P(MT)-score | M2: P(BT)-score | N2: M-score | O2: B-score | P2: T-score (ECO) | R2: PMT(HH)-score (weight as given) | S2: PBT(HH)-score (weight as given) | V2: weight: | W2: 0.2 | X2: 0.6 | Y2: 0.2
A3: 22839-47-0 | B3: =VLOOKUP(A3,'PBMT scores'!A:Z,3,FALSE) -> aspartaam | C3: =VLOOKUP(A3,'PBMT scores'!A:Z,4,FALSE) -> RIWA | E3: =VLOOKUP(A3,'PBMT scores'!A:Z,6,FALSE) -> 0.00 | F3: =VLOOKUP(A3,'PBMT scores'!A:Z,7,FALSE) -> 0.00 | H3: =VLOOKUP(A3,'PBMT scores'!A:Z,9,FALSE) -> 0.00 | I3: =VLOOKUP(A3,'PBMT scores'!A:Z,10,FALSE) -> 0.00 | J3: =VLOOKUP(A3,'PBMT scores'!A:Z,11,FALSE) -> 0.00 | L3: =VLOOKUP(A3,'PBMT scores'!A:Z,13,FALSE) -> 0.10 | M3: =VLOOKUP(A3,'PBMT scores'!A:Z,14,FALSE) -> 0.04 | N3: =VLOOKUP(A3,'PBMT scores'!A:Z,15,FALSE) -> 0.79 | O3: =VLOOKUP(A3,'PBMT scores'!A:Z,16,FALSE) -> 0.00 | R3: =VLOOKUP(A3,'PBMT scores'!A:Z,19,FALSE) -> 0.00 | S3: =VLOOKUP(A3,'PBMT scores'!A:Z,20,FALSE) -> 0.00
A4: 119-17-5 | B4: =VLOOKUP(A4,'PBMT scores'!A:Z,3,FALSE) -> m-(4,5-dihydro-3-methyl-5-oxo-1H-pyrazol-1-yl)benzenesulphonic acid(1) | C4: =VLOOKUP(A4,'PBMT scores'!A:Z,4,FALSE) -> REACH | E4: =VLOOKUP(A4,'PBMT scores'!A:Z,6,FALSE) -> 0.00 | F4: =VLOOKUP(A4,'PBMT scores'!A:Z,7,FALSE) -> 0.00 | H4: =VLOOKUP(A4,'PBMT scores'!A:Z,9,FALSE) -> 0.00 | I4: =VLOOKUP(A4,'PBMT scores'!A:Z,10,FALSE) -> 0.00 | J4: =VLOOKUP(A4,'PBMT scores'!A:Z,11,FALSE) -> 0.00 | L4: =VLOOKUP(A4,'PBMT scores'!A:Z,13,FALSE) -> 0.17 | M4: =VLOOKUP(A4,'PBMT scores'!A:Z,14,FALSE) -> 0.08 | N4: =VLOOKUP(A4,'PBMT scores'!A:Z,15,FALSE) -> 0.73 | O4: =VLOOKUP(A4,'PBMT scores'!A:Z,16,FALSE) -> 0.01 | R4: =VLOOKUP(A4,'PBMT scores'!A:Z,19,FALSE) -> 0.00 | S4: =VLOOKUP(A4,'PBMT scores'!A:Z,20,FALSE) -> 0.00
A5: 89-36-1 | B5: =VLOOKUP(A5,'PBMT scores'!A:Z,3,FALSE) -> 4-(3-methyl-5-oxo-2-pyrazolin-1-yl)benzenesulphonic acid(2) | C5: =VLOOKUP(A5,'PBMT scores'!A:Z,4,FALSE) -> REACH | E5: =VLOOKUP(A5,'PBMT scores'!A:Z,6,FALSE) -> 0.00 | F5: =VLOOKUP(A5,'PBMT scores'!A:Z,7,FALSE) -> 0.00 | H5: =VLOOKUP(A5,'PBMT scores'!A:Z,9,FALSE) -> 0.00 | I5: =VLOOKUP(A5,'PBMT scores'!A:Z,10,FALSE) -> 0.00 | J5: =VLOOKUP(A5,'PBMT scores'!A:Z,11,FALSE) -> 0.00 | L5: =VLOOKUP(A5,'PBMT scores'!A:Z,13,FALSE) -> 0.17 | M5: =VLOOKUP(A5,'PBMT scores'!A:Z,14,FALSE) -> 0.08 | N5: =VLOOKUP(A5,'PBMT scores'!A:Z,15,FALSE) -> 0.73 | O5: =VLOOKUP(A5,'PBMT scores'!A:Z,16,FALSE) -> 0.01 | R5: =VLOOKUP(A5,'PBMT scores'!A:Z,19,FALSE) -> 0.00 | S5: =VLOOKUP(A5,'PBMT scores'!A:Z,20,FALSE) -> 0.00
A6: 68083-38-5 | B6: =VLOOKUP(A6,'PBMT scores'!A:Z,3,FALSE) -> m-(4,5-dihydro-5-imino-3-methyl-1H-pyrazol-1-yl)benzenesulphonic acid(2) | C6: =VLOOKUP(A6,'PBMT scores'!A:Z,4,FALSE) -> REACH | E6: =VLOOKUP(A6,'PBMT scores'!A:Z,6,FALSE) -> 0.00 | F6: =VLOOKUP(A6,'PBMT scores'!A:Z,7,FALSE) -> 0.00 | H6: =VLOOKUP(A6,'PBMT scores'!A:Z,9,FALSE) -> 0.00 | I6: =VLOOKUP(A6,'PBMT scores'!A:Z,10,FALSE) -> 0.00 | J6: =VLOOKUP(A6,'PBMT scores'!A:Z,11,FALSE) -> 0.00 | L6: =VLOOKUP(A6,'PBMT scores'!A:Z,13,FALSE) -> 0.17 | M6: =VLOOKUP(A6,'PBMT scores'!A:Z,14,FALSE) -> 0.08 | N6: =VLOOKUP(A6,'PBMT scores'!A:Z,15,FALSE) -> 0.82 | O6: =VLOOKUP(A6,'PBMT scores'!A:Z,16,FALSE) -> 0.01 | R6: =VLOOKUP(A6,'PBMT scores'!A:Z,19,FALSE) -> 0.00 | S6: =VLOOKUP(A6,'PBMT scores'!A:Z,20,FALSE) -> 0.00
A7: 69-79-4 | B7: =VLOOKUP(A7,'PBMT scores'!A:Z,3,FALSE) -> Maltose(1) | C7: =VLOOKUP(A7,'PBMT scores'!A:Z,4,FALSE) -> REACH | E7: =VLOOKUP(A7,'PBMT scores'!A:Z,6,FALSE) -> 0.00 | F7: =VLOOKUP(A7,'PBMT scores'!A:Z,7,FALSE) -> 0.00 | H7: =VLOOKUP(A7,'PBMT scores'!A:Z,9,FALSE) -> 0.00 | I7: =VLOOKUP(A7,'PBMT scores'!A:Z,10,FALSE) -> 0.00 | J7: =VLOOKUP(A7,'PBMT scores'!A:Z,11,FALSE) -> 0.00 | L7: =VLOOKUP(A7,'PBMT scores'!A:Z,13,FALSE) -> 0.01 | M7: =VLOOKUP(A7,'PBMT scores'!A:Z,14,FALSE) -> 0.01 | N7: =VLOOKUP(A7,'PBMT scores'!A:Z,15,FALSE) -> 0.97 | O7: =VLOOKUP(A7,'PBMT scores'!A:Z,16,FALSE) -> 0.00 | R7: =VLOOKUP(A7,'PBMT scores'!A:Z,19,FALSE) -> 0.00 | S7: =VLOOKUP(A7,'PBMT scores'!A:Z,20,FALSE) -> 0.00
A8: 961-69-3 | B8: =VLOOKUP(A8,'PBMT scores'!A:Z,3,FALSE) -> Potassium (R)-[(3-ethoxy-1-methyl-3-oxoprop-1-enyl)amino]phenylacetate(1) | C8: =VLOOKUP(A8,'PBMT scores'!A:Z,4,FALSE) -> REACH | E8: =VLOOKUP(A8,'PBMT scores'!A:Z,6,FALSE) -> 0.00 | F8: =VLOOKUP(A8,'PBMT scores'!A:Z,7,FALSE) -> 0.00 | H8: =VLOOKUP(A8,'PBMT scores'!A:Z,9,FALSE) -> 0.00 | I8: =VLOOKUP(A8,'PBMT scores'!A:Z,10,FALSE) -> 0.00 | J8: =VLOOKUP(A8,'PBMT scores'!A:Z,11,FALSE) -> 0.00 | L8: =VLOOKUP(A8,'PBMT scores'!A:Z,13,FALSE) -> 0.06 | M8: =VLOOKUP(A8,'PBMT scores'!A:Z,14,FALSE) -> 0.06 | N8: =VLOOKUP(A8,'PBMT scores'!A:Z,15,FALSE) -> 0.63 | O8: =VLOOKUP(A8,'PBMT scores'!A:Z,16,FALSE) -> 0.03 | R8: =VLOOKUP(A8,'PBMT scores'!A:Z,19,FALSE) -> 0.00 | S8: =VLOOKUP(A8,'PBMT scores'!A:Z,20,FALSE) -> 0.00
A9: 101-11-1 | B9: =VLOOKUP(A9,'PBMT scores'!A:Z,3,FALSE) -> ?-N-ethylanilinotoluene-3-sulphonic acid(1) | C9: =VLOOKUP(A9,'PBMT scores'!A:Z,4,FALSE) -> REACH | E9: =VLOOKUP(A9,'PBMT scores'!A:Z,6,FALSE) -> 0.00 | F9: =VLOOKUP(A9,'PBMT scores'!A:Z,7,FALSE) -> 0.00 | H9: =VLOOKUP(A9,'PBMT scores'!A:Z,9,FALSE) -> 0.00 | I9: =VLOOKUP(A9,'PBMT scores'!A:Z,10,FALSE) -> 0.00 | J9: =VLOOKUP(A9,'PBMT scores'!A:Z,11,FALSE) -> 0.00 | L9: =VLOOKUP(A9,'PBMT scores'!A:Z,13,FALSE) -> 0.37 | M9: =VLOOKUP(A9,'PBMT scores'!A:Z,14,FALSE) -> 0.20 | N9: =VLOOKUP(A9,'PBMT scores'!A:Z,15,FALSE) -> 0.61 | O9: =VLOOKUP(A9,'PBMT scores'!A:Z,16,FALSE) -> 0.01 | R9: =VLOOKUP(A9,'PBMT scores'!A:Z,19,FALSE) -> 0.00 | S9: =VLOOKUP(A9,'PBMT scores'!A:Z,20,FALSE) -> 0.00
A10: 27213-90-7 | B10: =VLOOKUP(A10,'PBMT scores'!A:Z,3,FALSE) -> Sodium diisobutylnaphthalenesulphonate(1) | C10: =VLOOKUP(A10,'PBMT scores'!A:Z,4,FALSE) -> REACH | E10: =VLOOKUP(A10,'PBMT scores'!A:Z,6,FALSE) -> 0.00 | F10: =VLOOKUP(A10,'PBMT scores'!A:Z,7,FALSE) -> 0.00 | H10: =VLOOKUP(A10,'PBMT scores'!A:Z,9,FALSE) -> 0.00 | I10: =VLOOKUP(A10,'PBMT scores'!A:Z,10,FALSE) -> 0.00 | J10: =VLOOKUP(A10,'PBMT scores'!A:Z,11,FALSE) -> 0.00 | L10: =VLOOKUP(A10,'PBMT scores'!A:Z,13,FALSE) -> 0.35 | M10: =VLOOKUP(A10,'PBMT scores'!A:Z,14,FALSE) -> 0.40 | N10: =VLOOKUP(A10,'PBMT scores'!A:Z,15,FALSE) -> 0.32 | O10: =VLOOKUP(A10,'PBMT scores'!A:Z,16,FALSE) -> 0.22 | R10: =VLOOKUP(A10,'PBMT scores'!A:Z,19,FALSE) -> 0.00 | S10: =VLOOKUP(A10,'PBMT scores'!A:Z,20,FALSE) -> 0.00
A11: 122-32-7 | B11: =VLOOKUP(A11,'PBMT scores'!A:Z,3,FALSE) -> 1,2,3-propanetriyl trioleate(1) | C11: =VLOOKUP(A11,'PBMT scores'!A:Z,4,FALSE) -> REACH | E11: =VLOOKUP(A11,'PBMT scores'!A:Z,6,FALSE) -> 0.00 | F11: =VLOOKUP(A11,'PBMT scores'!A:Z,7,FALSE) -> 0.00 | H11: =VLOOKUP(A11,'PBMT scores'!A:Z,9,FALSE) -> 0.00 | I11: =VLOOKUP(A11,'PBMT scores'!A:Z,10,FALSE) -> 0.00 | J11: =VLOOKUP(A11,'PBMT scores'!A:Z,11,FALSE) -> 0.00 | L11: =VLOOKUP(A11,'PBMT scores'!A:Z,13,FALSE) -> 0.30 | M11: =VLOOKUP(A11,'PBMT scores'!A:Z,14,FALSE) -> 0.86 | N11: =VLOOKUP(A11,'PBMT scores'!A:Z,15,FALSE) -> 0.00 | O11: =VLOOKUP(A11,'PBMT scores'!A:Z,16,FALSE) -> 0.00 | R11: =VLOOKUP(A11,'PBMT scores'!A:Z,19,FALSE) -> 0.00 | S11: =VLOOKUP(A11,'PBMT scores'!A:Z,20,FALSE) -> 0.00
A12: 40754-59-4 | B12: =VLOOKUP(A12,'PBMT scores'!A:Z,3,FALSE) -> Disodium 4-[2-[2-[2-(dodecyloxy)ethoxy]ethoxy]ethyl] 2-sulphonatosuccinate(1) | C12: =VLOOKUP(A12,'PBMT scores'!A:Z,4,FALSE) -> REACH | E12: =VLOOKUP(A12,'PBMT scores'!A:Z,6,FALSE) -> 0.00 | F12: =VLOOKUP(A12,'PBMT scores'!A:Z,7,FALSE) -> 0.00 | H12: =VLOOKUP(A12,'PBMT scores'!A:Z,9,FALSE) -> 0.00 | I12: =VLOOKUP(A12,'PBMT scores'!A:Z,10,FALSE) -> 0.00 | J12: =VLOOKUP(A12,'PBMT scores'!A:Z,11,FALSE) -> 0.00 | L12: =VLOOKUP(A12,'PBMT scores'!A:Z,13,FALSE) -> 0.07 | M12: =VLOOKUP(A12,'PBMT scores'!A:Z,14,FALSE) -> 0.09 | N12: =VLOOKUP(A12,'PBMT scores'!A:Z,15,FALSE) -> 0.53 | O12: =VLOOKUP(A12,'PBMT scores'!A:Z,16,FALSE) -> 0.01 | R12: =VLOOKUP(A12,'PBMT scores'!A:Z,19,FALSE) -> 0.00 | S12: =VLOOKUP(A12,'PBMT scores'!A:Z,20,FALSE) -> 0.00
A13: 105-62-4 | B13: =VLOOKUP(A13,'PBMT scores'!A:Z,3,FALSE) -> 1-methyl-1,2-ethanediyl dioleate(1) | C13: =VLOOKUP(A13,'PBMT scores'!A:Z,4,FALSE) -> REACH | E13: =VLOOKUP(A13,'PBMT scores'!A:Z,6,FALSE) -> 0.00 | F13: =VLOOKUP(A13,'PBMT scores'!A:Z,7,FALSE) -> 0.00 | H13: =VLOOKUP(A13,'PBMT scores'!A:Z,9,FALSE) -> 0.00 | I13: =VLOOKUP(A13,'PBMT scores'!A:Z,10,FALSE) -> 0.00 | J13: =VLOOKUP(A13,'PBMT scores'!A:Z,11,FALSE) -> 0.00 | L13: =VLOOKUP(A13,'PBMT scores'!A:Z,13,FALSE) -> 0.19 | M13: =VLOOKUP(A13,'PBMT scores'!A:Z,14,FALSE) -> 0.78 | N13: =VLOOKUP(A13,'PBMT scores'!A:Z,15,FALSE) -> 0.00 | O13: =VLOOKUP(A13,'PBMT scores'!A:Z,16,FALSE) -> 0.00 | R13: =VLOOKUP(A13,'PBMT scores'!A:Z,19,FALSE) -> 0.00 | S13: =VLOOKUP(A13,'PBMT scores'!A:Z,20,FALSE) -> 0.00
A14: 79-81-2 | B14: =VLOOKUP(A14,'PBMT scores'!A:Z,3,FALSE) -> Retinyl palmitate(1) | C14: =VLOOKUP(A14,'PBMT scores'!A:Z,4,FALSE) -> REACH | E14: =VLOOKUP(A14,'PBMT scores'!A:Z,6,FALSE) -> 0.00 | F14: =VLOOKUP(A14,'PBMT scores'!A:Z,7,FALSE) -> 0.00 | H14: =VLOOKUP(A14,'PBMT scores'!A:Z,9,FALSE) -> 0.00 | I14: =VLOOKUP(A14,'PBMT scores'!A:Z,10,FALSE) -> 0.00 | J14: =VLOOKUP(A14,'PBMT scores'!A:Z,11,FALSE) -> 0.00 | L14: =VLOOKUP(A14,'PBMT scores'!A:Z,13,FALSE) -> 0.67 | M14: =VLOOKUP(A14,'PBMT scores'!A:Z,14,FALSE) -> 0.96 | N14: =VLOOKUP(A14,'PBMT scores'!A:Z,15,FALSE) -> 0.01 | O14: =VLOOKUP(A14,'PBMT scores'!A:Z,16,FALSE) -> 0.00 | R14: =VLOOKUP(A14,'PBMT scores'!A:Z,19,FALSE) -> 0.00 | S14: =VLOOKUP(A14,'PBMT scores'!A:Z,20,FALSE) -> 0.00
A15: 17673-56-2 | B15: =VLOOKUP(A15,'PBMT scores'!A:Z,3,FALSE) -> (Z)-octadec-9-enyl (Z)-docos-13-enoate(1) | C15: =VLOOKUP(A15,'PBMT scores'!A:Z,4,FALSE) -> REACH | E15: =VLOOKUP(A15,'PBMT scores'!A:Z,6,FALSE) -> 0.00 | F15: =VLOOKUP(A15,'PBMT scores'!A:Z,7,FALSE) -> 0.00 | H15: =VLOOKUP(A15,'PBMT scores'!A:Z,9,FALSE) -> 0.00 | I15: =VLOOKUP(A15,'PBMT scores'!A:Z,10,FALSE) -> 0.00 | J15: =VLOOKUP(A15,'PBMT scores'!A:Z,11,FALSE) -> 0.00 | L15: =VLOOKUP(A15,'PBMT scores'!A:Z,13,FALSE) -> 0.25 | M15: =VLOOKUP(A15,'PBMT scores'!A:Z,14,FALSE) -> 0.83 | N15: =VLOOKUP(A15,'PBMT scores'!A:Z,15,FALSE) -> 0.00 | O15: =VLOOKUP(A15,'PBMT scores'!A:Z,16,FALSE) -> 0.00 | R15: =VLOOKUP(A15,'PBMT scores'!A:Z,19,FALSE) -> 0.00 | S15: =VLOOKUP(A15,'PBMT scores'!A:Z,20,FALSE) -> 0.00
A16: 42222-50-4 | B16: =VLOOKUP(A16,'PBMT scores'!A:Z,3,FALSE) -> 2,2-dimethyl-1,3-propanediyl dioleate(1) | C16: =VLOOKUP(A16,'PBMT scores'!A:Z,4,FALSE) -> REACH | E16: =VLOOKUP(A16,'PBMT scores'!A:Z,6,FALSE) -> 0.00 | F16: =VLOOKUP(A16,'PBMT scores'!A:Z,7,FALSE) -> 0.00 | H16: =VLOOKUP(A16,'PBMT scores'!A:Z,9,FALSE) -> 0.00 | I16: =VLOOKUP(A16,'PBMT scores'!A:Z,10,FALSE) -> 0.00 | J16: =VLOOKUP(A16,'PBMT scores'!A:Z,11,FALSE) -> 0.00 | L16: =VLOOKUP(A16,'PBMT scores'!A:Z,13,FALSE) -> 0.37 | M16: =VLOOKUP(A16,'PBMT scores'!A:Z,14,FALSE) -> 0.89 | N16: =VLOOKUP(A16,'PBMT scores'!A:Z,15,FALSE) -> 0.00 | O16: =VLOOKUP(A16,'PBMT scores'!A:Z,16,FALSE) -> 0.00 | R16: =VLOOKUP(A16,'PBMT scores'!A:Z,19,FALSE) -> 0.00 | S16: =VLOOKUP(A16,'PBMT scores'!A:Z,20,FALSE) -> 0.00
A17: 3687-45-4 | B17: =VLOOKUP(A17,'PBMT scores'!A:Z,3,FALSE) -> (Z)-octadec-9-enyl oleate(1) | C17: =VLOOKUP(A17,'PBMT scores'!A:Z,4,FALSE) -> REACH | E17: =VLOOKUP(A17,'PBMT scores'!A:Z,6,FALSE) -> 0.00 | F17: =VLOOKUP(A17,'PBMT scores'!A:Z,7,FALSE) -> 0.00 | H17: =VLOOKUP(A17,'PBMT scores'!A:Z,9,FALSE) -> 0.00 | I17: =VLOOKUP(A17,'PBMT scores'!A:Z,10,FALSE) -> 0.00 | J17: =VLOOKUP(A17,'PBMT scores'!A:Z,11,FALSE) -> 0.00 | L17: =VLOOKUP(A17,'PBMT scores'!A:Z,13,FALSE) -> 0.18 | M17: =VLOOKUP(A17,'PBMT scores'!A:Z,14,FALSE) -> 0.77 | N17: =VLOOKUP(A17,'PBMT scores'!A:Z,15,FALSE) -> 0.00 | O17: =VLOOKUP(A17,'PBMT scores'!A:Z,16,FALSE) -> 0.00 | R17: =VLOOKUP(A17,'PBMT scores'!A:Z,19,FALSE) -> 0.00 | S17: =VLOOKUP(A17,'PBMT scores'!A:Z,20,FALSE) -> 0.00
A18: 22393-85-7 | B18: =VLOOKUP(A18,'PBMT scores'!A:Z,3,FALSE) -> Tetradecyl oleate(1) | C18: =VLOOKUP(A18,'PBMT scores'!A:Z,4,FALSE) -> REACH | E18: =VLOOKUP(A18,'PBMT scores'!A:Z,6,FALSE) -> 0.00 | F18: =VLOOKUP(A18,'PBMT scores'!A:Z,7,FALSE) -> 0.00 | H18: =VLOOKUP(A18,'PBMT scores'!A:Z,9,FALSE) -> 0.00 | I18: =VLOOKUP(A18,'PBMT scores'!A:Z,10,FALSE) -> 0.00 | J18: =VLOOKUP(A18,'PBMT scores'!A:Z,11,FALSE) -> 0.00 | L18: =VLOOKUP(A18,'PBMT scores'!A:Z,13,FALSE) -> 0.13 | M18: =VLOOKUP(A18,'PBMT scores'!A:Z,14,FALSE) -> 0.70 | N18: =VLOOKUP(A18,'PBMT scores'!A:Z,15,FALSE) -> 0.01 | O18: =VLOOKUP(A18,'PBMT scores'!A:Z,16,FALSE) -> 0.00 | R18: =VLOOKUP(A18,'PBMT scores'!A:Z,19,FALSE) -> 0.00 | S18: =VLOOKUP(A18,'PBMT scores'!A:Z,20,FALSE) -> 0.00
A19: 36078-10-1 | B19: =VLOOKUP(A19,'PBMT scores'!A:Z,3,FALSE) -> Dodecyl oleate(1) | C19: =VLOOKUP(A19,'PBMT scores'!A:Z,4,FALSE) -> REACH | E19: =VLOOKUP(A19,'PBMT scores'!A:Z,6,FALSE) -> 0.00 | F19: =VLOOKUP(A19,'PBMT scores'!A:Z,7,FALSE) -> 0.00 | H19: =VLOOKUP(A19,'PBMT scores'!A:Z,9,FALSE) -> 0.00 | I19: =VLOOKUP(A19,'PBMT scores'!A:Z,10,FALSE) -> 0.00 | J19: =VLOOKUP(A19,'PBMT scores'!A:Z,11,FALSE) -> 0.00 | L19: =VLOOKUP(A19,'PBMT scores'!A:Z,13,FALSE) -> 0.11 | M19: =VLOOKUP(A19,'PBMT scores'!A:Z,14,FALSE) -> 0.66 | N19: =VLOOKUP(A19,'PBMT scores'!A:Z,15,FALSE) -> 0.01 | O19: =VLOOKUP(A19,'PBMT scores'!A:Z,16,FALSE) -> 0.00 | R19: =VLOOKUP(A19,'PBMT scores'!A:Z,19,FALSE) -> 0.00 | S19: =VLOOKUP(A19,'PBMT scores'!A:Z,20,FALSE) -> 0.00
A20: 3687-46-5 | B20: =VLOOKUP(A20,'PBMT scores'!A:Z,3,FALSE) -> Decyl oleate(1) | C20: =VLOOKUP(A20,'PBMT scores'!A:Z,4,FALSE) -> REACH | E20: =VLOOKUP(A20,'PBMT scores'!A:Z,6,FALSE) -> 0.00 | F20: =VLOOKUP(A20,'PBMT scores'!A:Z,7,FALSE) -> 0.00 | H20: =VLOOKUP(A20,'PBMT scores'!A:Z,9,FALSE) -> 0.00 | I20: =VLOOKUP(A20,'PBMT scores'!A:Z,10,FALSE) -> 0.00 | J20: =VLOOKUP(A20,'PBMT scores'!A:Z,11,FALSE) -> 0.00 | L20: =VLOOKUP(A20,'PBMT scores'!A:Z,13,FALSE) -> 0.09 | M20: =VLOOKUP(A20,'PBMT scores'!A:Z,14,FALSE) -> 0.61 | N20: =VLOOKUP(A20,'PBMT scores'!A:Z,15,FALSE) -> 0.02 | O20: =VLOOKUP(A20,'PBMT scores'!A:Z,16,FALSE) -> 0.01 | R20: =VLOOKUP(A20,'PBMT scores'!A:Z,19,FALSE) -> 0.00 | S20: =VLOOKUP(A20,'PBMT scores'!A:Z,20,FALSE) -> 0.00
A21: 71617-10-2 | B21: =VLOOKUP(A21,'PBMT scores'!A:Z,3,FALSE) -> Isopentyl p-methoxycinnamate(1) | C21: =VLOOKUP(A21,'PBMT scores'!A:Z,4,FALSE) -> REACH | E21: =VLOOKUP(A21,'PBMT scores'!A:Z,6,FALSE) -> 0.00 | F21: =VLOOKUP(A21,'PBMT scores'!A:Z,7,FALSE) -> 0.00 | H21: =VLOOKUP(A21,'PBMT scores'!A:Z,9,FALSE) -> 0.00 | I21: =VLOOKUP(A21,'PBMT scores'!A:Z,10,FALSE) -> 0.00 | J21: =VLOOKUP(A21,'PBMT scores'!A:Z,11,FALSE) -> 0.00 | L21: =VLOOKUP(A21,'PBMT scores'!A:Z,13,FALSE) -> 0.19 | M21: =VLOOKUP(A21,'PBMT scores'!A:Z,14,FALSE) -> 0.24 | N21: =VLOOKUP(A21,'PBMT scores'!A:Z,15,FALSE) -> 0.29 | O21: =VLOOKUP(A21,'PBMT scores'!A:Z,16,FALSE) -> 0.33 | R21: =VLOOKUP(A21,'PBMT scores'!A:Z,19,FALSE) -> 0.00 | S21: =VLOOKUP(A21,'PBMT scores'!A:Z,20,FALSE) -> 0.00
A22: 59231-34-4 | B22: =VLOOKUP(A22,'PBMT scores'!A:Z,3,FALSE) -> Isodecyl oleate(1) | C22: =VLOOKUP(A22,'PBMT scores'!A:Z,4,FALSE) -> REACH | E22: =VLOOKUP(A22,'PBMT scores'!A:Z,6,FALSE) -> 0.00 | F22: =VLOOKUP(A22,'PBMT scores'!A:Z,7,FALSE) -> 0.00 | H22: =VLOOKUP(A22,'PBMT scores'!A:Z,9,FALSE) -> 0.00 | I22: =VLOOKUP(A22,'PBMT scores'!A:Z,10,FALSE) -> 0.00 | J22: =VLOOKUP(A22,'PBMT scores'!A:Z,11,FALSE) -> 0.00 | L22: =VLOOKUP(A22,'PBMT scores'!A:Z,13,FALSE) -> 0.21 | M22: =VLOOKUP(A22,'PBMT scores'!A:Z,14,FALSE) -> 0.80 | N22: =VLOOKUP(A22,'PBMT scores'!A:Z,15,FALSE) -> 0.02 | O22: =VLOOKUP(A22,'PBMT scores'!A:Z,16,FALSE) -> 0.01 | R22: =VLOOKUP(A22,'PBMT scores'!A:Z,19,FALSE) -> 0.00 | S22: =VLOOKUP(A22,'PBMT scores'!A:Z,20,FALSE) -> 0.00
A23: 99-20-7 | B23: =VLOOKUP(A23,'PBMT scores'!A:Z,3,FALSE) -> Trehalose(1) | C23: =VLOOKUP(A23,'PBMT scores'!A:Z,4,FALSE) -> REACH | E23: =VLOOKUP(A23,'PBMT scores'!A:Z,6,FALSE) -> 0.00 | F23: =VLOOKUP(A23,'PBMT scores'!A:Z,7,FALSE) -> 0.00 | H23: =VLOOKUP(A23,'PBMT scores'!A:Z,9,FALSE) -> 0.00 | I23: =VLOOKUP(A23,'PBMT scores'!A:Z,10,FALSE) -> 0.00 | J23: =VLOOKUP(A23,'PBMT scores'!A:Z,11,FALSE) -> 0.00 | L23: =VLOOKUP(A23,'PBMT scores'!A:Z,13,FALSE) -> 0.01 | M23: =VLOOKUP(A23,'PBMT scores'!A:Z,14,FALSE) -> 0.01 | N23: =VLOOKUP(A23,'PBMT scores'!A:Z,15,FALSE) -> 0.97 | O23: =VLOOKUP(A23,'PBMT scores'!A:Z,16,FALSE) -> 0.00 | R23: =VLOOKUP(A23,'PBMT scores'!A:Z,19,FALSE) -> 0.00 | S23: =VLOOKUP(A23,'PBMT scores'!A:Z,20,FALSE) -> 0.00
A24: 89-00-9 | B24: =VLOOKUP(A24,'PBMT scores'!A:Z,3,FALSE) -> Pyridine-2,3-dicarboxylic acid(1) | C24: =VLOOKUP(A24,'PBMT scores'!A:Z,4,FALSE) -> REACH | E24: =VLOOKUP(A24,'PBMT scores'!A:Z,6,FALSE) -> 0.00 | F24: =VLOOKUP(A24,'PBMT scores'!A:Z,7,FALSE) -> 0.00 | H24: =VLOOKUP(A24,'PBMT scores'!A:Z,9,FALSE) -> 0.00 | I24: =VLOOKUP(A24,'PBMT scores'!A:Z,10,FALSE) -> 0.00 | J24: =VLOOKUP(A24,'PBMT scores'!A:Z,11,FALSE) -> 0.00 | L24: =VLOOKUP(A24,'PBMT scores'!A:Z,13,FALSE) -> 0.16 | M24: =VLOOKUP(A24,'PBMT scores'!A:Z,14,FALSE) -> 0.08 | N24: =VLOOKUP(A24,'PBMT scores'!A:Z,15,FALSE) -> 0.77 | O24: =VLOOKUP(A24,'PBMT scores'!A:Z,16,FALSE) -> 0.00 | R24: =VLOOKUP(A24,'PBMT scores'!A:Z,19,FALSE) -> 0.00 | S24: =VLOOKUP(A24,'PBMT scores'!A:Z,20,FALSE) -> 0.00
A25: 1330-80-9 | B25: =VLOOKUP(A25,'PBMT scores'!A:Z,3,FALSE) -> Oleic acid, monoester with propane-1,2-diol(1) | C25: =VLOOKUP(A25,'PBMT scores'!A:Z,4,FALSE) -> REACH | E25: =VLOOKUP(A25,'PBMT scores'!A:Z,6,FALSE) -> 0.00 | F25: =VLOOKUP(A25,'PBMT scores'!A:Z,7,FALSE) -> 0.00 | H25: =VLOOKUP(A25,'PBMT scores'!A:Z,9,FALSE) -> 0.00 | I25: =VLOOKUP(A25,'PBMT scores'!A:Z,10,FALSE) -> 0.00 | J25: =VLOOKUP(A25,'PBMT scores'!A:Z,11,FALSE) -> 0.00 | L25: =VLOOKUP(A25,'PBMT scores'!A:Z,13,FALSE) -> 0.08 | M25: =VLOOKUP(A25,'PBMT scores'!A:Z,14,FALSE) -> 0.56 | N25: =VLOOKUP(A25,'PBMT scores'!A:Z,15,FALSE) -> 0.14 | O25: =VLOOKUP(A25,'PBMT scores'!A:Z,16,FALSE) -> 0.17 | R25: =VLOOKUP(A25,'PBMT scores'!A:Z,19,FALSE) -> 0.00 | S25: =VLOOKUP(A25,'PBMT scores'!A:Z,20,FALSE) -> 0.00
A26: 140-04-5 | B26: =VLOOKUP(A26,'PBMT scores'!A:Z,3,FALSE) -> Butyl O-acetylricinoleate(1) | C26: =VLOOKUP(A26,'PBMT scores'!A:Z,4,FALSE) -> REACH | E26: =VLOOKUP(A26,'PBMT scores'!A:Z,6,FALSE) -> 0.00 | F26: =VLOOKUP(A26,'PBMT scores'!A:Z,7,FALSE) -> 0.00 | H26: =VLOOKUP(A26,'PBMT scores'!A:Z,9,FALSE) -> 0.00 | I26: =VLOOKUP(A26,'PBMT scores'!A:Z,10,FALSE) -> 0.00 | J26: =VLOOKUP(A26,'PBMT scores'!A:Z,11,FALSE) -> 0.00 | L26: =VLOOKUP(A26,'PBMT scores'!A:Z,13,FALSE) -> 0.05 | M26: =VLOOKUP(A26,'PBMT scores'!A:Z,14,FALSE) -> 0.45 | N26: =VLOOKUP(A26,'PBMT scores'!A:Z,15,FALSE) -> 0.07 | O26: =VLOOKUP(A26,'PBMT scores'!A:Z,16,FALSE) -> 0.22 | R26: =VLOOKUP(A26,'PBMT scores'!A:Z,19,FALSE) -> 0.00 | S26: =VLOOKUP(A26,'PBMT scores'!A:Z,20,FALSE) -> 0.00
A27: 102-22-7 | B27: =VLOOKUP(A27,'PBMT scores'!A:Z,3,FALSE) -> Geranyl phenylacetate(1) | C27: =VLOOKUP(A27,'PBMT scores'!A:Z,4,FALSE) -> REACH | E27: =VLOOKUP(A27,'PBMT scores'!A:Z,6,FALSE) -> 0.00 | F27: =VLOOKUP(A27,'PBMT scores'!A:Z,7,FALSE) -> 0.00 | H27: =VLOOKUP(A27,'PBMT scores'!A:Z,9,FALSE) -> 0.00 | I27: =VLOOKUP(A27,'PBMT scores'!A:Z,10,FALSE) -> 0.00 | J27: =VLOOKUP(A27,'PBMT scores'!A:Z,11,FALSE) -> 0.00 | L27: =VLOOKUP(A27,'PBMT scores'!A:Z,13,FALSE) -> 0.22 | M27: =VLOOKUP(A27,'PBMT scores'!A:Z,14,FALSE) -> 0.47 | N27: =VLOOKUP(A27,'PBMT scores'!A:Z,15,FALSE) -> 0.17 | O27: =VLOOKUP(A27,'PBMT scores'!A:Z,16,FALSE) -> 0.46 | R27: =VLOOKUP(A27,'PBMT scores'!A:Z,19,FALSE) -> 0.00 | S27: =VLOOKUP(A27,'PBMT scores'!A:Z,20,FALSE) -> 0.00
A28: 35044-59-8 | B28: =VLOOKUP(A28,'PBMT scores'!A:Z,3,FALSE) -> Ethyl 2,6,6-trimethylcyclohexa-1,3-ene-1-carboxylate(1) | C28: =VLOOKUP(A28,'PBMT scores'!A:Z,4,FALSE) -> REACH | E28: =VLOOKUP(A28,'PBMT scores'!A:Z,6,FALSE) -> 0.00 | F28: =VLOOKUP(A28,'PBMT scores'!A:Z,7,FALSE) -> 0.00 | H28: =VLOOKUP(A28,'PBMT scores'!A:Z,9,FALSE) -> 0.00 | I28: =VLOOKUP(A28,'PBMT scores'!A:Z,10,FALSE) -> 0.00 | J28: =VLOOKUP(A28,'PBMT scores'!A:Z,11,FALSE) -> 0.00 | L28: =VLOOKUP(A28,'PBMT scores'!A:Z,13,FALSE) -> 0.21 | M28: =VLOOKUP(A28,'PBMT scores'!A:Z,14,FALSE) -> 0.11 | N28: =VLOOKUP(A28,'PBMT scores'!A:Z,15,FALSE) -> 0.30 | O28: =VLOOKUP(A28,'PBMT scores'!A:Z,16,FALSE) -> 0.15 | R28: =VLOOKUP(A28,'PBMT scores'!A:Z,19,FALSE) -> 0.00 | S28: =VLOOKUP(A28,'PBMT scores'!A:Z,20,FALSE) -> 0.00
A29: 103-41-3 | B29: =VLOOKUP(A29,'PBMT scores'!A:Z,3,FALSE) -> Benzyl cinnamate(1) | C29: =VLOOKUP(A29,'PBMT scores'!A:Z,4,FALSE) -> REACH | E29: =VLOOKUP(A29,'PBMT scores'!A:Z,6,FALSE) -> 0.00 | F29: =VLOOKUP(A29,'PBMT scores'!A:Z,7,FALSE) -> 0.00 | H29: =VLOOKUP(A29,'PBMT scores'!A:Z,9,FALSE) -> 0.00 | I29: =VLOOKUP(A29,'PBMT scores'!A:Z,10,FALSE) -> 0.00 | J29: =VLOOKUP(A29,'PBMT scores'!A:Z,11,FALSE) -> 0.00 | L29: =VLOOKUP(A29,'PBMT scores'!A:Z,13,FALSE) -> 0.14 | M29: =VLOOKUP(A29,'PBMT scores'!A:Z,14,FALSE) -> 0.17 | N29: =VLOOKUP(A29,'PBMT scores'!A:Z,15,FALSE) -> 0.32 | O29: =VLOOKUP(A29,'PBMT scores'!A:Z,16,FALSE) -> 0.09 | R29: =VLOOKUP(A29,'PBMT scores'!A:Z,19,FALSE) -> 0.00 | S29: =VLOOKUP(A29,'PBMT scores'!A:Z,20,FALSE) -> 0.00
A30: 544-35-4 | B30: =VLOOKUP(A30,'PBMT scores'!A:Z,3,FALSE) -> Ethyl linoleate(1) | C30: =VLOOKUP(A30,'PBMT scores'!A:Z,4,FALSE) -> REACH | E30: =VLOOKUP(A30,'PBMT scores'!A:Z,6,FALSE) -> 0.00 | F30: =VLOOKUP(A30,'PBMT scores'!A:Z,7,FALSE) -> 0.00 | H30: =VLOOKUP(A30,'PBMT scores'!A:Z,9,FALSE) -> 0.00 | I30: =VLOOKUP(A30,'PBMT scores'!A:Z,10,FALSE) -> 0.00 | J30: =VLOOKUP(A30,'PBMT scores'!A:Z,11,FALSE) -> 0.00 | L30: =VLOOKUP(A30,'PBMT scores'!A:Z,13,FALSE) -> 0.10 | M30: =VLOOKUP(A30,'PBMT scores'!A:Z,14,FALSE) -> 0.63 | N30: =VLOOKUP(A30,'PBMT scores'!A:Z,15,FALSE) -> 0.08 | O30: =VLOOKUP(A30,'PBMT scores'!A:Z,16,FALSE) -> 0.69 | R30: =VLOOKUP(A30,'PBMT scores'!A:Z,19,FALSE) -> 0.00 | S30: =VLOOKUP(A30,'PBMT scores'!A:Z,20,FALSE) -> 0.00
A31: 627-89-4 | B31: =VLOOKUP(A31,'PBMT scores'!A:Z,3,FALSE) -> Isopentyl oleate(1) | C31: =VLOOKUP(A31,'PBMT scores'!A:Z,4,FALSE) -> REACH | E31: =VLOOKUP(A31,'PBMT scores'!A:Z,6,FALSE) -> 0.00 | F31: =VLOOKUP(A31,'PBMT scores'!A:Z,7,FALSE) -> 0.00 | H31: =VLOOKUP(A31,'PBMT scores'!A:Z,9,FALSE) -> 0.00 | I31: =VLOOKUP(A31,'PBMT scores'!A:Z,10,FALSE) -> 0.00 | J31: =VLOOKUP(A31,'PBMT scores'!A:Z,11,FALSE) -> 0.00 | L31: =VLOOKUP(A31,'PBMT scores'!A:Z,13,FALSE) -> 0.14 | M31: =VLOOKUP(A31,'PBMT scores'!A:Z,14,FALSE) -> 0.71 | N31: =VLOOKUP(A31,'PBMT scores'!A:Z,15,FALSE) -> 0.05 | O31: =VLOOKUP(A31,'PBMT scores'!A:Z,16,FALSE) -> 0.34 | R31: =VLOOKUP(A31,'PBMT scores'!A:Z,19,FALSE) -> 0.00 | S31: =VLOOKUP(A31,'PBMT scores'!A:Z,20,FALSE) -> 0.00
A32: 3965-55-7 | B32: =VLOOKUP(A32,'PBMT scores'!A:Z,3,FALSE) -> Sodium dimethyl 5-sulphonatoisophthalate(1) | C32: =VLOOKUP(A32,'PBMT scores'!A:Z,4,FALSE) -> REACH | E32: =VLOOKUP(A32,'PBMT scores'!A:Z,6,FALSE) -> 0.00 | F32: =VLOOKUP(A32,'PBMT scores'!A:Z,7,FALSE) -> 0.00 | H32: =VLOOKUP(A32,'PBMT scores'!A:Z,9,FALSE) -> 0.00 | I32: =VLOOKUP(A32,'PBMT scores'!A:Z,10,FALSE) -> 0.00 | J32: =VLOOKUP(A32,'PBMT scores'!A:Z,11,FALSE) -> 0.00 | L32: =VLOOKUP(A32,'PBMT scores'!A:Z,13,FALSE) -> 0.09 | M32: =VLOOKUP(A32,'PBMT scores'!A:Z,14,FALSE) -> 0.05 | N32: =VLOOKUP(A32,'PBMT scores'!A:Z,15,FALSE) -> 0.89 | O32: =VLOOKUP(A32,'PBMT scores'!A:Z,16,FALSE) -> 0.00 | R32: =VLOOKUP(A32,'PBMT scores'!A:Z,19,FALSE) -> 0.00 | S32: =VLOOKUP(A32,'PBMT scores'!A:Z,20,FALSE) -> 0.00
A33: 111-59-1 | B33: =VLOOKUP(A33,'PBMT scores'!A:Z,3,FALSE) -> Propyl oleate(1) | C33: =VLOOKUP(A33,'PBMT scores'!A:Z,4,FALSE) -> REACH | E33: =VLOOKUP(A33,'PBMT scores'!A:Z,6,FALSE) -> 0.00 | F33: =VLOOKUP(A33,'PBMT scores'!A:Z,7,FALSE) -> 0.00 | H33: =VLOOKUP(A33,'PBMT scores'!A:Z,9,FALSE) -> 0.00 | I33: =VLOOKUP(A33,'PBMT scores'!A:Z,10,FALSE) -> 0.00 | J33: =VLOOKUP(A33,'PBMT scores'!A:Z,11,FALSE) -> 0.00 | L33: =VLOOKUP(A33,'PBMT scores'!A:Z,13,FALSE) -> 0.11 | M33: =VLOOKUP(A33,'PBMT scores'!A:Z,14,FALSE) -> 0.67 | N33: =VLOOKUP(A33,'PBMT scores'!A:Z,15,FALSE) -> 0.07 | O33: =VLOOKUP(A33,'PBMT scores'!A:Z,16,FALSE) -> 0.62 | R33: =VLOOKUP(A33,'PBMT scores'!A:Z,19,FALSE) -> 0.00 | S33: =VLOOKUP(A33,'PBMT scores'!A:Z,20,FALSE) -> 0.01
A34: 103-61-7 | B34: =VLOOKUP(A34,'PBMT scores'!A:Z,3,FALSE) -> Cinnamyl butyrate(1) | C34: =VLOOKUP(A34,'PBMT scores'!A:Z,4,FALSE) -> REACH | E34: =VLOOKUP(A34,'PBMT scores'!A:Z,6,FALSE) -> 0.00 | F34: =VLOOKUP(A34,'PBMT scores'!A:Z,7,FALSE) -> 0.00 | H34: =VLOOKUP(A34,'PBMT scores'!A:Z,9,FALSE) -> 0.00 | I34: =VLOOKUP(A34,'PBMT scores'!A:Z,10,FALSE) -> 0.00 | J34: =VLOOKUP(A34,'PBMT scores'!A:Z,11,FALSE) -> 0.00 | L34: =VLOOKUP(A34,'PBMT scores'!A:Z,13,FALSE) -> 0.12 | M34: =VLOOKUP(A34,'PBMT scores'!A:Z,14,FALSE) -> 0.10 | N34: =VLOOKUP(A34,'PBMT scores'!A:Z,15,FALSE) -> 0.34 | O34: =VLOOKUP(A34,'PBMT scores'!A:Z,16,FALSE) -> 0.13 | R34: =VLOOKUP(A34,'PBMT scores'!A:Z,19,FALSE) -> 0.00 | S34: =VLOOKUP(A34,'PBMT scores'!A:Z,20,FALSE) -> 0.00
A35: 10399-13-0 | B35: =VLOOKUP(A35,'PBMT scores'!A:Z,3,FALSE) -> Methyl ?-cyclohexylmandelate(1) | C35: =VLOOKUP(A35,'PBMT scores'!A:Z,4,FALSE) -> REACH | E35: =VLOOKUP(A35,'PBMT scores'!A:Z,6,FALSE) -> 0.00 | F35: =VLOOKUP(A35,'PBMT scores'!A:Z,7,FALSE) -> 0.00 | H35: =VLOOKUP(A35,'PBMT scores'!A:Z,9,FALSE) -> 0.00 | I35: =VLOOKUP(A35,'PBMT scores'!A:Z,10,FALSE) -> 0.00 | J35: =VLOOKUP(A35,'PBMT scores'!A:Z,11,FALSE) -> 0.00 | L35: =VLOOKUP(A35,'PBMT scores'!A:Z,13,FALSE) -> 0.27 | M35: =VLOOKUP(A35,'PBMT scores'!A:Z,14,FALSE) -> 0.25 | N35: =VLOOKUP(A35,'PBMT scores'!A:Z,15,FALSE) -> 0.48 | O35: =VLOOKUP(A35,'PBMT scores'!A:Z,16,FALSE) -> 0.06 | R35: =VLOOKUP(A35,'PBMT scores'!A:Z,19,FALSE) -> 0.00 | S35: =VLOOKUP(A35,'PBMT scores'!A:Z,20,FALSE) -> 0.00
A36: 2373-38-8 | B36: =VLOOKUP(A36,'PBMT scores'!A:Z,3,FALSE) -> Sodium 1,4-bis(1,3-dimethylbutyl) sulphonatosuccinate(1) | C36: =VLOOKUP(A36,'PBMT scores'!A:Z,4,FALSE) -> REACH | E36: =VLOOKUP(A36,'PBMT scores'!A:Z,6,FALSE) -> 0.00 | F36: =VLOOKUP(A36,'PBMT scores'!A:Z,7,FALSE) -> 0.00 | H36: =VLOOKUP(A36,'PBMT scores'!A:Z,9,FALSE) -> 0.00 | I36: =VLOOKUP(A36,'PBMT scores'!A:Z,10,FALSE) -> 0.00 | J36: =VLOOKUP(A36,'PBMT scores'!A:Z,11,FALSE) -> 0.00 | L36: =VLOOKUP(A36,'PBMT scores'!A:Z,13,FALSE) -> 0.13 | M36: =VLOOKUP(A36,'PBMT scores'!A:Z,14,FALSE) -> 0.17 | N36: =VLOOKUP(A36,'PBMT scores'!A:Z,15,FALSE) -> 0.53 | O36: =VLOOKUP(A36,'PBMT scores'!A:Z,16,FALSE) -> 0.00 | R36: =VLOOKUP(A36,'PBMT scores'!A:Z,19,FALSE) -> 0.00 | S36: =VLOOKUP(A36,'PBMT scores'!A:Z,20,FALSE) -> 0.00
A37: 72403-67-9 | B37: =VLOOKUP(A37,'PBMT scores'!A:Z,3,FALSE) -> 3(or 4)-(4-methylpenten-3-yl)cyclohex-3-ene-1-methyl acetate(1) | C37: =VLOOKUP(A37,'PBMT scores'!A:Z,4,FALSE) -> REACH | E37: =VLOOKUP(A37,'PBMT scores'!A:Z,6,FALSE) -> 0.00 | F37: =VLOOKUP(A37,'PBMT scores'!A:Z,7,FALSE) -> 0.00 | H37: =VLOOKUP(A37,'PBMT scores'!A:Z,9,FALSE) -> 0.00 | I37: =VLOOKUP(A37,'PBMT scores'!A:Z,10,FALSE) -> 0.00 | J37: =VLOOKUP(A37,'PBMT scores'!A:Z,11,FALSE) -> 0.00 | L37: =VLOOKUP(A37,'PBMT scores'!A:Z,13,FALSE) -> 0.15 | M37: =VLOOKUP(A37,'PBMT scores'!A:Z,14,FALSE) -> 0.32 | N37: =VLOOKUP(A37,'PBMT scores'!A:Z,15,FALSE) -> 0.20 | O37: =VLOOKUP(A37,'PBMT scores'!A:Z,16,FALSE) -> 0.45 | R37: =VLOOKUP(A37,'PBMT scores'!A:Z,19,FALSE) -> 0.00 | S37: =VLOOKUP(A37,'PBMT scores'!A:Z,20,FALSE) -> 0.00
A38: 37910-77-3 | B38: =VLOOKUP(A38,'PBMT scores'!A:Z,3,FALSE) -> Ethyl (Z)-docos-13-enoate(1) | C38: =VLOOKUP(A38,'PBMT scores'!A:Z,4,FALSE) -> REACH | E38: =VLOOKUP(A38,'PBMT scores'!A:Z,6,FALSE) -> 0.00 | F38: =VLOOKUP(A38,'PBMT scores'!A:Z,7,FALSE) -> 0.00 | H38: =VLOOKUP(A38,'PBMT scores'!A:Z,9,FALSE) -> 0.00 | I38: =VLOOKUP(A38,'PBMT scores'!A:Z,10,FALSE) -> 0.00 | J38: =VLOOKUP(A38,'PBMT scores'!A:Z,11,FALSE) -> 0.00 | L38: =VLOOKUP(A38,'PBMT scores'!A:Z,13,FALSE) -> 0.15 | M38: =VLOOKUP(A38,'PBMT scores'!A:Z,14,FALSE) -> 0.73 | N38: =VLOOKUP(A38,'PBMT scores'!A:Z,15,FALSE) -> 0.04 | O38: =VLOOKUP(A38,'PBMT scores'!A:Z,16,FALSE) -> 0.17 | R38: =VLOOKUP(A38,'PBMT scores'!A:Z,19,FALSE) -> 0.00 | S38: =VLOOKUP(A38,'PBMT scores'!A:Z,20,FALSE) -> 0.00
A39: 112-11-8 | B39: =VLOOKUP(A39,'PBMT scores'!A:Z,3,FALSE) -> Isopropyl oleate(1) | C39: =VLOOKUP(A39,'PBMT scores'!A:Z,4,FALSE) -> REACH | E39: =VLOOKUP(A39,'PBMT scores'!A:Z,6,FALSE) -> 0.00 | F39: =VLOOKUP(A39,'PBMT scores'!A:Z,7,FALSE) -> 0.00 | H39: =VLOOKUP(A39,'PBMT scores'!A:Z,9,FALSE) -> 0.00 | I39: =VLOOKUP(A39,'PBMT scores'!A:Z,10,FALSE) -> 0.00 | J39: =VLOOKUP(A39,'PBMT scores'!A:Z,11,FALSE) -> 0.00 | L39: =VLOOKUP(A39,'PBMT scores'!A:Z,13,FALSE) -> 0.11 | M39: =VLOOKUP(A39,'PBMT scores'!A:Z,14,FALSE) -> 0.67 | N39: =VLOOKUP(A39,'PBMT scores'!A:Z,15,FALSE) -> 0.07 | O39: =VLOOKUP(A39,'PBMT scores'!A:Z,16,FALSE) -> 0.63 | R39: =VLOOKUP(A39,'PBMT scores'!A:Z,19,FALSE) -> 0.00 | S39: =VLOOKUP(A39,'PBMT scores'!A:Z,20,FALSE) -> 0.01
A40: 585-88-6 | B40: =VLOOKUP(A40,'PBMT scores'!A:Z,3,FALSE) -> 4-O-?-D-glucopyranosyl-D-glucitol(1) | C40: =VLOOKUP(A40,'PBMT scores'!A:Z,4,FALSE) -> REACH | E40: =VLOOKUP(A40,'PBMT scores'!A:Z,6,FALSE) -> 0.00 | F40: =VLOOKUP(A40,'PBMT scores'!A:Z,7,FALSE) -> 0.00 | H40: =VLOOKUP(A40,'PBMT scores'!A:Z,9,FALSE) -> 0.00 | I40: =VLOOKUP(A40,'PBMT scores'!A:Z,10,FALSE) -> 0.00 | J40: =VLOOKUP(A40,'PBMT scores'!A:Z,11,FALSE) -> 0.00 | L40: =VLOOKUP(A40,'PBMT scores'!A:Z,13,FALSE) -> 0.01 | M40: =VLOOKUP(A40,'PBMT scores'!A:Z,14,FALSE) -> 0.00 | N40: =VLOOKUP(A40,'PBMT scores'!A:Z,15,FALSE) -> 0.97 | O40: =VLOOKUP(A40,'PBMT scores'!A:Z,16,FALSE) -> 0.00 | R40: =VLOOKUP(A40,'PBMT scores'!A:Z,19,FALSE) -> 0.01 | S40: =VLOOKUP(A40,'PBMT scores'!A:Z,20,FALSE) -> 0.00
A41: 103-53-7 | B41: =VLOOKUP(A41,'PBMT scores'!A:Z,3,FALSE) -> Phenethyl cinnamate(1) | C41: =VLOOKUP(A41,'PBMT scores'!A:Z,4,FALSE) -> REACH | E41: =VLOOKUP(A41,'PBMT scores'!A:Z,6,FALSE) -> 0.00 | F41: =VLOOKUP(A41,'PBMT scores'!A:Z,7,FALSE) -> 0.00 | H41: =VLOOKUP(A41,'PBMT scores'!A:Z,9,FALSE) -> 0.00 | I41: =VLOOKUP(A41,'PBMT scores'!A:Z,10,FALSE) -> 0.00 | J41: =VLOOKUP(A41,'PBMT scores'!A:Z,11,FALSE) -> 0.00 | L41: =VLOOKUP(A41,'PBMT scores'!A:Z,13,FALSE) -> 0.18 | M41: =VLOOKUP(A41,'PBMT scores'!A:Z,14,FALSE) -> 0.23 | N41: =VLOOKUP(A41,'PBMT scores'!A:Z,15,FALSE) -> 0.28 | O41: =VLOOKUP(A41,'PBMT scores'!A:Z,16,FALSE) -> 0.14 | R41: =VLOOKUP(A41,'PBMT scores'!A:Z,19,FALSE) -> 0.00 | S41: =VLOOKUP(A41,'PBMT scores'!A:Z,20,FALSE) -> 0.00
A42: 61-54-1 | B42: =VLOOKUP(A42,'PBMT scores'!A:Z,3,FALSE) -> 2-(1H-indol-3yl)ethanamine(1), 2-(indol-3-yl)ethylamine(1) | C42: =VLOOKUP(A42,'PBMT scores'!A:Z,4,FALSE) -> REACH | E42: =VLOOKUP(A42,'PBMT scores'!A:Z,6,FALSE) -> 0.00 | F42: =VLOOKUP(A42,'PBMT scores'!A:Z,7,FALSE) -> 0.00 | H42: =VLOOKUP(A42,'PBMT scores'!A:Z,9,FALSE) -> 0.00 | I42: =VLOOKUP(A42,'PBMT scores'!A:Z,10,FALSE) -> 0.00 | J42: =VLOOKUP(A42,'PBMT scores'!A:Z,11,FALSE) -> 0.00 | L42: =VLOOKUP(A42,'PBMT scores'!A:Z,13,FALSE) -> 0.16 | M42: =VLOOKUP(A42,'PBMT scores'!A:Z,14,FALSE) -> 0.08 | N42: =VLOOKUP(A42,'PBMT scores'!A:Z,15,FALSE) -> 0.54 | O42: =VLOOKUP(A42,'PBMT scores'!A:Z,16,FALSE) -> 0.05 | R42: =VLOOKUP(A42,'PBMT scores'!A:Z,19,FALSE) -> 0.00 | S42: =VLOOKUP(A42,'PBMT scores'!A:Z,20,FALSE) -> 0.00
A43: 3025-30-7 | B43: =VLOOKUP(A43,'PBMT scores'!A:Z,3,FALSE) -> Ethyl (2E,4Z)-2,4-decadienoate(1) | C43: =VLOOKUP(A43,'PBMT scores'!A:Z,4,FALSE) -> REACH | E43: =VLOOKUP(A43,'PBMT scores'!A:Z,6,FALSE) -> 0.00 | F43: =VLOOKUP(A43,'PBMT scores'!A:Z,7,FALSE) -> 0.00 | H43: =VLOOKUP(A43,'PBMT scores'!A:Z,9,FALSE) -> 0.00 | I43: =VLOOKUP(A43,'PBMT scores'!A:Z,10,FALSE) -> 0.00 | J43: =VLOOKUP(A43,'PBMT scores'!A:Z,11,FALSE) -> 0.00 | L43: =VLOOKUP(A43,'PBMT scores'!A:Z,13,FALSE) -> 0.05 | M43: =VLOOKUP(A43,'PBMT scores'!A:Z,14,FALSE) -> 0.03 | N43: =VLOOKUP(A43,'PBMT scores'!A:Z,15,FALSE) -> 0.29 | O43: =VLOOKUP(A43,'PBMT scores'!A:Z,16,FALSE) -> 0.16 | R43: =VLOOKUP(A43,'PBMT scores'!A:Z,19,FALSE) -> 0.00 | S43: =VLOOKUP(A43,'PBMT scores'!A:Z,20,FALSE) -> 0.00
A44: 6337-43-5 | B44: =VLOOKUP(A44,'PBMT scores'!A:Z,3,FALSE) -> Tetraethyl 2,2'-(1,4-phenylenedimethylidyne)bismalonate(1) | C44: =VLOOKUP(A44,'PBMT scores'!A:Z,4,FALSE) -> REACH | E44: =VLOOKUP(A44,'PBMT scores'!A:Z,6,FALSE) -> 0.00 | F44: =VLOOKUP(A44,'PBMT scores'!A:Z,7,FALSE) -> 0.00 | H44: =VLOOKUP(A44,'PBMT scores'!A:Z,9,FALSE) -> 0.00 | I44: =VLOOKUP(A44,'PBMT scores'!A:Z,10,FALSE) -> 0.00 | J44: =VLOOKUP(A44,'PBMT scores'!A:Z,11,FALSE) -> 0.00 | L44: =VLOOKUP(A44,'PBMT scores'!A:Z,13,FALSE) -> 0.15 | M44: =VLOOKUP(A44,'PBMT scores'!A:Z,14,FALSE) -> 0.18 | N44: =VLOOKUP(A44,'PBMT scores'!A:Z,15,FALSE) -> 0.34 | O44: =VLOOKUP(A44,'PBMT scores'!A:Z,16,FALSE) -> 0.00 | R44: =VLOOKUP(A44,'PBMT scores'!A:Z,19,FALSE) -> 0.01 | S44: =VLOOKUP(A44,'PBMT scores'!A:Z,20,FALSE) -> 0.00
A45: 103-56-0 | B45: =VLOOKUP(A45,'PBMT scores'!A:Z,3,FALSE) -> Cinnamyl propionate(1) | C45: =VLOOKUP(A45,'PBMT scores'!A:Z,4,FALSE) -> REACH | E45: =VLOOKUP(A45,'PBMT scores'!A:Z,6,FALSE) -> 0.00 | F45: =VLOOKUP(A45,'PBMT scores'!A:Z,7,FALSE) -> 0.00 | H45: =VLOOKUP(A45,'PBMT scores'!A:Z,9,FALSE) -> 0.00 | I45: =VLOOKUP(A45,'PBMT scores'!A:Z,10,FALSE) -> 0.00 | J45: =VLOOKUP(A45,'PBMT scores'!A:Z,11,FALSE) -> 0.00 | L45: =VLOOKUP(A45,'PBMT scores'!A:Z,13,FALSE) -> 0.11 | M45: =VLOOKUP(A45,'PBMT scores'!A:Z,14,FALSE) -> 0.08 | N45: =VLOOKUP(A45,'PBMT scores'!A:Z,15,FALSE) -> 0.38 | O45: =VLOOKUP(A45,'PBMT scores'!A:Z,16,FALSE) -> 0.09 | R45: =VLOOKUP(A45,'PBMT scores'!A:Z,19,FALSE) -> 0.01 | S45: =VLOOKUP(A45,'PBMT scores'!A:Z,20,FALSE) -> 0.00
A46: 2424-61-5 | B46: =VLOOKUP(A46,'PBMT scores'!A:Z,3,FALSE) -> Dodecyl hydrogen maleate(1) | C46: =VLOOKUP(A46,'PBMT scores'!A:Z,4,FALSE) -> REACH | E46: =VLOOKUP(A46,'PBMT scores'!A:Z,6,FALSE) -> 0.00 | F46: =VLOOKUP(A46,'PBMT scores'!A:Z,7,FALSE) -> 0.00 | H46: =VLOOKUP(A46,'PBMT scores'!A:Z,9,FALSE) -> 0.00 | I46: =VLOOKUP(A46,'PBMT scores'!A:Z,10,FALSE) -> 0.00 | J46: =VLOOKUP(A46,'PBMT scores'!A:Z,11,FALSE) -> 0.00 | L46: =VLOOKUP(A46,'PBMT scores'!A:Z,13,FALSE) -> 0.03 | M46: =VLOOKUP(A46,'PBMT scores'!A:Z,14,FALSE) -> 0.21 | N46: =VLOOKUP(A46,'PBMT scores'!A:Z,15,FALSE) -> 0.25 | O46: =VLOOKUP(A46,'PBMT scores'!A:Z,16,FALSE) -> 0.13 | R46: =VLOOKUP(A46,'PBMT scores'!A:Z,19,FALSE) -> 0.00 | S46: =VLOOKUP(A46,'PBMT scores'!A:Z,20,FALSE) -> 0.00
A47: 68921-53-9 | B47: =VLOOKUP(A47,'PBMT scores'!A:Z,3,FALSE) -> 2-Butenedioic acid (E)-, di-C18-22-alkyl esters(1) | C47: =VLOOKUP(A47,'PBMT scores'!A:Z,4,FALSE) -> REACH | E47: =VLOOKUP(A47,'PBMT scores'!A:Z,6,FALSE) -> 0.00 | F47: =VLOOKUP(A47,'PBMT scores'!A:Z,7,FALSE) -> 0.00 | H47: =VLOOKUP(A47,'PBMT scores'!A:Z,9,FALSE) -> 0.00 | I47: =VLOOKUP(A47,'PBMT scores'!A:Z,10,FALSE) -> 0.00 | J47: =VLOOKUP(A47,'PBMT scores'!A:Z,11,FALSE) -> 0.00 | L47: =VLOOKUP(A47,'PBMT scores'!A:Z,13,FALSE) -> 0.21 | M47: =VLOOKUP(A47,'PBMT scores'!A:Z,14,FALSE) -> 0.80 | N47: =VLOOKUP(A47,'PBMT scores'!A:Z,15,FALSE) -> 0.00 | O47: =VLOOKUP(A47,'PBMT scores'!A:Z,16,FALSE) -> 0.00 | R47: =VLOOKUP(A47,'PBMT scores'!A:Z,19,FALSE) -> 0.00 | S47: =VLOOKUP(A47,'PBMT scores'!A:Z,20,FALSE) -> 0.00
A48: 68921-52-8 | B48: =VLOOKUP(A48,'PBMT scores'!A:Z,3,FALSE) -> 2-Butenedioic acid (E)-, di-C16-18-alkyl esters(1) | C48: =VLOOKUP(A48,'PBMT scores'!A:Z,4,FALSE) -> REACH | E48: =VLOOKUP(A48,'PBMT scores'!A:Z,6,FALSE) -> 0.00 | F48: =VLOOKUP(A48,'PBMT scores'!A:Z,7,FALSE) -> 0.00 | H48: =VLOOKUP(A48,'PBMT scores'!A:Z,9,FALSE) -> 0.00 | I48: =VLOOKUP(A48,'PBMT scores'!A:Z,10,FALSE) -> 0.00 | J48: =VLOOKUP(A48,'PBMT scores'!A:Z,11,FALSE) -> 0.00 | L48: =VLOOKUP(A48,'PBMT scores'!A:Z,13,FALSE) -> 0.18 | M48: =VLOOKUP(A48,'PBMT scores'!A:Z,14,FALSE) -> 0.77 | N48: =VLOOKUP(A48,'PBMT scores'!A:Z,15,FALSE) -> 0.00 | O48: =VLOOKUP(A48,'PBMT scores'!A:Z,16,FALSE) -> 0.00 | R48: =VLOOKUP(A48,'PBMT scores'!A:Z,19,FALSE) -> 0.00 | S48: =VLOOKUP(A48,'PBMT scores'!A:Z,20,FALSE) -> 0.00
A49: 40910-49-4 | B49: =VLOOKUP(A49,'PBMT scores'!A:Z,3,FALSE) -> 3-(1-ethoxyethoxy)-3,7-dimethylocta-1,6-diene(1) | C49: =VLOOKUP(A49,'PBMT scores'!A:Z,4,FALSE) -> REACH | E49: =VLOOKUP(A49,'PBMT scores'!A:Z,6,FALSE) -> 0.00 | F49: =VLOOKUP(A49,'PBMT scores'!A:Z,7,FALSE) -> 0.00 | H49: =VLOOKUP(A49,'PBMT scores'!A:Z,9,FALSE) -> 0.00 | I49: =VLOOKUP(A49,'PBMT scores'!A:Z,10,FALSE) -> 0.00 | J49: =VLOOKUP(A49,'PBMT scores'!A:Z,11,FALSE) -> 0.00 | L49: =VLOOKUP(A49,'PBMT scores'!A:Z,13,FALSE) -> 0.37 | M49: =VLOOKUP(A49,'PBMT scores'!A:Z,14,FALSE) -> 0.20 | N49: =VLOOKUP(A49,'PBMT scores'!A:Z,15,FALSE) -> 0.28 | O49: =VLOOKUP(A49,'PBMT scores'!A:Z,16,FALSE) -> 0.51 | R49: =VLOOKUP(A49,'PBMT scores'!A:Z,19,FALSE) -> 0.01 | S49: =VLOOKUP(A49,'PBMT scores'!A:Z,20,FALSE) -> 0.01
A50: 68921-51-7 | B50: =VLOOKUP(A50,'PBMT scores'!A:Z,3,FALSE) -> 2-Butenedioic acid (E)-, di-C12-18-alkyl esters(1) | C50: =VLOOKUP(A50,'PBMT scores'!A:Z,4,FALSE) -> REACH | E50: =VLOOKUP(A50,'PBMT scores'!A:Z,6,FALSE) -> 0.00 | F50: =VLOOKUP(A50,'PBMT scores'!A:Z,7,FALSE) -> 0.00 | H50: =VLOOKUP(A50,'PBMT scores'!A:Z,9,FALSE) -> 0.00 | I50: =VLOOKUP(A50,'PBMT scores'!A:Z,10,FALSE) -> 0.00 | J50: =VLOOKUP(A50,'PBMT scores'!A:Z,11,FALSE) -> 0.00 | L50: =VLOOKUP(A50,'PBMT scores'!A:Z,13,FALSE) -> 0.12 | M50: =VLOOKUP(A50,'PBMT scores'!A:Z,14,FALSE) -> 0.69 | N50: =VLOOKUP(A50,'PBMT scores'!A:Z,15,FALSE) -> 0.01 | O50: =VLOOKUP(A50,'PBMT scores'!A:Z,16,FALSE) -> 0.00 | R50: =VLOOKUP(A50,'PBMT scores'!A:Z,19,FALSE) -> 0.00 | S50: =VLOOKUP(A50,'PBMT scores'!A:Z,20,FALSE) -> 0.00
A51: 127-39-9 | B51: =VLOOKUP(A51,'PBMT scores'!A:Z,3,FALSE) -> Sodium 1,2-diisobutoxycarbonylethanesulphonate(1) | C51: =VLOOKUP(A51,'PBMT scores'!A:Z,4,FALSE) -> REACH | E51: =VLOOKUP(A51,'PBMT scores'!A:Z,6,FALSE) -> 0.00 | F51: =VLOOKUP(A51,'PBMT scores'!A:Z,7,FALSE) -> 0.00 | H51: =VLOOKUP(A51,'PBMT scores'!A:Z,9,FALSE) -> 0.00 | I51: =VLOOKUP(A51,'PBMT scores'!A:Z,10,FALSE) -> 0.00 | J51: =VLOOKUP(A51,'PBMT scores'!A:Z,11,FALSE) -> 0.00 | L51: =VLOOKUP(A51,'PBMT scores'!A:Z,13,FALSE) -> 0.09 | M51: =VLOOKUP(A51,'PBMT scores'!A:Z,14,FALSE) -> 0.07 | N51: =VLOOKUP(A51,'PBMT scores'!A:Z,15,FALSE) -> 0.70 | O51: =VLOOKUP(A51,'PBMT scores'!A:Z,16,FALSE) -> 0.01 | R51: =VLOOKUP(A51,'PBMT scores'!A:Z,19,FALSE) -> 0.01 | S51: =VLOOKUP(A51,'PBMT scores'!A:Z,20,FALSE) -> 0.00
A52: 915-67-3 | B52: =VLOOKUP(A52,'PBMT scores'!A:Z,3,FALSE) -> Trisodium 3-hydroxy-4-(4'-sulphonatonaphthylazo)naphthalene-2,7-disulphonate(1) | C52: =VLOOKUP(A52,'PBMT scores'!A:Z,4,FALSE) -> REACH | E52: =VLOOKUP(A52,'PBMT scores'!A:Z,6,FALSE) -> 0.00 | F52: =VLOOKUP(A52,'PBMT scores'!A:Z,7,FALSE) -> 0.00 | H52: =VLOOKUP(A52,'PBMT scores'!A:Z,9,FALSE) -> 0.00 | I52: =VLOOKUP(A52,'PBMT scores'!A:Z,10,FALSE) -> 0.00 | J52: =VLOOKUP(A52,'PBMT scores'!A:Z,11,FALSE) -> 0.00 | L52: =VLOOKUP(A52,'PBMT scores'!A:Z,13,FALSE) -> 0.59 | M52: =VLOOKUP(A52,'PBMT scores'!A:Z,14,FALSE) -> 0.38 | N52: =VLOOKUP(A52,'PBMT scores'!A:Z,15,FALSE) -> 0.91 | O52: =VLOOKUP(A52,'PBMT scores'!A:Z,16,FALSE) -> 0.01 | R52: =VLOOKUP(A52,'PBMT scores'!A:Z,19,FALSE) -> 0.01 | S52: =VLOOKUP(A52,'PBMT scores'!A:Z,20,FALSE) -> 0.00
A53: 93-40-3 | B53: =VLOOKUP(A53,'PBMT scores'!A:Z,3,FALSE) -> 3,4-dimethoxyphenylacetic acid(1) | C53: =VLOOKUP(A53,'PBMT scores'!A:Z,4,FALSE) -> REACH | E53: =VLOOKUP(A53,'PBMT scores'!A:Z,6,FALSE) -> 0.00 | F53: =VLOOKUP(A53,'PBMT scores'!A:Z,7,FALSE) -> 0.00 | H53: =VLOOKUP(A53,'PBMT scores'!A:Z,9,FALSE) -> 0.00 | I53: =VLOOKUP(A53,'PBMT scores'!A:Z,10,FALSE) -> 0.00 | J53: =VLOOKUP(A53,'PBMT scores'!A:Z,11,FALSE) -> 0.00 | L53: =VLOOKUP(A53,'PBMT scores'!A:Z,13,FALSE) -> 0.11 | M53: =VLOOKUP(A53,'PBMT scores'!A:Z,14,FALSE) -> 0.05 | N53: =VLOOKUP(A53,'PBMT scores'!A:Z,15,FALSE) -> 0.69 | O53: =VLOOKUP(A53,'PBMT scores'!A:Z,16,FALSE) -> 0.03 | R53: =VLOOKUP(A53,'PBMT scores'!A:Z,19,FALSE) -> 0.01 | S53: =VLOOKUP(A53,'PBMT scores'!A:Z,20,FALSE) -> 0.00
A54: 10341-03-4 | B54: =VLOOKUP(A54,'PBMT scores'!A:Z,3,FALSE) -> Ditetradecyl fumarate(1) | C54: =VLOOKUP(A54,'PBMT scores'!A:Z,4,FALSE) -> REACH | E54: =VLOOKUP(A54,'PBMT scores'!A:Z,6,FALSE) -> 0.00 | F54: =VLOOKUP(A54,'PBMT scores'!A:Z,7,FALSE) -> 0.00 | H54: =VLOOKUP(A54,'PBMT scores'!A:Z,9,FALSE) -> 0.00 | I54: =VLOOKUP(A54,'PBMT scores'!A:Z,10,FALSE) -> 0.00 | J54: =VLOOKUP(A54,'PBMT scores'!A:Z,11,FALSE) -> 0.00 | L54: =VLOOKUP(A54,'PBMT scores'!A:Z,13,FALSE) -> 0.10 | M54: =VLOOKUP(A54,'PBMT scores'!A:Z,14,FALSE) -> 0.65 | N54: =VLOOKUP(A54,'PBMT scores'!A:Z,15,FALSE) -> 0.01 | O54: =VLOOKUP(A54,'PBMT scores'!A:Z,16,FALSE) -> 0.00 | R54: =VLOOKUP(A54,'PBMT scores'!A:Z,19,FALSE) -> 0.00 | S54: =VLOOKUP(A54,'PBMT scores'!A:Z,20,FALSE) -> 0.00
A55: 60-33-3 | B55: =VLOOKUP(A55,'PBMT scores'!A:Z,3,FALSE) -> cis-9-cis-12-octadecadienedioicacid(1) | C55: =VLOOKUP(A55,'PBMT scores'!A:Z,4,FALSE) -> REACH | E55: =VLOOKUP(A55,'PBMT scores'!A:Z,6,FALSE) -> 0.00 | F55: =VLOOKUP(A55,'PBMT scores'!A:Z,7,FALSE) -> 0.00 | H55: =VLOOKUP(A55,'PBMT scores'!A:Z,9,FALSE) -> 0.00 | I55: =VLOOKUP(A55,'PBMT scores'!A:Z,10,FALSE) -> 0.00 | J55: =VLOOKUP(A55,'PBMT scores'!A:Z,11,FALSE) -> 0.00 | L55: =VLOOKUP(A55,'PBMT scores'!A:Z,13,FALSE) -> 0.04 | M55: =VLOOKUP(A55,'PBMT scores'!A:Z,14,FALSE) -> 0.35 | N55: =VLOOKUP(A55,'PBMT scores'!A:Z,15,FALSE) -> 0.19 | O55: =VLOOKUP(A55,'PBMT scores'!A:Z,16,FALSE) -> 0.85 | R55: =VLOOKUP(A55,'PBMT scores'!A:Z,19,FALSE) -> 0.01 | S55: =VLOOKUP(A55,'PBMT scores'!A:Z,20,FALSE) -> 0.02
A56: 67634-26-8 | B56: =VLOOKUP(A56,'PBMT scores'!A:Z,3,FALSE) -> 2,4-dimethylcyclohex-3-ene-1-methylacetate(1) | C56: =VLOOKUP(A56,'PBMT scores'!A:Z,4,FALSE) -> REACH | E56: =VLOOKUP(A56,'PBMT scores'!A:Z,6,FALSE) -> 0.00 | F56: =VLOOKUP(A56,'PBMT scores'!A:Z,7,FALSE) -> 0.00 | H56: =VLOOKUP(A56,'PBMT scores'!A:Z,9,FALSE) -> 0.00 | I56: =VLOOKUP(A56,'PBMT scores'!A:Z,10,FALSE) -> 0.00 | J56: =VLOOKUP(A56,'PBMT scores'!A:Z,11,FALSE) -> 0.00 | L56: =VLOOKUP(A56,'PBMT scores'!A:Z,13,FALSE) -> 0.11 | M56: =VLOOKUP(A56,'PBMT scores'!A:Z,14,FALSE) -> 0.05 | N56: =VLOOKUP(A56,'PBMT scores'!A:Z,15,FALSE) -> 0.33 | O56: =VLOOKUP(A56,'PBMT scores'!A:Z,16,FALSE) -> 0.08 | R56: =VLOOKUP(A56,'PBMT scores'!A:Z,19,FALSE) -> 0.01 | S56: =VLOOKUP(A56,'PBMT scores'!A:Z,20,FALSE) -> 0.00
A57: 61791-92-2 | B57: =VLOOKUP(A57,'PBMT scores'!A:Z,3,FALSE) -> Ditridecyl maleate(1) | C57: =VLOOKUP(A57,'PBMT scores'!A:Z,4,FALSE) -> REACH | E57: =VLOOKUP(A57,'PBMT scores'!A:Z,6,FALSE) -> 0.00 | F57: =VLOOKUP(A57,'PBMT scores'!A:Z,7,FALSE) -> 0.00 | H57: =VLOOKUP(A57,'PBMT scores'!A:Z,9,FALSE) -> 0.00 | I57: =VLOOKUP(A57,'PBMT scores'!A:Z,10,FALSE) -> 0.00 | J57: =VLOOKUP(A57,'PBMT scores'!A:Z,11,FALSE) -> 0.00 | L57: =VLOOKUP(A57,'PBMT scores'!A:Z,13,FALSE) -> 0.09 | M57: =VLOOKUP(A57,'PBMT scores'!A:Z,14,FALSE) -> 0.60 | N57: =VLOOKUP(A57,'PBMT scores'!A:Z,15,FALSE) -> 0.02 | O57: =VLOOKUP(A57,'PBMT scores'!A:Z,16,FALSE) -> 0.00 | R57: =VLOOKUP(A57,'PBMT scores'!A:Z,19,FALSE) -> 0.00 | S57: =VLOOKUP(A57,'PBMT scores'!A:Z,20,FALSE) -> 0.00
A58: 2402-58-6 | B58: =VLOOKUP(A58,'PBMT scores'!A:Z,3,FALSE) -> Didodecyl fumarate(1) | C58: =VLOOKUP(A58,'PBMT scores'!A:Z,4,FALSE) -> REACH | E58: =VLOOKUP(A58,'PBMT scores'!A:Z,6,FALSE) -> 0.00 | F58: =VLOOKUP(A58,'PBMT scores'!A:Z,7,FALSE) -> 0.00 | H58: =VLOOKUP(A58,'PBMT scores'!A:Z,9,FALSE) -> 0.00 | I58: =VLOOKUP(A58,'PBMT scores'!A:Z,10,FALSE) -> 0.00 | J58: =VLOOKUP(A58,'PBMT scores'!A:Z,11,FALSE) -> 0.00 | L58: =VLOOKUP(A58,'PBMT scores'!A:Z,13,FALSE) -> 0.07 | M58: =VLOOKUP(A58,'PBMT scores'!A:Z,14,FALSE) -> 0.56 | N58: =VLOOKUP(A58,'PBMT scores'!A:Z,15,FALSE) -> 0.02 | O58: =VLOOKUP(A58,'PBMT scores'!A:Z,16,FALSE) -> 0.01 | R58: =VLOOKUP(A58,'PBMT scores'!A:Z,19,FALSE) -> 0.00 | S58: =VLOOKUP(A58,'PBMT scores'!A:Z,20,FALSE) -> 0.00
A59: 1676-73-9 | B59: =VLOOKUP(A59,'PBMT scores'!A:Z,3,FALSE) -> benzylhydrogen?-l-glutamate(1) | C59: =VLOOKUP(A59,'PBMT scores'!A:Z,4,FALSE) -> REACH | E59: =VLOOKUP(A59,'PBMT scores'!A:Z,6,FALSE) -> 0.00 | F59: =VLOOKUP(A59,'PBMT scores'!A:Z,7,FALSE) -> 0.00 | H59: =VLOOKUP(A59,'PBMT scores'!A:Z,9,FALSE) -> 0.00 | I59: =VLOOKUP(A59,'PBMT scores'!A:Z,10,FALSE) -> 0.00 | J59: =VLOOKUP(A59,'PBMT scores'!A:Z,11,FALSE) -> 0.00 | L59: =VLOOKUP(A59,'PBMT scores'!A:Z,13,FALSE) -> 0.05 | M59: =VLOOKUP(A59,'PBMT scores'!A:Z,14,FALSE) -> 0.03 | N59: =VLOOKUP(A59,'PBMT scores'!A:Z,15,FALSE) -> 0.88 | O59: =VLOOKUP(A59,'PBMT scores'!A:Z,16,FALSE) -> 0.00 | R59: =VLOOKUP(A59,'PBMT scores'!A:Z,19,FALSE) -> 0.01 | S59: =VLOOKUP(A59,'PBMT scores'!A:Z,20,FALSE) -> 0.00
A60: 555-43-1 | B60: =VLOOKUP(A60,'PBMT scores'!A:Z,3,FALSE) -> Glycerol tristearate(1) | C60: =VLOOKUP(A60,'PBMT scores'!A:Z,4,FALSE) -> REACH | E60: =VLOOKUP(A60,'PBMT scores'!A:Z,6,FALSE) -> 0.00 | F60: =VLOOKUP(A60,'PBMT scores'!A:Z,7,FALSE) -> 0.00 | H60: =VLOOKUP(A60,'PBMT scores'!A:Z,9,FALSE) -> 0.00 | I60: =VLOOKUP(A60,'PBMT scores'!A:Z,10,FALSE) -> 0.00 | J60: =VLOOKUP(A60,'PBMT scores'!A:Z,11,FALSE) -> 0.00 | L60: =VLOOKUP(A60,'PBMT scores'!A:Z,13,FALSE) -> 0.31 | M60: =VLOOKUP(A60,'PBMT scores'!A:Z,14,FALSE) -> 0.86 | N60: =VLOOKUP(A60,'PBMT scores'!A:Z,15,FALSE) -> 0.00 | O60: =VLOOKUP(A60,'PBMT scores'!A:Z,16,FALSE) -> 0.00 | R60: =VLOOKUP(A60,'PBMT scores'!A:Z,19,FALSE) -> 0.00 | S60: =VLOOKUP(A60,'PBMT scores'!A:Z,20,FALSE) -> 0.00
A61: 68141-27-5 | B61: =VLOOKUP(A61,'PBMT scores'!A:Z,3,FALSE) -> Heptyl undec-10-enoate(1) | C61: =VLOOKUP(A61,'PBMT scores'!A:Z,4,FALSE) -> REACH | E61: =VLOOKUP(A61,'PBMT scores'!A:Z,6,FALSE) -> 0.00 | F61: =VLOOKUP(A61,'PBMT scores'!A:Z,7,FALSE) -> 0.00 | H61: =VLOOKUP(A61,'PBMT scores'!A:Z,9,FALSE) -> 0.00 | I61: =VLOOKUP(A61,'PBMT scores'!A:Z,10,FALSE) -> 0.00 | J61: =VLOOKUP(A61,'PBMT scores'!A:Z,11,FALSE) -> 0.00 | L61: =VLOOKUP(A61,'PBMT scores'!A:Z,13,FALSE) -> 0.09 | M61: =VLOOKUP(A61,'PBMT scores'!A:Z,14,FALSE) -> 0.57 | N61: =VLOOKUP(A61,'PBMT scores'!A:Z,15,FALSE) -> 0.11 | O61: =VLOOKUP(A61,'PBMT scores'!A:Z,16,FALSE) -> 0.53 | R61: =VLOOKUP(A61,'PBMT scores'!A:Z,19,FALSE) -> 0.01 | S61: =VLOOKUP(A61,'PBMT scores'!A:Z,20,FALSE) -> 0.02
A62: 28855-17-6 | B62: =VLOOKUP(A62,'PBMT scores'!A:Z,3,FALSE) -> Octadecylbenzenesulphonic acid(1) | C62: =VLOOKUP(A62,'PBMT scores'!A:Z,4,FALSE) -> REACH | E62: =VLOOKUP(A62,'PBMT scores'!A:Z,6,FALSE) -> 0.00 | F62: =VLOOKUP(A62,'PBMT scores'!A:Z,7,FALSE) -> 0.00 | H62: =VLOOKUP(A62,'PBMT scores'!A:Z,9,FALSE) -> 0.00 | I62: =VLOOKUP(A62,'PBMT scores'!A:Z,10,FALSE) -> 0.00 | J62: =VLOOKUP(A62,'PBMT scores'!A:Z,11,FALSE) -> 0.00 | L62: =VLOOKUP(A62,'PBMT scores'!A:Z,13,FALSE) -> 0.24 | M62: =VLOOKUP(A62,'PBMT scores'!A:Z,14,FALSE) -> 0.81 | N62: =VLOOKUP(A62,'PBMT scores'!A:Z,15,FALSE) -> 0.10 | O62: =VLOOKUP(A62,'PBMT scores'!A:Z,16,FALSE) -> 0.39 | R62: =VLOOKUP(A62,'PBMT scores'!A:Z,19,FALSE) -> 0.01 | S62: =VLOOKUP(A62,'PBMT scores'!A:Z,20,FALSE) -> 0.01
A63: 1208-67-9 | B63: =VLOOKUP(A63,'PBMT scores'!A:Z,3,FALSE) -> sodium4-(2-methylprop-2-en-1-yl)benzenesulphonate(1) | C63: =VLOOKUP(A63,'PBMT scores'!A:Z,4,FALSE) -> REACH | E63: =VLOOKUP(A63,'PBMT scores'!A:Z,6,FALSE) -> 0.00 | F63: =VLOOKUP(A63,'PBMT scores'!A:Z,7,FALSE) -> 0.00 | H63: =VLOOKUP(A63,'PBMT scores'!A:Z,9,FALSE) -> 0.00 | I63: =VLOOKUP(A63,'PBMT scores'!A:Z,10,FALSE) -> 0.00 | J63: =VLOOKUP(A63,'PBMT scores'!A:Z,11,FALSE) -> 0.00 | L63: =VLOOKUP(A63,'PBMT scores'!A:Z,13,FALSE) -> 0.16 | M63: =VLOOKUP(A63,'PBMT scores'!A:Z,14,FALSE) -> 0.07 | N63: =VLOOKUP(A63,'PBMT scores'!A:Z,15,FALSE) -> 0.61 | O63: =VLOOKUP(A63,'PBMT scores'!A:Z,16,FALSE) -> 0.02 | R63: =VLOOKUP(A63,'PBMT scores'!A:Z,19,FALSE) -> 0.01 | S63: =VLOOKUP(A63,'PBMT scores'!A:Z,20,FALSE) -> 0.00
A64: 68610-90-2 | B64: =VLOOKUP(A64,'PBMT scores'!A:Z,3,FALSE) -> 2-Butenedioic acid (E)-, di-C8-18-alkyl esters(1) | C64: =VLOOKUP(A64,'PBMT scores'!A:Z,4,FALSE) -> REACH | E64: =VLOOKUP(A64,'PBMT scores'!A:Z,6,FALSE) -> 0.00 | F64: =VLOOKUP(A64,'PBMT scores'!A:Z,7,FALSE) -> 0.00 | H64: =VLOOKUP(A64,'PBMT scores'!A:Z,9,FALSE) -> 0.00 | I64: =VLOOKUP(A64,'PBMT scores'!A:Z,10,FALSE) -> 0.00 | J64: =VLOOKUP(A64,'PBMT scores'!A:Z,11,FALSE) -> 0.00 | L64: =VLOOKUP(A64,'PBMT scores'!A:Z,13,FALSE) -> 0.03 | M64: =VLOOKUP(A64,'PBMT scores'!A:Z,14,FALSE) -> 0.35 | N64: =VLOOKUP(A64,'PBMT scores'!A:Z,15,FALSE) -> 0.09 | O64: =VLOOKUP(A64,'PBMT scores'!A:Z,16,FALSE) -> 0.15 | R64: =VLOOKUP(A64,'PBMT scores'!A:Z,19,FALSE) -> 0.01 | S64: =VLOOKUP(A64,'PBMT scores'!A:Z,20,FALSE) -> 0.01
A65: 5292-53-5 | B65: =VLOOKUP(A65,'PBMT scores'!A:Z,3,FALSE) -> Diethyl (phenylmethylene)malonate(1) | C65: =VLOOKUP(A65,'PBMT scores'!A:Z,4,FALSE) -> REACH | E65: =VLOOKUP(A65,'PBMT scores'!A:Z,6,FALSE) -> 0.00 | F65: =VLOOKUP(A65,'PBMT scores'!A:Z,7,FALSE) -> 0.00 | H65: =VLOOKUP(A65,'PBMT scores'!A:Z,9,FALSE) -> 0.00 | I65: =VLOOKUP(A65,'PBMT scores'!A:Z,10,FALSE) -> 0.00 | J65: =VLOOKUP(A65,'PBMT scores'!A:Z,11,FALSE) -> 0.00 | L65: =VLOOKUP(A65,'PBMT scores'!A:Z,13,FALSE) -> 0.10 | M65: =VLOOKUP(A65,'PBMT scores'!A:Z,14,FALSE) -> 0.11 | N65: =VLOOKUP(A65,'PBMT scores'!A:Z,15,FALSE) -> 0.41 | O65: =VLOOKUP(A65,'PBMT scores'!A:Z,16,FALSE) -> 0.03 | R65: =VLOOKUP(A65,'PBMT scores'!A:Z,19,FALSE) -> 0.01 | S65: =VLOOKUP(A65,'PBMT scores'!A:Z,20,FALSE) -> 0.00
A66: 80-26-2 | B66: =VLOOKUP(A66,'PBMT scores'!A:Z,3,FALSE) -> p-menth-1-en-8-yl acetate(1) | C66: =VLOOKUP(A66,'PBMT scores'!A:Z,4,FALSE) -> REACH | E66: =VLOOKUP(A66,'PBMT scores'!A:Z,6,FALSE) -> 0.00 | F66: =VLOOKUP(A66,'PBMT scores'!A:Z,7,FALSE) -> 0.00 | H66: =VLOOKUP(A66,'PBMT scores'!A:Z,9,FALSE) -> 0.00 | I66: =VLOOKUP(A66,'PBMT scores'!A:Z,10,FALSE) -> 0.00 | J66: =VLOOKUP(A66,'PBMT scores'!A:Z,11,FALSE) -> 0.00 | L66: =VLOOKUP(A66,'PBMT scores'!A:Z,13,FALSE) -> 0.21 | M66: =VLOOKUP(A66,'PBMT scores'!A:Z,14,FALSE) -> 0.10 | N66: =VLOOKUP(A66,'PBMT scores'!A:Z,15,FALSE) -> 0.33 | O66: =VLOOKUP(A66,'PBMT scores'!A:Z,16,FALSE) -> 0.08 | R66: =VLOOKUP(A66,'PBMT scores'!A:Z,19,FALSE) -> 0.01 | S66: =VLOOKUP(A66,'PBMT scores'!A:Z,20,FALSE) -> 0.00
A67: 26942-95-0 | B67: =VLOOKUP(A67,'PBMT scores'!A:Z,3,FALSE) -> 1,2,3-propanetriyl triisooctadecanoate(1) | C67: =VLOOKUP(A67,'PBMT scores'!A:Z,4,FALSE) -> REACH | E67: =VLOOKUP(A67,'PBMT scores'!A:Z,6,FALSE) -> 0.00 | F67: =VLOOKUP(A67,'PBMT scores'!A:Z,7,FALSE) -> 0.00 | H67: =VLOOKUP(A67,'PBMT scores'!A:Z,9,FALSE) -> 0.00 | I67: =VLOOKUP(A67,'PBMT scores'!A:Z,10,FALSE) -> 0.00 | J67: =VLOOKUP(A67,'PBMT scores'!A:Z,11,FALSE) -> 0.00 | L67: =VLOOKUP(A67,'PBMT scores'!A:Z,13,FALSE) -> 0.90 | M67: =VLOOKUP(A67,'PBMT scores'!A:Z,14,FALSE) -> 0.98 | N67: =VLOOKUP(A67,'PBMT scores'!A:Z,15,FALSE) -> 0.00 | O67: =VLOOKUP(A67,'PBMT scores'!A:Z,16,FALSE) -> 0.00 | R67: =VLOOKUP(A67,'PBMT scores'!A:Z,19,FALSE) -> 0.00 | S67: =VLOOKUP(A67,'PBMT scores'!A:Z,20,FALSE) -> 0.00
A68: 29056-06-2 | B68: =VLOOKUP(A68,'PBMT scores'!A:Z,3,FALSE) -> Methyl 4-butoxyphenylacetate(1) | C68: =VLOOKUP(A68,'PBMT scores'!A:Z,4,FALSE) -> REACH | E68: =VLOOKUP(A68,'PBMT scores'!A:Z,6,FALSE) -> 0.00 | F68: =VLOOKUP(A68,'PBMT scores'!A:Z,7,FALSE) -> 0.00 | H68: =VLOOKUP(A68,'PBMT scores'!A:Z,9,FALSE) -> 0.00 | I68: =VLOOKUP(A68,'PBMT scores'!A:Z,10,FALSE) -> 0.00 | J68: =VLOOKUP(A68,'PBMT scores'!A:Z,11,FALSE) -> 0.00 | L68: =VLOOKUP(A68,'PBMT scores'!A:Z,13,FALSE) -> 0.09 | M68: =VLOOKUP(A68,'PBMT scores'!A:Z,14,FALSE) -> 0.09 | N68: =VLOOKUP(A68,'PBMT scores'!A:Z,15,FALSE) -> 0.34 | O68: =VLOOKUP(A68,'PBMT scores'!A:Z,16,FALSE) -> 0.16 | R68: =VLOOKUP(A68,'PBMT scores'!A:Z,19,FALSE) -> 0.01 | S68: =VLOOKUP(A68,'PBMT scores'!A:Z,20,FALSE) -> 0.01
A69: 82-76-8 | B69: =VLOOKUP(A69,'PBMT scores'!A:Z,3,FALSE) -> 8-anilinonaphthalene-1-sulphonic acid(1) | C69: =VLOOKUP(A69,'PBMT scores'!A:Z,4,FALSE) -> REACH | E69: =VLOOKUP(A69,'PBMT scores'!A:Z,6,FALSE) -> 0.00 | F69: =VLOOKUP(A69,'PBMT scores'!A:Z,7,FALSE) -> 0.00 | H69: =VLOOKUP(A69,'PBMT scores'!A:Z,9,FALSE) -> 0.00 | I69: =VLOOKUP(A69,'PBMT scores'!A:Z,10,FALSE) -> 0.00 | J69: =VLOOKUP(A69,'PBMT scores'!A:Z,11,FALSE) -> 0.00 | L69: =VLOOKUP(A69,'PBMT scores'!A:Z,13,FALSE) -> 0.29 | M69: =VLOOKUP(A69,'PBMT scores'!A:Z,14,FALSE) -> 0.15 | N69: =VLOOKUP(A69,'PBMT scores'!A:Z,15,FALSE) -> 0.56 | O69: =VLOOKUP(A69,'PBMT scores'!A:Z,16,FALSE) -> 0.01 | R69: =VLOOKUP(A69,'PBMT scores'!A:Z,19,FALSE) -> 0.01 | S69: =VLOOKUP(A69,'PBMT scores'!A:Z,20,FALSE) -> 0.00
A70: 555-45-3 | B70: =VLOOKUP(A70,'PBMT scores'!A:Z,3,FALSE) -> Glycerol trimyristate(1) | C70: =VLOOKUP(A70,'PBMT scores'!A:Z,4,FALSE) -> REACH | E70: =VLOOKUP(A70,'PBMT scores'!A:Z,6,FALSE) -> 0.00 | F70: =VLOOKUP(A70,'PBMT scores'!A:Z,7,FALSE) -> 0.00 | H70: =VLOOKUP(A70,'PBMT scores'!A:Z,9,FALSE) -> 0.00 | I70: =VLOOKUP(A70,'PBMT scores'!A:Z,10,FALSE) -> 0.00 | J70: =VLOOKUP(A70,'PBMT scores'!A:Z,11,FALSE) -> 0.00 | L70: =VLOOKUP(A70,'PBMT scores'!A:Z,13,FALSE) -> 0.11 | M70: =VLOOKUP(A70,'PBMT scores'!A:Z,14,FALSE) -> 0.67 | N70: =VLOOKUP(A70,'PBMT scores'!A:Z,15,FALSE) -> 0.00 | O70: =VLOOKUP(A70,'PBMT scores'!A:Z,16,FALSE) -> 0.00 | R70: =VLOOKUP(A70,'PBMT scores'!A:Z,19,FALSE) -> 0.00 | S70: =VLOOKUP(A70,'PBMT scores'!A:Z,20,FALSE) -> 0.00
A71: 2454-35-5 | B71: =VLOOKUP(A71,'PBMT scores'!A:Z,3,FALSE) -> m-acetylphenyl acetate(1) | C71: =VLOOKUP(A71,'PBMT scores'!A:Z,4,FALSE) -> REACH | E71: =VLOOKUP(A71,'PBMT scores'!A:Z,6,FALSE) -> 0.00 | F71: =VLOOKUP(A71,'PBMT scores'!A:Z,7,FALSE) -> 0.00 | H71: =VLOOKUP(A71,'PBMT scores'!A:Z,9,FALSE) -> 0.00 | I71: =VLOOKUP(A71,'PBMT scores'!A:Z,10,FALSE) -> 0.00 | J71: =VLOOKUP(A71,'PBMT scores'!A:Z,11,FALSE) -> 0.00 | L71: =VLOOKUP(A71,'PBMT scores'!A:Z,13,FALSE) -> 0.11 | M71: =VLOOKUP(A71,'PBMT scores'!A:Z,14,FALSE) -> 0.05 | N71: =VLOOKUP(A71,'PBMT scores'!A:Z,15,FALSE) -> 0.54 | O71: =VLOOKUP(A71,'PBMT scores'!A:Z,16,FALSE) -> 0.02 | R71: =VLOOKUP(A71,'PBMT scores'!A:Z,19,FALSE) -> 0.01 | S71: =VLOOKUP(A71,'PBMT scores'!A:Z,20,FALSE) -> 0.00
A72: 53817-61-1 | B72: =VLOOKUP(A72,'PBMT scores'!A:Z,3,FALSE) -> Diisodecyl maleate(1) | C72: =VLOOKUP(A72,'PBMT scores'!A:Z,4,FALSE) -> REACH | E72: =VLOOKUP(A72,'PBMT scores'!A:Z,6,FALSE) -> 0.00 | F72: =VLOOKUP(A72,'PBMT scores'!A:Z,7,FALSE) -> 0.00 | H72: =VLOOKUP(A72,'PBMT scores'!A:Z,9,FALSE) -> 0.00 | I72: =VLOOKUP(A72,'PBMT scores'!A:Z,10,FALSE) -> 0.00 | J72: =VLOOKUP(A72,'PBMT scores'!A:Z,11,FALSE) -> 0.00 | L72: =VLOOKUP(A72,'PBMT scores'!A:Z,13,FALSE) -> 0.27 | M72: =VLOOKUP(A72,'PBMT scores'!A:Z,14,FALSE) -> 0.84 | N72: =VLOOKUP(A72,'PBMT scores'!A:Z,15,FALSE) -> 0.05 | O72: =VLOOKUP(A72,'PBMT scores'!A:Z,16,FALSE) -> 0.07 | R72: =VLOOKUP(A72,'PBMT scores'!A:Z,19,FALSE) -> 0.00 | S72: =VLOOKUP(A72,'PBMT scores'!A:Z,20,FALSE) -> 0.01
A73: 5137-52-0 | B73: =VLOOKUP(A73,'PBMT scores'!A:Z,3,FALSE) -> Pentyl phenylacetate(1) | C73: =VLOOKUP(A73,'PBMT scores'!A:Z,4,FALSE) -> REACH | E73: =VLOOKUP(A73,'PBMT scores'!A:Z,6,FALSE) -> 0.00 | F73: =VLOOKUP(A73,'PBMT scores'!A:Z,7,FALSE) -> 0.00 | H73: =VLOOKUP(A73,'PBMT scores'!A:Z,9,FALSE) -> 0.00 | I73: =VLOOKUP(A73,'PBMT scores'!A:Z,10,FALSE) -> 0.00 | J73: =VLOOKUP(A73,'PBMT scores'!A:Z,11,FALSE) -> 0.00 | L73: =VLOOKUP(A73,'PBMT scores'!A:Z,13,FALSE) -> 0.06 | M73: =VLOOKUP(A73,'PBMT scores'!A:Z,14,FALSE) -> 0.06 | N73: =VLOOKUP(A73,'PBMT scores'!A:Z,15,FALSE) -> 0.32 | O73: =VLOOKUP(A73,'PBMT scores'!A:Z,16,FALSE) -> 0.09 | R73: =VLOOKUP(A73,'PBMT scores'!A:Z,19,FALSE) -> 0.01 | S73: =VLOOKUP(A73,'PBMT scores'!A:Z,20,FALSE) -> 0.00
A74: 103-36-6 | B74: =VLOOKUP(A74,'PBMT scores'!A:Z,3,FALSE) -> Ethyl cinnamate(1) | C74: =VLOOKUP(A74,'PBMT scores'!A:Z,4,FALSE) -> REACH | E74: =VLOOKUP(A74,'PBMT scores'!A:Z,6,FALSE) -> 0.00 | F74: =VLOOKUP(A74,'PBMT scores'!A:Z,7,FALSE) -> 0.00 | H74: =VLOOKUP(A74,'PBMT scores'!A:Z,9,FALSE) -> 0.00 | I74: =VLOOKUP(A74,'PBMT scores'!A:Z,10,FALSE) -> 0.00 | J74: =VLOOKUP(A74,'PBMT scores'!A:Z,11,FALSE) -> 0.00 | L74: =VLOOKUP(A74,'PBMT scores'!A:Z,13,FALSE) -> 0.10 | M74: =VLOOKUP(A74,'PBMT scores'!A:Z,14,FALSE) -> 0.07 | N74: =VLOOKUP(A74,'PBMT scores'!A:Z,15,FALSE) -> 0.41 | O74: =VLOOKUP(A74,'PBMT scores'!A:Z,16,FALSE) -> 0.08 | R74: =VLOOKUP(A74,'PBMT scores'!A:Z,19,FALSE) -> 0.01 | S74: =VLOOKUP(A74,'PBMT scores'!A:Z,20,FALSE) -> 0.00
A75: 67701-27-3 | B75: =VLOOKUP(A75,'PBMT scores'!A:Z,3,FALSE) -> Glycerides, C14-18(1) | C75: =VLOOKUP(A75,'PBMT scores'!A:Z,4,FALSE) -> REACH | E75: =VLOOKUP(A75,'PBMT scores'!A:Z,6,FALSE) -> 0.00 | F75: =VLOOKUP(A75,'PBMT scores'!A:Z,7,FALSE) -> 0.00 | H75: =VLOOKUP(A75,'PBMT scores'!A:Z,9,FALSE) -> 0.00 | I75: =VLOOKUP(A75,'PBMT scores'!A:Z,10,FALSE) -> 0.00 | J75: =VLOOKUP(A75,'PBMT scores'!A:Z,11,FALSE) -> 0.00 | L75: =VLOOKUP(A75,'PBMT scores'!A:Z,13,FALSE) -> 0.19 | M75: =VLOOKUP(A75,'PBMT scores'!A:Z,14,FALSE) -> 0.78 | N75: =VLOOKUP(A75,'PBMT scores'!A:Z,15,FALSE) -> 0.00 | O75: =VLOOKUP(A75,'PBMT scores'!A:Z,16,FALSE) -> 0.00 | R75: =VLOOKUP(A75,'PBMT scores'!A:Z,19,FALSE) -> 0.00 | S75: =VLOOKUP(A75,'PBMT scores'!A:Z,20,FALSE) -> 0.00
A76: 24717-85-9 | B76: =VLOOKUP(A76,'PBMT scores'!A:Z,3,FALSE) -> 3,7-dimethyl-6-octenyl 2-methylcrotonate(1) | C76: =VLOOKUP(A76,'PBMT scores'!A:Z,4,FALSE) -> REACH | E76: =VLOOKUP(A76,'PBMT scores'!A:Z,6,FALSE) -> 0.00 | F76: =VLOOKUP(A76,'PBMT scores'!A:Z,7,FALSE) -> 0.00 | H76: =VLOOKUP(A76,'PBMT scores'!A:Z,9,FALSE) -> 0.00 | I76: =VLOOKUP(A76,'PBMT scores'!A:Z,10,FALSE) -> 0.00 | J76: =VLOOKUP(A76,'PBMT scores'!A:Z,11,FALSE) -> 0.00 | L76: =VLOOKUP(A76,'PBMT scores'!A:Z,13,FALSE) -> 0.16 | M76: =VLOOKUP(A76,'PBMT scores'!A:Z,14,FALSE) -> 0.21 | N76: =VLOOKUP(A76,'PBMT scores'!A:Z,15,FALSE) -> 0.19 | O76: =VLOOKUP(A76,'PBMT scores'!A:Z,16,FALSE) -> 0.47 | R76: =VLOOKUP(A76,'PBMT scores'!A:Z,19,FALSE) -> 0.01 | S76: =VLOOKUP(A76,'PBMT scores'!A:Z,20,FALSE) -> 0.02
A77: 103-54-8 | B77: =VLOOKUP(A77,'PBMT scores'!A:Z,3,FALSE) -> Cinnamyl acetate(1) | C77: =VLOOKUP(A77,'PBMT scores'!A:Z,4,FALSE) -> REACH | E77: =VLOOKUP(A77,'PBMT scores'!A:Z,6,FALSE) -> 0.00 | F77: =VLOOKUP(A77,'PBMT scores'!A:Z,7,FALSE) -> 0.00 | H77: =VLOOKUP(A77,'PBMT scores'!A:Z,9,FALSE) -> 0.00 | I77: =VLOOKUP(A77,'PBMT scores'!A:Z,10,FALSE) -> 0.00 | J77: =VLOOKUP(A77,'PBMT scores'!A:Z,11,FALSE) -> 0.00 | L77: =VLOOKUP(A77,'PBMT scores'!A:Z,13,FALSE) -> 0.10 | M77: =VLOOKUP(A77,'PBMT scores'!A:Z,14,FALSE) -> 0.05 | N77: =VLOOKUP(A77,'PBMT scores'!A:Z,15,FALSE) -> 0.43 | O77: =VLOOKUP(A77,'PBMT scores'!A:Z,16,FALSE) -> 0.06 | R77: =VLOOKUP(A77,'PBMT scores'!A:Z,19,FALSE) -> 0.01 | S77: =VLOOKUP(A77,'PBMT scores'!A:Z,20,FALSE) -> 0.00
A78: 126-53-4 | B78: =VLOOKUP(A78,'PBMT scores'!A:Z,3,FALSE) -> Propane-1,2,3-triyl trinonan-1-oate(1) | C78: =VLOOKUP(A78,'PBMT scores'!A:Z,4,FALSE) -> REACH | E78: =VLOOKUP(A78,'PBMT scores'!A:Z,6,FALSE) -> 0.00 | F78: =VLOOKUP(A78,'PBMT scores'!A:Z,7,FALSE) -> 0.00 | H78: =VLOOKUP(A78,'PBMT scores'!A:Z,9,FALSE) -> 0.00 | I78: =VLOOKUP(A78,'PBMT scores'!A:Z,10,FALSE) -> 0.00 | J78: =VLOOKUP(A78,'PBMT scores'!A:Z,11,FALSE) -> 0.00 | L78: =VLOOKUP(A78,'PBMT scores'!A:Z,13,FALSE) -> 0.03 | M78: =VLOOKUP(A78,'PBMT scores'!A:Z,14,FALSE) -> 0.32 | N78: =VLOOKUP(A78,'PBMT scores'!A:Z,15,FALSE) -> 0.04 | O78: =VLOOKUP(A78,'PBMT scores'!A:Z,16,FALSE) -> 0.02 | R78: =VLOOKUP(A78,'PBMT scores'!A:Z,19,FALSE) -> 0.01 | S78: =VLOOKUP(A78,'PBMT scores'!A:Z,20,FALSE) -> 0.01
A79: 13557-75-0 | B79: =VLOOKUP(A79,'PBMT scores'!A:Z,3,FALSE) -> Sodium 2-(1-carboxylatoethoxy)-1-methyl-2-oxoethyl laurate(1) | C79: =VLOOKUP(A79,'PBMT scores'!A:Z,4,FALSE) -> REACH | E79: =VLOOKUP(A79,'PBMT scores'!A:Z,6,FALSE) -> 0.00 | F79: =VLOOKUP(A79,'PBMT scores'!A:Z,7,FALSE) -> 0.00 | H79: =VLOOKUP(A79,'PBMT scores'!A:Z,9,FALSE) -> 0.00 | I79: =VLOOKUP(A79,'PBMT scores'!A:Z,10,FALSE) -> 0.00 | J79: =VLOOKUP(A79,'PBMT scores'!A:Z,11,FALSE) -> 0.00 | L79: =VLOOKUP(A79,'PBMT scores'!A:Z,13,FALSE) -> 0.03 | M79: =VLOOKUP(A79,'PBMT scores'!A:Z,14,FALSE) -> 0.04 | N79: =VLOOKUP(A79,'PBMT scores'!A:Z,15,FALSE) -> 0.37 | O79: =VLOOKUP(A79,'PBMT scores'!A:Z,16,FALSE) -> 0.03 | R79: =VLOOKUP(A79,'PBMT scores'!A:Z,19,FALSE) -> 0.01 | S79: =VLOOKUP(A79,'PBMT scores'!A:Z,20,FALSE) -> 0.00
A80: 25307-17-9 | B80: =VLOOKUP(A80,'PBMT scores'!A:Z,3,FALSE) -> 2,2'-(octadec-9-enylimino)bisethanol(1) | C80: =VLOOKUP(A80,'PBMT scores'!A:Z,4,FALSE) -> REACH | E80: =VLOOKUP(A80,'PBMT scores'!A:Z,6,FALSE) -> 0.00 | F80: =VLOOKUP(A80,'PBMT scores'!A:Z,7,FALSE) -> 0.00 | H80: =VLOOKUP(A80,'PBMT scores'!A:Z,9,FALSE) -> 0.00 | I80: =VLOOKUP(A80,'PBMT scores'!A:Z,10,FALSE) -> 0.00 | J80: =VLOOKUP(A80,'PBMT scores'!A:Z,11,FALSE) -> 0.00 | L80: =VLOOKUP(A80,'PBMT scores'!A:Z,13,FALSE) -> 0.17 | M80: =VLOOKUP(A80,'PBMT scores'!A:Z,14,FALSE) -> 0.72 | N80: =VLOOKUP(A80,'PBMT scores'!A:Z,15,FALSE) -> 0.23 | O80: =VLOOKUP(A80,'PBMT scores'!A:Z,16,FALSE) -> 0.07 | R80: =VLOOKUP(A80,'PBMT scores'!A:Z,19,FALSE) -> 0.01 | S80: =VLOOKUP(A80,'PBMT scores'!A:Z,20,FALSE) -> 0.01
A81: 37951-49-8 | B81: =VLOOKUP(A81,'PBMT scores'!A:Z,3,FALSE) -> 3'-methoxypropiophenone(1) | C81: =VLOOKUP(A81,'PBMT scores'!A:Z,4,FALSE) -> REACH | E81: =VLOOKUP(A81,'PBMT scores'!A:Z,6,FALSE) -> 0.00 | F81: =VLOOKUP(A81,'PBMT scores'!A:Z,7,FALSE) -> 0.00 | H81: =VLOOKUP(A81,'PBMT scores'!A:Z,9,FALSE) -> 0.00 | I81: =VLOOKUP(A81,'PBMT scores'!A:Z,10,FALSE) -> 0.00 | J81: =VLOOKUP(A81,'PBMT scores'!A:Z,11,FALSE) -> 0.00 | L81: =VLOOKUP(A81,'PBMT scores'!A:Z,13,FALSE) -> 0.18 | M81: =VLOOKUP(A81,'PBMT scores'!A:Z,14,FALSE) -> 0.08 | N81: =VLOOKUP(A81,'PBMT scores'!A:Z,15,FALSE) -> 0.43 | O81: =VLOOKUP(A81,'PBMT scores'!A:Z,16,FALSE) -> 0.09 | R81: =VLOOKUP(A81,'PBMT scores'!A:Z,19,FALSE) -> 0.01 | S81: =VLOOKUP(A81,'PBMT scores'!A:Z,20,FALSE) -> 0.00
A82: 7443-25-6 | B82: =VLOOKUP(A82,'PBMT scores'!A:Z,3,FALSE) -> Dimethyl (p-methoxybenzylidene)malonate(1) | C82: =VLOOKUP(A82,'PBMT scores'!A:Z,4,FALSE) -> REACH | E82: =VLOOKUP(A82,'PBMT scores'!A:Z,6,FALSE) -> 0.00 | F82: =VLOOKUP(A82,'PBMT scores'!A:Z,7,FALSE) -> 0.00 | H82: =VLOOKUP(A82,'PBMT scores'!A:Z,9,FALSE) -> 0.00 | I82: =VLOOKUP(A82,'PBMT scores'!A:Z,10,FALSE) -> 0.00 | J82: =VLOOKUP(A82,'PBMT scores'!A:Z,11,FALSE) -> 0.00 | L82: =VLOOKUP(A82,'PBMT scores'!A:Z,13,FALSE) -> 0.13 | M82: =VLOOKUP(A82,'PBMT scores'!A:Z,14,FALSE) -> 0.08 | N82: =VLOOKUP(A82,'PBMT scores'!A:Z,15,FALSE) -> 0.50 | O82: =VLOOKUP(A82,'PBMT scores'!A:Z,16,FALSE) -> 0.03 | R82: =VLOOKUP(A82,'PBMT scores'!A:Z,19,FALSE) -> 0.02 | S82: =VLOOKUP(A82,'PBMT scores'!A:Z,20,FALSE) -> 0.00
A83: 85251-77-0 | B83: =VLOOKUP(A83,'PBMT scores'!A:Z,3,FALSE) -> Glycerides, C16-18 mono- and di-(1) | C83: =VLOOKUP(A83,'PBMT scores'!A:Z,4,FALSE) -> REACH | E83: =VLOOKUP(A83,'PBMT scores'!A:Z,6,FALSE) -> 0.00 | F83: =VLOOKUP(A83,'PBMT scores'!A:Z,7,FALSE) -> 0.00 | H83: =VLOOKUP(A83,'PBMT scores'!A:Z,9,FALSE) -> 0.00 | I83: =VLOOKUP(A83,'PBMT scores'!A:Z,10,FALSE) -> 0.00 | J83: =VLOOKUP(A83,'PBMT scores'!A:Z,11,FALSE) -> 0.00 | L83: =VLOOKUP(A83,'PBMT scores'!A:Z,13,FALSE) -> 0.04 | M83: =VLOOKUP(A83,'PBMT scores'!A:Z,14,FALSE) -> 0.17 | N83: =VLOOKUP(A83,'PBMT scores'!A:Z,15,FALSE) -> 0.31 | O83: =VLOOKUP(A83,'PBMT scores'!A:Z,16,FALSE) -> 0.05 | R83: =VLOOKUP(A83,'PBMT scores'!A:Z,19,FALSE) -> 0.01 | S83: =VLOOKUP(A83,'PBMT scores'!A:Z,20,FALSE) -> 0.01
A84: 538-23-8 | B84: =VLOOKUP(A84,'PBMT scores'!A:Z,3,FALSE) -> Glycerol trioctanoate(1) | C84: =VLOOKUP(A84,'PBMT scores'!A:Z,4,FALSE) -> REACH | E84: =VLOOKUP(A84,'PBMT scores'!A:Z,6,FALSE) -> 0.00 | F84: =VLOOKUP(A84,'PBMT scores'!A:Z,7,FALSE) -> 0.00 | H84: =VLOOKUP(A84,'PBMT scores'!A:Z,9,FALSE) -> 0.00 | I84: =VLOOKUP(A84,'PBMT scores'!A:Z,10,FALSE) -> 0.00 | J84: =VLOOKUP(A84,'PBMT scores'!A:Z,11,FALSE) -> 0.00 | L84: =VLOOKUP(A84,'PBMT scores'!A:Z,13,FALSE) -> 0.02 | M84: =VLOOKUP(A84,'PBMT scores'!A:Z,14,FALSE) -> 0.26 | N84: =VLOOKUP(A84,'PBMT scores'!A:Z,15,FALSE) -> 0.06 | O84: =VLOOKUP(A84,'PBMT scores'!A:Z,16,FALSE) -> 0.02 | R84: =VLOOKUP(A84,'PBMT scores'!A:Z,19,FALSE) -> 0.01 | S84: =VLOOKUP(A84,'PBMT scores'!A:Z,20,FALSE) -> 0.01
A85: 67763-18-2 | B85: =VLOOKUP(A85,'PBMT scores'!A:Z,3,FALSE) -> Bis(16-methylheptadecyl) malate(1) | C85: =VLOOKUP(A85,'PBMT scores'!A:Z,4,FALSE) -> REACH | E85: =VLOOKUP(A85,'PBMT scores'!A:Z,6,FALSE) -> 0.00 | F85: =VLOOKUP(A85,'PBMT scores'!A:Z,7,FALSE) -> 0.00 | H85: =VLOOKUP(A85,'PBMT scores'!A:Z,9,FALSE) -> 0.00 | I85: =VLOOKUP(A85,'PBMT scores'!A:Z,10,FALSE) -> 0.00 | J85: =VLOOKUP(A85,'PBMT scores'!A:Z,11,FALSE) -> 0.00 | L85: =VLOOKUP(A85,'PBMT scores'!A:Z,13,FALSE) -> 0.56 | M85: =VLOOKUP(A85,'PBMT scores'!A:Z,14,FALSE) -> 0.94 | N85: =VLOOKUP(A85,'PBMT scores'!A:Z,15,FALSE) -> 0.01 | O85: =VLOOKUP(A85,'PBMT scores'!A:Z,16,FALSE) -> 0.00 | R85: =VLOOKUP(A85,'PBMT scores'!A:Z,19,FALSE) -> 0.00 | S85: =VLOOKUP(A85,'PBMT scores'!A:Z,20,FALSE) -> 0.00
A86: 3153-44-4 | B86: =VLOOKUP(A86,'PBMT scores'!A:Z,3,FALSE) -> 3-(4-methoxybenzoyl)propionic acid(1) | C86: =VLOOKUP(A86,'PBMT scores'!A:Z,4,FALSE) -> REACH | E86: =VLOOKUP(A86,'PBMT scores'!A:Z,6,FALSE) -> 0.00 | F86: =VLOOKUP(A86,'PBMT scores'!A:Z,7,FALSE) -> 0.00 | H86: =VLOOKUP(A86,'PBMT scores'!A:Z,9,FALSE) -> 0.00 | I86: =VLOOKUP(A86,'PBMT scores'!A:Z,10,FALSE) -> 0.00 | J86: =VLOOKUP(A86,'PBMT scores'!A:Z,11,FALSE) -> 0.00 | L86: =VLOOKUP(A86,'PBMT scores'!A:Z,13,FALSE) -> 0.08 | M86: =VLOOKUP(A86,'PBMT scores'!A:Z,14,FALSE) -> 0.04 | N86: =VLOOKUP(A86,'PBMT scores'!A:Z,15,FALSE) -> 0.64 | O86: =VLOOKUP(A86,'PBMT scores'!A:Z,16,FALSE) -> 0.03 | R86: =VLOOKUP(A86,'PBMT scores'!A:Z,19,FALSE) -> 0.02 | S86: =VLOOKUP(A86,'PBMT scores'!A:Z,20,FALSE) -> 0.00
A87: 50-78-2 | B87: =VLOOKUP(A87,'PBMT scores'!A:Z,3,FALSE) -> acetylsalicylzuur (Aspirine) | C87: =VLOOKUP(A87,'PBMT scores'!A:Z,4,FALSE) -> RIWA | E87: =VLOOKUP(A87,'PBMT scores'!A:Z,6,FALSE) -> 0.00 | F87: =VLOOKUP(A87,'PBMT scores'!A:Z,7,FALSE) -> 0.00 | H87: =VLOOKUP(A87,'PBMT scores'!A:Z,9,FALSE) -> 0.00 | I87: =VLOOKUP(A87,'PBMT scores'!A:Z,10,FALSE) -> 0.00 | J87: =VLOOKUP(A87,'PBMT scores'!A:Z,11,FALSE) -> 0.00 | L87: =VLOOKUP(A87,'PBMT scores'!A:Z,13,FALSE) -> 0.08 | M87: =VLOOKUP(A87,'PBMT scores'!A:Z,14,FALSE) -> 0.04 | N87: =VLOOKUP(A87,'PBMT scores'!A:Z,15,FALSE) -> 0.70 | O87: =VLOOKUP(A87,'PBMT scores'!A:Z,16,FALSE) -> 0.03 | R87: =VLOOKUP(A87,'PBMT scores'!A:Z,19,FALSE) -> 0.02 | S87: =VLOOKUP(A87,'PBMT scores'!A:Z,20,FALSE) -> 0.00
A88: 25383-99-7 | B88: =VLOOKUP(A88,'PBMT scores'!A:Z,3,FALSE) -> sodium2-stearoyllactate(1) | C88: =VLOOKUP(A88,'PBMT scores'!A:Z,4,FALSE) -> REACH | E88: =VLOOKUP(A88,'PBMT scores'!A:Z,6,FALSE) -> 0.00 | F88: =VLOOKUP(A88,'PBMT scores'!A:Z,7,FALSE) -> 0.00 | H88: =VLOOKUP(A88,'PBMT scores'!A:Z,9,FALSE) -> 0.00 | I88: =VLOOKUP(A88,'PBMT scores'!A:Z,10,FALSE) -> 0.00 | J88: =VLOOKUP(A88,'PBMT scores'!A:Z,11,FALSE) -> 0.00 | L88: =VLOOKUP(A88,'PBMT scores'!A:Z,13,FALSE) -> 0.14 | M88: =VLOOKUP(A88,'PBMT scores'!A:Z,14,FALSE) -> 0.70 | N88: =VLOOKUP(A88,'PBMT scores'!A:Z,15,FALSE) -> 0.22 | O88: =VLOOKUP(A88,'PBMT scores'!A:Z,16,FALSE) -> 0.25 | R88: =VLOOKUP(A88,'PBMT scores'!A:Z,19,FALSE) -> 0.01 | S88: =VLOOKUP(A88,'PBMT scores'!A:Z,20,FALSE) -> 0.02
A89: 17625-03-5 | B89: =VLOOKUP(A89,'PBMT scores'!A:Z,3,FALSE) -> Sodium hydrogen m-sulphonatobenzoate(1) | C89: =VLOOKUP(A89,'PBMT scores'!A:Z,4,FALSE) -> REACH | E89: =VLOOKUP(A89,'PBMT scores'!A:Z,6,FALSE) -> 0.00 | F89: =VLOOKUP(A89,'PBMT scores'!A:Z,7,FALSE) -> 0.00 | H89: =VLOOKUP(A89,'PBMT scores'!A:Z,9,FALSE) -> 0.00 | I89: =VLOOKUP(A89,'PBMT scores'!A:Z,10,FALSE) -> 0.00 | J89: =VLOOKUP(A89,'PBMT scores'!A:Z,11,FALSE) -> 0.00 | L89: =VLOOKUP(A89,'PBMT scores'!A:Z,13,FALSE) -> 0.09 | M89: =VLOOKUP(A89,'PBMT scores'!A:Z,14,FALSE) -> 0.05 | N89: =VLOOKUP(A89,'PBMT scores'!A:Z,15,FALSE) -> 0.97 | O89: =VLOOKUP(A89,'PBMT scores'!A:Z,16,FALSE) -> 0.01 | R89: =VLOOKUP(A89,'PBMT scores'!A:Z,19,FALSE) -> 0.02 | S89: =VLOOKUP(A89,'PBMT scores'!A:Z,20,FALSE) -> 0.00
A90: 19139-31-2 | B90: =VLOOKUP(A90,'PBMT scores'!A:Z,3,FALSE) -> Dihexyl fumarate(1) | C90: =VLOOKUP(A90,'PBMT scores'!A:Z,4,FALSE) -> REACH | E90: =VLOOKUP(A90,'PBMT scores'!A:Z,6,FALSE) -> 0.00 | F90: =VLOOKUP(A90,'PBMT scores'!A:Z,7,FALSE) -> 0.00 | H90: =VLOOKUP(A90,'PBMT scores'!A:Z,9,FALSE) -> 0.00 | I90: =VLOOKUP(A90,'PBMT scores'!A:Z,10,FALSE) -> 0.00 | J90: =VLOOKUP(A90,'PBMT scores'!A:Z,11,FALSE) -> 0.00 | L90: =VLOOKUP(A90,'PBMT scores'!A:Z,13,FALSE) -> 0.02 | M90: =VLOOKUP(A90,'PBMT scores'!A:Z,14,FALSE) -> 0.13 | N90: =VLOOKUP(A90,'PBMT scores'!A:Z,15,FALSE) -> 0.18 | O90: =VLOOKUP(A90,'PBMT scores'!A:Z,16,FALSE) -> 0.12 | R90: =VLOOKUP(A90,'PBMT scores'!A:Z,19,FALSE) -> 0.01 | S90: =VLOOKUP(A90,'PBMT scores'!A:Z,20,FALSE) -> 0.01
A91: 830-09-1 | B91: =VLOOKUP(A91,'PBMT scores'!A:Z,3,FALSE) -> trans-4-methoxycinnamic acid(1) | C91: =VLOOKUP(A91,'PBMT scores'!A:Z,4,FALSE) -> REACH | E91: =VLOOKUP(A91,'PBMT scores'!A:Z,6,FALSE) -> 0.00 | F91: =VLOOKUP(A91,'PBMT scores'!A:Z,7,FALSE) -> 0.00 | H91: =VLOOKUP(A91,'PBMT scores'!A:Z,9,FALSE) -> 0.00 | I91: =VLOOKUP(A91,'PBMT scores'!A:Z,10,FALSE) -> 0.00 | J91: =VLOOKUP(A91,'PBMT scores'!A:Z,11,FALSE) -> 0.00 | L91: =VLOOKUP(A91,'PBMT scores'!A:Z,13,FALSE) -> 0.06 | M91: =VLOOKUP(A91,'PBMT scores'!A:Z,14,FALSE) -> 0.07 | N91: =VLOOKUP(A91,'PBMT scores'!A:Z,15,FALSE) -> 0.55 | O91: =VLOOKUP(A91,'PBMT scores'!A:Z,16,FALSE) -> 0.18 | R91: =VLOOKUP(A91,'PBMT scores'!A:Z,19,FALSE) -> 0.02 | S91: =VLOOKUP(A91,'PBMT scores'!A:Z,20,FALSE) -> 0.01
A92: 1013-75-8 | B92: =VLOOKUP(A92,'PBMT scores'!A:Z,3,FALSE) -> Ethyl ethyl(phenyl)carbamate(1) | C92: =VLOOKUP(A92,'PBMT scores'!A:Z,4,FALSE) -> REACH | E92: =VLOOKUP(A92,'PBMT scores'!A:Z,6,FALSE) -> 0.00 | F92: =VLOOKUP(A92,'PBMT scores'!A:Z,7,FALSE) -> 0.00 | H92: =VLOOKUP(A92,'PBMT scores'!A:Z,9,FALSE) -> 0.00 | I92: =VLOOKUP(A92,'PBMT scores'!A:Z,10,FALSE) -> 0.00 | J92: =VLOOKUP(A92,'PBMT scores'!A:Z,11,FALSE) -> 0.00 | L92: =VLOOKUP(A92,'PBMT scores'!A:Z,13,FALSE) -> 0.19 | M92: =VLOOKUP(A92,'PBMT scores'!A:Z,14,FALSE) -> 0.18 | N92: =VLOOKUP(A92,'PBMT scores'!A:Z,15,FALSE) -> 0.38 | O92: =VLOOKUP(A92,'PBMT scores'!A:Z,16,FALSE) -> 0.13 | R92: =VLOOKUP(A92,'PBMT scores'!A:Z,19,FALSE) -> 0.02 | S92: =VLOOKUP(A92,'PBMT scores'!A:Z,20,FALSE) -> 0.01
A93: 30361-33-2 | B93: =VLOOKUP(A93,'PBMT scores'!A:Z,3,FALSE) -> (2E,4E)-2,4-decadienoic acid(1) | C93: =VLOOKUP(A93,'PBMT scores'!A:Z,4,FALSE) -> REACH | E93: =VLOOKUP(A93,'PBMT scores'!A:Z,6,FALSE) -> 0.00 | F93: =VLOOKUP(A93,'PBMT scores'!A:Z,7,FALSE) -> 0.00 | H93: =VLOOKUP(A93,'PBMT scores'!A:Z,9,FALSE) -> 0.00 | I93: =VLOOKUP(A93,'PBMT scores'!A:Z,10,FALSE) -> 0.00 | J93: =VLOOKUP(A93,'PBMT scores'!A:Z,11,FALSE) -> 0.00 | L93: =VLOOKUP(A93,'PBMT scores'!A:Z,13,FALSE) -> 0.02 | M93: =VLOOKUP(A93,'PBMT scores'!A:Z,14,FALSE) -> 0.02 | N93: =VLOOKUP(A93,'PBMT scores'!A:Z,15,FALSE) -> 0.48 | O93: =VLOOKUP(A93,'PBMT scores'!A:Z,16,FALSE) -> 0.42 | R93: =VLOOKUP(A93,'PBMT scores'!A:Z,19,FALSE) -> 0.02 | S93: =VLOOKUP(A93,'PBMT scores'!A:Z,20,FALSE) -> 0.02
A94: 607-81-8 | B94: =VLOOKUP(A94,'PBMT scores'!A:Z,3,FALSE) -> Diethyl benzylmalonate(1) | C94: =VLOOKUP(A94,'PBMT scores'!A:Z,4,FALSE) -> REACH | E94: =VLOOKUP(A94,'PBMT scores'!A:Z,6,FALSE) -> 0.00 | F94: =VLOOKUP(A94,'PBMT scores'!A:Z,7,FALSE) -> 0.00 | H94: =VLOOKUP(A94,'PBMT scores'!A:Z,9,FALSE) -> 0.00 | I94: =VLOOKUP(A94,'PBMT scores'!A:Z,10,FALSE) -> 0.00 | J94: =VLOOKUP(A94,'PBMT scores'!A:Z,11,FALSE) -> 0.00 | L94: =VLOOKUP(A94,'PBMT scores'!A:Z,13,FALSE) -> 0.13 | M94: =VLOOKUP(A94,'PBMT scores'!A:Z,14,FALSE) -> 0.11 | N94: =VLOOKUP(A94,'PBMT scores'!A:Z,15,FALSE) -> 0.44 | O94: =VLOOKUP(A94,'PBMT scores'!A:Z,16,FALSE) -> 0.01 | R94: =VLOOKUP(A94,'PBMT scores'!A:Z,19,FALSE) -> 0.02 | S94: =VLOOKUP(A94,'PBMT scores'!A:Z,20,FALSE) -> 0.00
A95: 104-65-4 | B95: =VLOOKUP(A95,'PBMT scores'!A:Z,3,FALSE) -> Cinnamyl formate(1) | C95: =VLOOKUP(A95,'PBMT scores'!A:Z,4,FALSE) -> REACH | E95: =VLOOKUP(A95,'PBMT scores'!A:Z,6,FALSE) -> 0.00 | F95: =VLOOKUP(A95,'PBMT scores'!A:Z,7,FALSE) -> 0.00 | H95: =VLOOKUP(A95,'PBMT scores'!A:Z,9,FALSE) -> 0.00 | I95: =VLOOKUP(A95,'PBMT scores'!A:Z,10,FALSE) -> 0.00 | J95: =VLOOKUP(A95,'PBMT scores'!A:Z,11,FALSE) -> 0.00 | L95: =VLOOKUP(A95,'PBMT scores'!A:Z,13,FALSE) -> 0.09 | M95: =VLOOKUP(A95,'PBMT scores'!A:Z,14,FALSE) -> 0.03 | N95: =VLOOKUP(A95,'PBMT scores'!A:Z,15,FALSE) -> 0.48 | O95: =VLOOKUP(A95,'PBMT scores'!A:Z,16,FALSE) -> 0.02 | R95: =VLOOKUP(A95,'PBMT scores'!A:Z,19,FALSE) -> 0.02 | S95: =VLOOKUP(A95,'PBMT scores'!A:Z,20,FALSE) -> 0.00
A96: 5211-62-1 | B96: =VLOOKUP(A96,'PBMT scores'!A:Z,3,FALSE) -> 2-methoxyphenylacetone(1) | C96: =VLOOKUP(A96,'PBMT scores'!A:Z,4,FALSE) -> REACH | E96: =VLOOKUP(A96,'PBMT scores'!A:Z,6,FALSE) -> 0.00 | F96: =VLOOKUP(A96,'PBMT scores'!A:Z,7,FALSE) -> 0.00 | H96: =VLOOKUP(A96,'PBMT scores'!A:Z,9,FALSE) -> 0.00 | I96: =VLOOKUP(A96,'PBMT scores'!A:Z,10,FALSE) -> 0.00 | J96: =VLOOKUP(A96,'PBMT scores'!A:Z,11,FALSE) -> 0.00 | L96: =VLOOKUP(A96,'PBMT scores'!A:Z,13,FALSE) -> 0.22 | M96: =VLOOKUP(A96,'PBMT scores'!A:Z,14,FALSE) -> 0.10 | N96: =VLOOKUP(A96,'PBMT scores'!A:Z,15,FALSE) -> 0.49 | O96: =VLOOKUP(A96,'PBMT scores'!A:Z,16,FALSE) -> 0.04 | R96: =VLOOKUP(A96,'PBMT scores'!A:Z,19,FALSE) -> 0.02 | S96: =VLOOKUP(A96,'PBMT scores'!A:Z,20,FALSE) -> 0.00
A97: 77-90-7 | B97: =VLOOKUP(A97,'PBMT scores'!A:Z,3,FALSE) -> Tributyl O-acetylcitrate(1) | C97: =VLOOKUP(A97,'PBMT scores'!A:Z,4,FALSE) -> REACH | E97: =VLOOKUP(A97,'PBMT scores'!A:Z,6,FALSE) -> 0.00 | F97: =VLOOKUP(A97,'PBMT scores'!A:Z,7,FALSE) -> 0.00 | H97: =VLOOKUP(A97,'PBMT scores'!A:Z,9,FALSE) -> 0.00 | I97: =VLOOKUP(A97,'PBMT scores'!A:Z,10,FALSE) -> 0.00 | J97: =VLOOKUP(A97,'PBMT scores'!A:Z,11,FALSE) -> 0.00 | L97: =VLOOKUP(A97,'PBMT scores'!A:Z,13,FALSE) -> 0.02 | M97: =VLOOKUP(A97,'PBMT scores'!A:Z,14,FALSE) -> 0.02 | N97: =VLOOKUP(A97,'PBMT scores'!A:Z,15,FALSE) -> 0.31 | O97: =VLOOKUP(A97,'PBMT scores'!A:Z,16,FALSE) -> 0.00 | R97: =VLOOKUP(A97,'PBMT scores'!A:Z,19,FALSE) -> 0.02 | S97: =VLOOKUP(A97,'PBMT scores'!A:Z,20,FALSE) -> 0.00
A98: 66988-04-3 | B98: =VLOOKUP(A98,'PBMT scores'!A:Z,3,FALSE) -> Sodium 2-(1-carboxylatoethoxy)-1-methyl-2-oxoethyl isooctadecanoate(1) | C98: =VLOOKUP(A98,'PBMT scores'!A:Z,4,FALSE) -> REACH | E98: =VLOOKUP(A98,'PBMT scores'!A:Z,6,FALSE) -> 0.00 | F98: =VLOOKUP(A98,'PBMT scores'!A:Z,7,FALSE) -> 0.00 | H98: =VLOOKUP(A98,'PBMT scores'!A:Z,9,FALSE) -> 0.00 | I98: =VLOOKUP(A98,'PBMT scores'!A:Z,10,FALSE) -> 0.00 | J98: =VLOOKUP(A98,'PBMT scores'!A:Z,11,FALSE) -> 0.00 | L98: =VLOOKUP(A98,'PBMT scores'!A:Z,13,FALSE) -> 0.12 | M98: =VLOOKUP(A98,'PBMT scores'!A:Z,14,FALSE) -> 0.67 | N98: =VLOOKUP(A98,'PBMT scores'!A:Z,15,FALSE) -> 0.46 | O98: =VLOOKUP(A98,'PBMT scores'!A:Z,16,FALSE) -> 0.10 | R98: =VLOOKUP(A98,'PBMT scores'!A:Z,19,FALSE) -> 0.02 | S98: =VLOOKUP(A98,'PBMT scores'!A:Z,20,FALSE) -> 0.01
A99: 620-67-7 | B99: =VLOOKUP(A99,'PBMT scores'!A:Z,3,FALSE) -> Propane-1,2,3-triyl trisheptanoate(1) | C99: =VLOOKUP(A99,'PBMT scores'!A:Z,4,FALSE) -> REACH | E99: =VLOOKUP(A99,'PBMT scores'!A:Z,6,FALSE) -> 0.00 | F99: =VLOOKUP(A99,'PBMT scores'!A:Z,7,FALSE) -> 0.00 | H99: =VLOOKUP(A99,'PBMT scores'!A:Z,9,FALSE) -> 0.00 | I99: =VLOOKUP(A99,'PBMT scores'!A:Z,10,FALSE) -> 0.00 | J99: =VLOOKUP(A99,'PBMT scores'!A:Z,11,FALSE) -> 0.00 | L99: =VLOOKUP(A99,'PBMT scores'!A:Z,13,FALSE) -> 0.01 | M99: =VLOOKUP(A99,'PBMT scores'!A:Z,14,FALSE) -> 0.19 | N99: =VLOOKUP(A99,'PBMT scores'!A:Z,15,FALSE) -> 0.11 | O99: =VLOOKUP(A99,'PBMT scores'!A:Z,16,FALSE) -> 0.01 | R99: =VLOOKUP(A99,'PBMT scores'!A:Z,19,FALSE) -> 0.01 | S99: =VLOOKUP(A99,'PBMT scores'!A:Z,20,FALSE) -> 0.00
A100: 4181-95-7 | B100: =VLOOKUP(A100,'PBMT scores'!A:Z,3,FALSE) -> tetracontaan | C100: =VLOOKUP(A100,'PBMT scores'!A:Z,4,FALSE) -> RIWA | E100: =VLOOKUP(A100,'PBMT scores'!A:Z,6,FALSE) -> 0.00 | F100: =VLOOKUP(A100,'PBMT scores'!A:Z,7,FALSE) -> 0.02 | H100: =VLOOKUP(A100,'PBMT scores'!A:Z,9,FALSE) -> 0.00 | I100: =VLOOKUP(A100,'PBMT scores'!A:Z,10,FALSE) -> 0.00 | J100: =VLOOKUP(A100,'PBMT scores'!A:Z,11,FALSE) -> 0.00 | L100: =VLOOKUP(A100,'PBMT scores'!A:Z,13,FALSE) -> 0.30 | M100: =VLOOKUP(A100,'PBMT scores'!A:Z,14,FALSE) -> 0.86 | N100: =VLOOKUP(A100,'PBMT scores'!A:Z,15,FALSE) -> 0.00 | O100: =VLOOKUP(A100,'PBMT scores'!A:Z,16,FALSE) -> 0.00 | R100: =VLOOKUP(A100,'PBMT scores'!A:Z,19,FALSE) -> 0.00 | S100: =VLOOKUP(A100,'PBMT scores'!A:Z,20,FALSE) -> 0.01
A101: 64920-29-2 | B101: =VLOOKUP(A101,'PBMT scores'!A:Z,3,FALSE) -> Ethyl 2-oxo-4-phenylbutyrate(1) | C101: =VLOOKUP(A101,'PBMT scores'!A:Z,4,FALSE) -> REACH | E101: =VLOOKUP(A101,'PBMT scores'!A:Z,6,FALSE) -> 0.00 | F101: =VLOOKUP(A101,'PBMT scores'!A:Z,7,FALSE) -> 0.00 | H101: =VLOOKUP(A101,'PBMT scores'!A:Z,9,FALSE) -> 0.00 | I101: =VLOOKUP(A101,'PBMT scores'!A:Z,10,FALSE) -> 0.00 | J101: =VLOOKUP(A101,'PBMT scores'!A:Z,11,FALSE) -> 0.00 | L101: =VLOOKUP(A101,'PBMT scores'!A:Z,13,FALSE) -> 0.15 | M101: =VLOOKUP(A101,'PBMT scores'!A:Z,14,FALSE) -> 0.07 | N101: =VLOOKUP(A101,'PBMT scores'!A:Z,15,FALSE) -> 0.60 | O101: =VLOOKUP(A101,'PBMT scores'!A:Z,16,FALSE) -> 0.02 | R101: =VLOOKUP(A101,'PBMT scores'!A:Z,19,FALSE) -> 0.02 | S101: =VLOOKUP(A101,'PBMT scores'!A:Z,20,FALSE) -> 0.00
A102: 42233-75-0 | B102: =VLOOKUP(A102,'PBMT scores'!A:Z,3,FALSE) -> Didocosyl sebacate(1) | C102: =VLOOKUP(A102,'PBMT scores'!A:Z,4,FALSE) -> REACH | E102: =VLOOKUP(A102,'PBMT scores'!A:Z,6,FALSE) -> 0.00 | F102: =VLOOKUP(A102,'PBMT scores'!A:Z,7,FALSE) -> 0.01 | H102: =VLOOKUP(A102,'PBMT scores'!A:Z,9,FALSE) -> 0.00 | I102: =VLOOKUP(A102,'PBMT scores'!A:Z,10,FALSE) -> 0.00 | J102: =VLOOKUP(A102,'PBMT scores'!A:Z,11,FALSE) -> 0.00 | L102: =VLOOKUP(A102,'PBMT scores'!A:Z,13,FALSE) -> 0.53 | M102: =VLOOKUP(A102,'PBMT scores'!A:Z,14,FALSE) -> 0.93 | N102: =VLOOKUP(A102,'PBMT scores'!A:Z,15,FALSE) -> 0.00 | O102: =VLOOKUP(A102,'PBMT scores'!A:Z,16,FALSE) -> 0.00 | R102: =VLOOKUP(A102,'PBMT scores'!A:Z,19,FALSE) -> 0.00 | S102: =VLOOKUP(A102,'PBMT scores'!A:Z,20,FALSE) -> 0.00
A103: 30899-62-8 | B103: =VLOOKUP(A103,'PBMT scores'!A:Z,3,FALSE) -> Lauric acid, ester with hydroxypropanediyl diacetate(1) | C103: =VLOOKUP(A103,'PBMT scores'!A:Z,4,FALSE) -> REACH | E103: =VLOOKUP(A103,'PBMT scores'!A:Z,6,FALSE) -> 0.00 | F103: =VLOOKUP(A103,'PBMT scores'!A:Z,7,FALSE) -> 0.00 | H103: =VLOOKUP(A103,'PBMT scores'!A:Z,9,FALSE) -> 0.00 | I103: =VLOOKUP(A103,'PBMT scores'!A:Z,10,FALSE) -> 0.00 | J103: =VLOOKUP(A103,'PBMT scores'!A:Z,11,FALSE) -> 0.00 | L103: =VLOOKUP(A103,'PBMT scores'!A:Z,13,FALSE) -> 0.06 | M103: =VLOOKUP(A103,'PBMT scores'!A:Z,14,FALSE) -> 0.15 | N103: =VLOOKUP(A103,'PBMT scores'!A:Z,15,FALSE) -> 0.23 | O103: =VLOOKUP(A103,'PBMT scores'!A:Z,16,FALSE) -> 0.01 | R103: =VLOOKUP(A103,'PBMT scores'!A:Z,19,FALSE) -> 0.02 | S103: =VLOOKUP(A103,'PBMT scores'!A:Z,20,FALSE) -> 0.00
A104: 7194-85-6 | B104: =VLOOKUP(A104,'PBMT scores'!A:Z,3,FALSE) -> octatriacontaan | C104: =VLOOKUP(A104,'PBMT scores'!A:Z,4,FALSE) -> RIWA | E104: =VLOOKUP(A104,'PBMT scores'!A:Z,6,FALSE) -> 0.00 | F104: =VLOOKUP(A104,'PBMT scores'!A:Z,7,FALSE) -> 0.02 | H104: =VLOOKUP(A104,'PBMT scores'!A:Z,9,FALSE) -> 0.00 | I104: =VLOOKUP(A104,'PBMT scores'!A:Z,10,FALSE) -> 0.00 | J104: =VLOOKUP(A104,'PBMT scores'!A:Z,11,FALSE) -> 0.00 | L104: =VLOOKUP(A104,'PBMT scores'!A:Z,13,FALSE) -> 0.26 | M104: =VLOOKUP(A104,'PBMT scores'!A:Z,14,FALSE) -> 0.84 | N104: =VLOOKUP(A104,'PBMT scores'!A:Z,15,FALSE) -> 0.00 | O104: =VLOOKUP(A104,'PBMT scores'!A:Z,16,FALSE) -> 0.00 | R104: =VLOOKUP(A104,'PBMT scores'!A:Z,19,FALSE) -> 0.00 | S104: =VLOOKUP(A104,'PBMT scores'!A:Z,20,FALSE) -> 0.01
A105: 2206-43-1 | B105: =VLOOKUP(A105,'PBMT scores'!A:Z,3,FALSE) -> 4-methoxyisophthalic acid(1) | C105: =VLOOKUP(A105,'PBMT scores'!A:Z,4,FALSE) -> REACH | E105: =VLOOKUP(A105,'PBMT scores'!A:Z,6,FALSE) -> 0.00 | F105: =VLOOKUP(A105,'PBMT scores'!A:Z,7,FALSE) -> 0.00 | H105: =VLOOKUP(A105,'PBMT scores'!A:Z,9,FALSE) -> 0.00 | I105: =VLOOKUP(A105,'PBMT scores'!A:Z,10,FALSE) -> 0.00 | J105: =VLOOKUP(A105,'PBMT scores'!A:Z,11,FALSE) -> 0.00 | L105: =VLOOKUP(A105,'PBMT scores'!A:Z,13,FALSE) -> 0.13 | M105: =VLOOKUP(A105,'PBMT scores'!A:Z,14,FALSE) -> 0.06 | N105: =VLOOKUP(A105,'PBMT scores'!A:Z,15,FALSE) -> 0.66 | O105: =VLOOKUP(A105,'PBMT scores'!A:Z,16,FALSE) -> 0.01 | R105: =VLOOKUP(A105,'PBMT scores'!A:Z,19,FALSE) -> 0.03 | S105: =VLOOKUP(A105,'PBMT scores'!A:Z,20,FALSE) -> 0.00
A106: 97338-28-8 | B106: =VLOOKUP(A106,'PBMT scores'!A:Z,3,FALSE) -> Isohexadecyl 12-[(1-oxooctadecyl)oxy]octadecanoate(1) | C106: =VLOOKUP(A106,'PBMT scores'!A:Z,4,FALSE) -> REACH | E106: =VLOOKUP(A106,'PBMT scores'!A:Z,6,FALSE) -> 0.00 | F106: =VLOOKUP(A106,'PBMT scores'!A:Z,7,FALSE) -> 0.01 | H106: =VLOOKUP(A106,'PBMT scores'!A:Z,9,FALSE) -> 0.00 | I106: =VLOOKUP(A106,'PBMT scores'!A:Z,10,FALSE) -> 0.00 | J106: =VLOOKUP(A106,'PBMT scores'!A:Z,11,FALSE) -> 0.00 | L106: =VLOOKUP(A106,'PBMT scores'!A:Z,13,FALSE) -> 0.48 | M106: =VLOOKUP(A106,'PBMT scores'!A:Z,14,FALSE) -> 0.92 | N106: =VLOOKUP(A106,'PBMT scores'!A:Z,15,FALSE) -> 0.00 | O106: =VLOOKUP(A106,'PBMT scores'!A:Z,16,FALSE) -> 0.00 | R106: =VLOOKUP(A106,'PBMT scores'!A:Z,19,FALSE) -> 0.00 | S106: =VLOOKUP(A106,'PBMT scores'!A:Z,20,FALSE) -> 0.00
A107: 10094-34-5 | B107: =VLOOKUP(A107,'PBMT scores'!A:Z,3,FALSE) -> ?,?-dimethylphenethyl butyrate(1) | C107: =VLOOKUP(A107,'PBMT scores'!A:Z,4,FALSE) -> REACH | E107: =VLOOKUP(A107,'PBMT scores'!A:Z,6,FALSE) -> 0.00 | F107: =VLOOKUP(A107,'PBMT scores'!A:Z,7,FALSE) -> 0.00 | H107: =VLOOKUP(A107,'PBMT scores'!A:Z,9,FALSE) -> 0.00 | I107: =VLOOKUP(A107,'PBMT scores'!A:Z,10,FALSE) -> 0.00 | J107: =VLOOKUP(A107,'PBMT scores'!A:Z,11,FALSE) -> 0.00 | L107: =VLOOKUP(A107,'PBMT scores'!A:Z,13,FALSE) -> 0.28 | M107: =VLOOKUP(A107,'PBMT scores'!A:Z,14,FALSE) -> 0.24 | N107: =VLOOKUP(A107,'PBMT scores'!A:Z,15,FALSE) -> 0.29 | O107: =VLOOKUP(A107,'PBMT scores'!A:Z,16,FALSE) -> 0.12 | R107: =VLOOKUP(A107,'PBMT scores'!A:Z,19,FALSE) -> 0.02 | S107: =VLOOKUP(A107,'PBMT scores'!A:Z,20,FALSE) -> 0.01
A108: 630-06-8 | B108: =VLOOKUP(A108,'PBMT scores'!A:Z,3,FALSE) -> hexatriacontaan | C108: =VLOOKUP(A108,'PBMT scores'!A:Z,4,FALSE) -> RIWA | E108: =VLOOKUP(A108,'PBMT scores'!A:Z,6,FALSE) -> 0.00 | F108: =VLOOKUP(A108,'PBMT scores'!A:Z,7,FALSE) -> 0.02 | H108: =VLOOKUP(A108,'PBMT scores'!A:Z,9,FALSE) -> 0.00 | I108: =VLOOKUP(A108,'PBMT scores'!A:Z,10,FALSE) -> 0.00 | J108: =VLOOKUP(A108,'PBMT scores'!A:Z,11,FALSE) -> 0.00 | L108: =VLOOKUP(A108,'PBMT scores'!A:Z,13,FALSE) -> 0.22 | M108: =VLOOKUP(A108,'PBMT scores'!A:Z,14,FALSE) -> 0.81 | N108: =VLOOKUP(A108,'PBMT scores'!A:Z,15,FALSE) -> 0.00 | O108: =VLOOKUP(A108,'PBMT scores'!A:Z,16,FALSE) -> 0.00 | R108: =VLOOKUP(A108,'PBMT scores'!A:Z,19,FALSE) -> 0.00 | S108: =VLOOKUP(A108,'PBMT scores'!A:Z,20,FALSE) -> 0.01
A109: 7460-74-4 | B109: =VLOOKUP(A109,'PBMT scores'!A:Z,3,FALSE) -> Phenethyl valerate(1) | C109: =VLOOKUP(A109,'PBMT scores'!A:Z,4,FALSE) -> REACH | E109: =VLOOKUP(A109,'PBMT scores'!A:Z,6,FALSE) -> 0.00 | F109: =VLOOKUP(A109,'PBMT scores'!A:Z,7,FALSE) -> 0.00 | H109: =VLOOKUP(A109,'PBMT scores'!A:Z,9,FALSE) -> 0.00 | I109: =VLOOKUP(A109,'PBMT scores'!A:Z,10,FALSE) -> 0.00 | J109: =VLOOKUP(A109,'PBMT scores'!A:Z,11,FALSE) -> 0.00 | L109: =VLOOKUP(A109,'PBMT scores'!A:Z,13,FALSE) -> 0.06 | M109: =VLOOKUP(A109,'PBMT scores'!A:Z,14,FALSE) -> 0.06 | N109: =VLOOKUP(A109,'PBMT scores'!A:Z,15,FALSE) -> 0.32 | O109: =VLOOKUP(A109,'PBMT scores'!A:Z,16,FALSE) -> 0.09 | R109: =VLOOKUP(A109,'PBMT scores'!A:Z,19,FALSE) -> 0.02 | S109: =VLOOKUP(A109,'PBMT scores'!A:Z,20,FALSE) -> 0.01
A110: 692-86-4 | B110: =VLOOKUP(A110,'PBMT scores'!A:Z,3,FALSE) -> Ethyl undec-10-enoate(1) | C110: =VLOOKUP(A110,'PBMT scores'!A:Z,4,FALSE) -> REACH | E110: =VLOOKUP(A110,'PBMT scores'!A:Z,6,FALSE) -> 0.00 | F110: =VLOOKUP(A110,'PBMT scores'!A:Z,7,FALSE) -> 0.00 | H110: =VLOOKUP(A110,'PBMT scores'!A:Z,9,FALSE) -> 0.00 | I110: =VLOOKUP(A110,'PBMT scores'!A:Z,10,FALSE) -> 0.00 | J110: =VLOOKUP(A110,'PBMT scores'!A:Z,11,FALSE) -> 0.00 | L110: =VLOOKUP(A110,'PBMT scores'!A:Z,13,FALSE) -> 0.13 | M110: =VLOOKUP(A110,'PBMT scores'!A:Z,14,FALSE) -> 0.08 | N110: =VLOOKUP(A110,'PBMT scores'!A:Z,15,FALSE) -> 0.23 | O110: =VLOOKUP(A110,'PBMT scores'!A:Z,16,FALSE) -> 0.17 | R110: =VLOOKUP(A110,'PBMT scores'!A:Z,19,FALSE) -> 0.02 | S110: =VLOOKUP(A110,'PBMT scores'!A:Z,20,FALSE) -> 0.02
A111: 106-29-6 | B111: =VLOOKUP(A111,'PBMT scores'!A:Z,3,FALSE) -> Geranyl butyrate(1) | C111: =VLOOKUP(A111,'PBMT scores'!A:Z,4,FALSE) -> REACH | E111: =VLOOKUP(A111,'PBMT scores'!A:Z,6,FALSE) -> 0.00 | F111: =VLOOKUP(A111,'PBMT scores'!A:Z,7,FALSE) -> 0.00 | H111: =VLOOKUP(A111,'PBMT scores'!A:Z,9,FALSE) -> 0.00 | I111: =VLOOKUP(A111,'PBMT scores'!A:Z,10,FALSE) -> 0.00 | J111: =VLOOKUP(A111,'PBMT scores'!A:Z,11,FALSE) -> 0.00 | L111: =VLOOKUP(A111,'PBMT scores'!A:Z,13,FALSE) -> 0.14 | M111: =VLOOKUP(A111,'PBMT scores'!A:Z,14,FALSE) -> 0.08 | N111: =VLOOKUP(A111,'PBMT scores'!A:Z,15,FALSE) -> 0.21 | O111: =VLOOKUP(A111,'PBMT scores'!A:Z,16,FALSE) -> 0.37 | R111: =VLOOKUP(A111,'PBMT scores'!A:Z,19,FALSE) -> 0.02 | S111: =VLOOKUP(A111,'PBMT scores'!A:Z,20,FALSE) -> 0.03
A112: 98-92-0 | B112: =VLOOKUP(A112,'PBMT scores'!A:Z,3,FALSE) -> Nicotinamide(1) | C112: =VLOOKUP(A112,'PBMT scores'!A:Z,4,FALSE) -> REACH | E112: =VLOOKUP(A112,'PBMT scores'!A:Z,6,FALSE) -> 0.00 | F112: =VLOOKUP(A112,'PBMT scores'!A:Z,7,FALSE) -> 0.00 | H112: =VLOOKUP(A112,'PBMT scores'!A:Z,9,FALSE) -> 0.00 | I112: =VLOOKUP(A112,'PBMT scores'!A:Z,10,FALSE) -> 0.00 | J112: =VLOOKUP(A112,'PBMT scores'!A:Z,11,FALSE) -> 0.00 | L112: =VLOOKUP(A112,'PBMT scores'!A:Z,13,FALSE) -> 0.23 | M112: =VLOOKUP(A112,'PBMT scores'!A:Z,14,FALSE) -> 0.11 | N112: =VLOOKUP(A112,'PBMT scores'!A:Z,15,FALSE) -> 0.72 | O112: =VLOOKUP(A112,'PBMT scores'!A:Z,16,FALSE) -> 0.01 | R112: =VLOOKUP(A112,'PBMT scores'!A:Z,19,FALSE) -> 0.03 | S112: =VLOOKUP(A112,'PBMT scores'!A:Z,20,FALSE) -> 0.00
A113: 14167-59-0 | B113: =VLOOKUP(A113,'PBMT scores'!A:Z,3,FALSE) -> tetratriacontaan | C113: =VLOOKUP(A113,'PBMT scores'!A:Z,4,FALSE) -> RIWA | E113: =VLOOKUP(A113,'PBMT scores'!A:Z,6,FALSE) -> 0.00 | F113: =VLOOKUP(A113,'PBMT scores'!A:Z,7,FALSE) -> 0.02 | H113: =VLOOKUP(A113,'PBMT scores'!A:Z,9,FALSE) -> 0.00 | I113: =VLOOKUP(A113,'PBMT scores'!A:Z,10,FALSE) -> 0.00 | J113: =VLOOKUP(A113,'PBMT scores'!A:Z,11,FALSE) -> 0.00 | L113: =VLOOKUP(A113,'PBMT scores'!A:Z,13,FALSE) -> 0.19 | M113: =VLOOKUP(A113,'PBMT scores'!A:Z,14,FALSE) -> 0.78 | N113: =VLOOKUP(A113,'PBMT scores'!A:Z,15,FALSE) -> 0.00 | O113: =VLOOKUP(A113,'PBMT scores'!A:Z,16,FALSE) -> 0.00 | R113: =VLOOKUP(A113,'PBMT scores'!A:Z,19,FALSE) -> 0.00 | S113: =VLOOKUP(A113,'PBMT scores'!A:Z,20,FALSE) -> 0.01
A114: 7417-21-2 | B114: =VLOOKUP(A114,'PBMT scores'!A:Z,3,FALSE) -> 3,4-dimethoxyphenethyl alcohol(1) | C114: =VLOOKUP(A114,'PBMT scores'!A:Z,4,FALSE) -> REACH | E114: =VLOOKUP(A114,'PBMT scores'!A:Z,6,FALSE) -> 0.00 | F114: =VLOOKUP(A114,'PBMT scores'!A:Z,7,FALSE) -> 0.00 | H114: =VLOOKUP(A114,'PBMT scores'!A:Z,9,FALSE) -> 0.00 | I114: =VLOOKUP(A114,'PBMT scores'!A:Z,10,FALSE) -> 0.00 | J114: =VLOOKUP(A114,'PBMT scores'!A:Z,11,FALSE) -> 0.00 | L114: =VLOOKUP(A114,'PBMT scores'!A:Z,13,FALSE) -> 0.18 | M114: =VLOOKUP(A114,'PBMT scores'!A:Z,14,FALSE) -> 0.08 | N114: =VLOOKUP(A114,'PBMT scores'!A:Z,15,FALSE) -> 0.62 | O114: =VLOOKUP(A114,'PBMT scores'!A:Z,16,FALSE) -> 0.04 | R114: =VLOOKUP(A114,'PBMT scores'!A:Z,19,FALSE) -> 0.03 | S114: =VLOOKUP(A114,'PBMT scores'!A:Z,20,FALSE) -> 0.00
A115: 22413-03-2 | B115: =VLOOKUP(A115,'PBMT scores'!A:Z,3,FALSE) -> Docosyl stearate(1) | C115: =VLOOKUP(A115,'PBMT scores'!A:Z,4,FALSE) -> REACH | E115: =VLOOKUP(A115,'PBMT scores'!A:Z,6,FALSE) -> 0.00 | F115: =VLOOKUP(A115,'PBMT scores'!A:Z,7,FALSE) -> 0.01 | H115: =VLOOKUP(A115,'PBMT scores'!A:Z,9,FALSE) -> 0.00 | I115: =VLOOKUP(A115,'PBMT scores'!A:Z,10,FALSE) -> 0.00 | J115: =VLOOKUP(A115,'PBMT scores'!A:Z,11,FALSE) -> 0.00 | L115: =VLOOKUP(A115,'PBMT scores'!A:Z,13,FALSE) -> 0.26 | M115: =VLOOKUP(A115,'PBMT scores'!A:Z,14,FALSE) -> 0.83 | N115: =VLOOKUP(A115,'PBMT scores'!A:Z,15,FALSE) -> 0.00 | O115: =VLOOKUP(A115,'PBMT scores'!A:Z,16,FALSE) -> 0.00 | R115: =VLOOKUP(A115,'PBMT scores'!A:Z,19,FALSE) -> 0.00 | S115: =VLOOKUP(A115,'PBMT scores'!A:Z,20,FALSE) -> 0.00
A116: 24271-12-3 | B116: =VLOOKUP(A116,'PBMT scores'!A:Z,3,FALSE) -> Octadecyl docosanoate(1) | C116: =VLOOKUP(A116,'PBMT scores'!A:Z,4,FALSE) -> REACH | E116: =VLOOKUP(A116,'PBMT scores'!A:Z,6,FALSE) -> 0.00 | F116: =VLOOKUP(A116,'PBMT scores'!A:Z,7,FALSE) -> 0.01 | H116: =VLOOKUP(A116,'PBMT scores'!A:Z,9,FALSE) -> 0.00 | I116: =VLOOKUP(A116,'PBMT scores'!A:Z,10,FALSE) -> 0.00 | J116: =VLOOKUP(A116,'PBMT scores'!A:Z,11,FALSE) -> 0.00 | L116: =VLOOKUP(A116,'PBMT scores'!A:Z,13,FALSE) -> 0.26 | M116: =VLOOKUP(A116,'PBMT scores'!A:Z,14,FALSE) -> 0.83 | N116: =VLOOKUP(A116,'PBMT scores'!A:Z,15,FALSE) -> 0.00 | O116: =VLOOKUP(A116,'PBMT scores'!A:Z,16,FALSE) -> 0.00 | R116: =VLOOKUP(A116,'PBMT scores'!A:Z,19,FALSE) -> 0.00 | S116: =VLOOKUP(A116,'PBMT scores'!A:Z,20,FALSE) -> 0.00
A117: 84434-23-1 | B117: =VLOOKUP(A117,'PBMT scores'!A:Z,3,FALSE) -> p-tert-butylcinnamaldehyde(1) | C117: =VLOOKUP(A117,'PBMT scores'!A:Z,4,FALSE) -> REACH | E117: =VLOOKUP(A117,'PBMT scores'!A:Z,6,FALSE) -> 0.00 | F117: =VLOOKUP(A117,'PBMT scores'!A:Z,7,FALSE) -> 0.01 | H117: =VLOOKUP(A117,'PBMT scores'!A:Z,9,FALSE) -> 0.00 | I117: =VLOOKUP(A117,'PBMT scores'!A:Z,10,FALSE) -> 0.00 | J117: =VLOOKUP(A117,'PBMT scores'!A:Z,11,FALSE) -> 0.00 | L117: =VLOOKUP(A117,'PBMT scores'!A:Z,13,FALSE) -> 0.28 | M117: =VLOOKUP(A117,'PBMT scores'!A:Z,14,FALSE) -> 0.31 | N117: =VLOOKUP(A117,'PBMT scores'!A:Z,15,FALSE) -> 0.37 | O117: =VLOOKUP(A117,'PBMT scores'!A:Z,16,FALSE) -> 0.51 | R117: =VLOOKUP(A117,'PBMT scores'!A:Z,19,FALSE) -> 0.03 | S117: =VLOOKUP(A117,'PBMT scores'!A:Z,20,FALSE) -> 0.03
A118: 544-85-4 | B118: =VLOOKUP(A118,'PBMT scores'!A:Z,3,FALSE) -> dotriacontaan | C118: =VLOOKUP(A118,'PBMT scores'!A:Z,4,FALSE) -> RIWA | E118: =VLOOKUP(A118,'PBMT scores'!A:Z,6,FALSE) -> 0.01 | F118: =VLOOKUP(A118,'PBMT scores'!A:Z,7,FALSE) -> 0.02 | H118: =VLOOKUP(A118,'PBMT scores'!A:Z,9,FALSE) -> 0.00 | I118: =VLOOKUP(A118,'PBMT scores'!A:Z,10,FALSE) -> 0.00 | J118: =VLOOKUP(A118,'PBMT scores'!A:Z,11,FALSE) -> 0.00 | L118: =VLOOKUP(A118,'PBMT scores'!A:Z,13,FALSE) -> 0.16 | M118: =VLOOKUP(A118,'PBMT scores'!A:Z,14,FALSE) -> 0.75 | N118: =VLOOKUP(A118,'PBMT scores'!A:Z,15,FALSE) -> 0.00 | O118: =VLOOKUP(A118,'PBMT scores'!A:Z,16,FALSE) -> 0.01 | R118: =VLOOKUP(A118,'PBMT scores'!A:Z,19,FALSE) -> 0.00 | S118: =VLOOKUP(A118,'PBMT scores'!A:Z,20,FALSE) -> 0.01
A119: 93-07-2 | B119: =VLOOKUP(A119,'PBMT scores'!A:Z,3,FALSE) -> Veratric acid(1) | C119: =VLOOKUP(A119,'PBMT scores'!A:Z,4,FALSE) -> REACH | E119: =VLOOKUP(A119,'PBMT scores'!A:Z,6,FALSE) -> 0.01 | F119: =VLOOKUP(A119,'PBMT scores'!A:Z,7,FALSE) -> 0.00 | H119: =VLOOKUP(A119,'PBMT scores'!A:Z,9,FALSE) -> 0.00 | I119: =VLOOKUP(A119,'PBMT scores'!A:Z,10,FALSE) -> 0.00 | J119: =VLOOKUP(A119,'PBMT scores'!A:Z,11,FALSE) -> 0.00 | L119: =VLOOKUP(A119,'PBMT scores'!A:Z,13,FALSE) -> 0.18 | M119: =VLOOKUP(A119,'PBMT scores'!A:Z,14,FALSE) -> 0.08 | N119: =VLOOKUP(A119,'PBMT scores'!A:Z,15,FALSE) -> 0.64 | O119: =VLOOKUP(A119,'PBMT scores'!A:Z,16,FALSE) -> 0.05 | R119: =VLOOKUP(A119,'PBMT scores'!A:Z,19,FALSE) -> 0.04 | S119: =VLOOKUP(A119,'PBMT scores'!A:Z,20,FALSE) -> 0.01
A120: 141-16-2 | B120: =VLOOKUP(A120,'PBMT scores'!A:Z,3,FALSE) -> Citronellyl butyrate(1) | C120: =VLOOKUP(A120,'PBMT scores'!A:Z,4,FALSE) -> REACH | E120: =VLOOKUP(A120,'PBMT scores'!A:Z,6,FALSE) -> 0.01 | F120: =VLOOKUP(A120,'PBMT scores'!A:Z,7,FALSE) -> 0.01 | H120: =VLOOKUP(A120,'PBMT scores'!A:Z,9,FALSE) -> 0.00 | I120: =VLOOKUP(A120,'PBMT scores'!A:Z,10,FALSE) -> 0.00 | J120: =VLOOKUP(A120,'PBMT scores'!A:Z,11,FALSE) -> 0.00 | L120: =VLOOKUP(A120,'PBMT scores'!A:Z,13,FALSE) -> 0.14 | M120: =VLOOKUP(A120,'PBMT scores'!A:Z,14,FALSE) -> 0.10 | N120: =VLOOKUP(A120,'PBMT scores'!A:Z,15,FALSE) -> 0.21 | O120: =VLOOKUP(A120,'PBMT scores'!A:Z,16,FALSE) -> 0.29 | R120: =VLOOKUP(A120,'PBMT scores'!A:Z,19,FALSE) -> 0.02 | S120: =VLOOKUP(A120,'PBMT scores'!A:Z,20,FALSE) -> 0.03
A121: 2778-96-3 | B121: =VLOOKUP(A121,'PBMT scores'!A:Z,3,FALSE) -> Octadecyl stearate(1) | C121: =VLOOKUP(A121,'PBMT scores'!A:Z,4,FALSE) -> REACH | E121: =VLOOKUP(A121,'PBMT scores'!A:Z,6,FALSE) -> 0.01 | F121: =VLOOKUP(A121,'PBMT scores'!A:Z,7,FALSE) -> 0.01 | H121: =VLOOKUP(A121,'PBMT scores'!A:Z,9,FALSE) -> 0.00 | I121: =VLOOKUP(A121,'PBMT scores'!A:Z,10,FALSE) -> 0.00 | J121: =VLOOKUP(A121,'PBMT scores'!A:Z,11,FALSE) -> 0.00 | L121: =VLOOKUP(A121,'PBMT scores'!A:Z,13,FALSE) -> 0.18 | M121: =VLOOKUP(A121,'PBMT scores'!A:Z,14,FALSE) -> 0.77 | N121: =VLOOKUP(A121,'PBMT scores'!A:Z,15,FALSE) -> 0.00 | O121: =VLOOKUP(A121,'PBMT scores'!A:Z,16,FALSE) -> 0.00 | R121: =VLOOKUP(A121,'PBMT scores'!A:Z,19,FALSE) -> 0.00 | S121: =VLOOKUP(A121,'PBMT scores'!A:Z,20,FALSE) -> 0.00
A122: 31566-31-1 | B122: =VLOOKUP(A122,'PBMT scores'!A:Z,3,FALSE) -> Stearic acid, monoester with glycerol(1) | C122: =VLOOKUP(A122,'PBMT scores'!A:Z,4,FALSE) -> REACH | E122: =VLOOKUP(A122,'PBMT scores'!A:Z,6,FALSE) -> 0.01 | F122: =VLOOKUP(A122,'PBMT scores'!A:Z,7,FALSE) -> 0.01 | H122: =VLOOKUP(A122,'PBMT scores'!A:Z,9,FALSE) -> 0.00 | I122: =VLOOKUP(A122,'PBMT scores'!A:Z,10,FALSE) -> 0.00 | J122: =VLOOKUP(A122,'PBMT scores'!A:Z,11,FALSE) -> 0.00 | L122: =VLOOKUP(A122,'PBMT scores'!A:Z,13,FALSE) -> 0.05 | M122: =VLOOKUP(A122,'PBMT scores'!A:Z,14,FALSE) -> 0.41 | N122: =VLOOKUP(A122,'PBMT scores'!A:Z,15,FALSE) -> 0.24 | O122: =VLOOKUP(A122,'PBMT scores'!A:Z,16,FALSE) -> 0.03 | R122: =VLOOKUP(A122,'PBMT scores'!A:Z,19,FALSE) -> 0.02 | S122: =VLOOKUP(A122,'PBMT scores'!A:Z,20,FALSE) -> 0.01
A123: 2206-94-2 | B123: =VLOOKUP(A123,'PBMT scores'!A:Z,3,FALSE) -> ?-methylenebenzyl acetate(1) | C123: =VLOOKUP(A123,'PBMT scores'!A:Z,4,FALSE) -> REACH | E123: =VLOOKUP(A123,'PBMT scores'!A:Z,6,FALSE) -> 0.01 | F123: =VLOOKUP(A123,'PBMT scores'!A:Z,7,FALSE) -> 0.00 | H123: =VLOOKUP(A123,'PBMT scores'!A:Z,9,FALSE) -> 0.00 | I123: =VLOOKUP(A123,'PBMT scores'!A:Z,10,FALSE) -> 0.00 | J123: =VLOOKUP(A123,'PBMT scores'!A:Z,11,FALSE) -> 0.00 | L123: =VLOOKUP(A123,'PBMT scores'!A:Z,13,FALSE) -> 0.09 | M123: =VLOOKUP(A123,'PBMT scores'!A:Z,14,FALSE) -> 0.03 | N123: =VLOOKUP(A123,'PBMT scores'!A:Z,15,FALSE) -> 0.46 | O123: =VLOOKUP(A123,'PBMT scores'!A:Z,16,FALSE) -> 0.01 | R123: =VLOOKUP(A123,'PBMT scores'!A:Z,19,FALSE) -> 0.03 | S123: =VLOOKUP(A123,'PBMT scores'!A:Z,20,FALSE) -> 0.00
A124: 31778-15-1 | B124: =VLOOKUP(A124,'PBMT scores'!A:Z,3,FALSE) -> Octadecyl 3-mercaptopropionate(1) | C124: =VLOOKUP(A124,'PBMT scores'!A:Z,4,FALSE) -> REACH | E124: =VLOOKUP(A124,'PBMT scores'!A:Z,6,FALSE) -> 0.01 | F124: =VLOOKUP(A124,'PBMT scores'!A:Z,7,FALSE) -> 0.02 | H124: =VLOOKUP(A124,'PBMT scores'!A:Z,9,FALSE) -> 0.00 | I124: =VLOOKUP(A124,'PBMT scores'!A:Z,10,FALSE) -> 0.00 | J124: =VLOOKUP(A124,'PBMT scores'!A:Z,11,FALSE) -> 0.00 | L124: =VLOOKUP(A124,'PBMT scores'!A:Z,13,FALSE) -> 0.14 | M124: =VLOOKUP(A124,'PBMT scores'!A:Z,14,FALSE) -> 0.72 | N124: =VLOOKUP(A124,'PBMT scores'!A:Z,15,FALSE) -> 0.06 | O124: =VLOOKUP(A124,'PBMT scores'!A:Z,16,FALSE) -> 0.43 | R124: =VLOOKUP(A124,'PBMT scores'!A:Z,19,FALSE) -> 0.01 | S124: =VLOOKUP(A124,'PBMT scores'!A:Z,20,FALSE) -> 0.07
A125: 68002-70-0 | B125: =VLOOKUP(A125,'PBMT scores'!A:Z,3,FALSE) -> Glycerides, C16-22(1) | C125: =VLOOKUP(A125,'PBMT scores'!A:Z,4,FALSE) -> REACH | E125: =VLOOKUP(A125,'PBMT scores'!A:Z,6,FALSE) -> 0.01 | F125: =VLOOKUP(A125,'PBMT scores'!A:Z,7,FALSE) -> 0.00 | H125: =VLOOKUP(A125,'PBMT scores'!A:Z,9,FALSE) -> 0.00 | I125: =VLOOKUP(A125,'PBMT scores'!A:Z,10,FALSE) -> 0.00 | J125: =VLOOKUP(A125,'PBMT scores'!A:Z,11,FALSE) -> 0.00 | L125: =VLOOKUP(A125,'PBMT scores'!A:Z,13,FALSE) -> 0.04 | M125: =VLOOKUP(A125,'PBMT scores'!A:Z,14,FALSE) -> 0.17 | N125: =VLOOKUP(A125,'PBMT scores'!A:Z,15,FALSE) -> 0.31 | O125: =VLOOKUP(A125,'PBMT scores'!A:Z,16,FALSE) -> 0.05 | R125: =VLOOKUP(A125,'PBMT scores'!A:Z,19,FALSE) -> 0.03 | S125: =VLOOKUP(A125,'PBMT scores'!A:Z,20,FALSE) -> 0.01
A126: 26402-22-2 | B126: =VLOOKUP(A126,'PBMT scores'!A:Z,3,FALSE) -> Decanoic acid, monoester with glycerol(1) | C126: =VLOOKUP(A126,'PBMT scores'!A:Z,4,FALSE) -> REACH | E126: =VLOOKUP(A126,'PBMT scores'!A:Z,6,FALSE) -> 0.01 | F126: =VLOOKUP(A126,'PBMT scores'!A:Z,7,FALSE) -> 0.00 | H126: =VLOOKUP(A126,'PBMT scores'!A:Z,9,FALSE) -> 0.00 | I126: =VLOOKUP(A126,'PBMT scores'!A:Z,10,FALSE) -> 0.00 | J126: =VLOOKUP(A126,'PBMT scores'!A:Z,11,FALSE) -> 0.00 | L126: =VLOOKUP(A126,'PBMT scores'!A:Z,13,FALSE) -> 0.02 | M126: =VLOOKUP(A126,'PBMT scores'!A:Z,14,FALSE) -> 0.03 | N126: =VLOOKUP(A126,'PBMT scores'!A:Z,15,FALSE) -> 0.58 | O126: =VLOOKUP(A126,'PBMT scores'!A:Z,16,FALSE) -> 0.03 | R126: =VLOOKUP(A126,'PBMT scores'!A:Z,19,FALSE) -> 0.04 | S126: =VLOOKUP(A126,'PBMT scores'!A:Z,20,FALSE) -> 0.01
A127: 103-26-4 | B127: =VLOOKUP(A127,'PBMT scores'!A:Z,3,FALSE) -> Methyl cinnamate(1) | C127: =VLOOKUP(A127,'PBMT scores'!A:Z,4,FALSE) -> REACH | E127: =VLOOKUP(A127,'PBMT scores'!A:Z,6,FALSE) -> 0.01 | F127: =VLOOKUP(A127,'PBMT scores'!A:Z,7,FALSE) -> 0.00 | H127: =VLOOKUP(A127,'PBMT scores'!A:Z,9,FALSE) -> 0.00 | I127: =VLOOKUP(A127,'PBMT scores'!A:Z,10,FALSE) -> 0.00 | J127: =VLOOKUP(A127,'PBMT scores'!A:Z,11,FALSE) -> 0.00 | L127: =VLOOKUP(A127,'PBMT scores'!A:Z,13,FALSE) -> 0.09 | M127: =VLOOKUP(A127,'PBMT scores'!A:Z,14,FALSE) -> 0.05 | N127: =VLOOKUP(A127,'PBMT scores'!A:Z,15,FALSE) -> 0.45 | O127: =VLOOKUP(A127,'PBMT scores'!A:Z,16,FALSE) -> 0.06 | R127: =VLOOKUP(A127,'PBMT scores'!A:Z,19,FALSE) -> 0.03 | S127: =VLOOKUP(A127,'PBMT scores'!A:Z,20,FALSE) -> 0.01
A128: 638-68-6 | B128: =VLOOKUP(A128,'PBMT scores'!A:Z,3,FALSE) -> triacontaan | C128: =VLOOKUP(A128,'PBMT scores'!A:Z,4,FALSE) -> RIWA | E128: =VLOOKUP(A128,'PBMT scores'!A:Z,6,FALSE) -> 0.01 | F128: =VLOOKUP(A128,'PBMT scores'!A:Z,7,FALSE) -> 0.03 | H128: =VLOOKUP(A128,'PBMT scores'!A:Z,9,FALSE) -> 0.00 | I128: =VLOOKUP(A128,'PBMT scores'!A:Z,10,FALSE) -> 0.00 | J128: =VLOOKUP(A128,'PBMT scores'!A:Z,11,FALSE) -> 0.00 | L128: =VLOOKUP(A128,'PBMT scores'!A:Z,13,FALSE) -> 0.13 | M128: =VLOOKUP(A128,'PBMT scores'!A:Z,14,FALSE) -> 0.71 | N128: =VLOOKUP(A128,'PBMT scores'!A:Z,15,FALSE) -> 0.00 | O128: =VLOOKUP(A128,'PBMT scores'!A:Z,16,FALSE) -> 0.01 | R128: =VLOOKUP(A128,'PBMT scores'!A:Z,19,FALSE) -> 0.00 | S128: =VLOOKUP(A128,'PBMT scores'!A:Z,20,FALSE) -> 0.02
A129: 635-51-8 | B129: =VLOOKUP(A129,'PBMT scores'!A:Z,3,FALSE) -> Phenylsuccinic acid(1) | C129: =VLOOKUP(A129,'PBMT scores'!A:Z,4,FALSE) -> REACH | E129: =VLOOKUP(A129,'PBMT scores'!A:Z,6,FALSE) -> 0.01 | F129: =VLOOKUP(A129,'PBMT scores'!A:Z,7,FALSE) -> 0.00 | H129: =VLOOKUP(A129,'PBMT scores'!A:Z,9,FALSE) -> 0.00 | I129: =VLOOKUP(A129,'PBMT scores'!A:Z,10,FALSE) -> 0.00 | J129: =VLOOKUP(A129,'PBMT scores'!A:Z,11,FALSE) -> 0.00 | L129: =VLOOKUP(A129,'PBMT scores'!A:Z,13,FALSE) -> 0.02 | M129: =VLOOKUP(A129,'PBMT scores'!A:Z,14,FALSE) -> 0.01 | N129: =VLOOKUP(A129,'PBMT scores'!A:Z,15,FALSE) -> 0.75 | O129: =VLOOKUP(A129,'PBMT scores'!A:Z,16,FALSE) -> 0.01 | R129: =VLOOKUP(A129,'PBMT scores'!A:Z,19,FALSE) -> 0.04 | S129: =VLOOKUP(A129,'PBMT scores'!A:Z,20,FALSE) -> 0.00
A130: 60623-04-3 | B130: =VLOOKUP(A130,'PBMT scores'!A:Z,3,FALSE) -> 2,2-bis[[(2-hexyl-1-oxodecyl)oxy]methyl]-1,3-propanediyl bis(2-hexyldecanoate)(1) | C130: =VLOOKUP(A130,'PBMT scores'!A:Z,4,FALSE) -> REACH | E130: =VLOOKUP(A130,'PBMT scores'!A:Z,6,FALSE) -> 0.01 | F130: =VLOOKUP(A130,'PBMT scores'!A:Z,7,FALSE) -> 0.05 | H130: =VLOOKUP(A130,'PBMT scores'!A:Z,9,FALSE) -> 0.27 | I130: =VLOOKUP(A130,'PBMT scores'!A:Z,10,FALSE) -> 0.13 | J130: =VLOOKUP(A130,'PBMT scores'!A:Z,11,FALSE) -> 0.42 | L130: =VLOOKUP(A130,'PBMT scores'!A:Z,13,FALSE) -> 0.02 | M130: =VLOOKUP(A130,'PBMT scores'!A:Z,14,FALSE) -> 0.26 | N130: =VLOOKUP(A130,'PBMT scores'!A:Z,15,FALSE) -> 0.00 | O130: =VLOOKUP(A130,'PBMT scores'!A:Z,16,FALSE) -> 0.00 | R130: =VLOOKUP(A130,'PBMT scores'!A:Z,19,FALSE) -> 0.00 | S130: =VLOOKUP(A130,'PBMT scores'!A:Z,20,FALSE) -> 0.01
A131: 2495-37-6 | B131: =VLOOKUP(A131,'PBMT scores'!A:Z,3,FALSE) -> Benzyl methacrylate(1) | C131: =VLOOKUP(A131,'PBMT scores'!A:Z,4,FALSE) -> REACH | E131: =VLOOKUP(A131,'PBMT scores'!A:Z,6,FALSE) -> 0.01 | F131: =VLOOKUP(A131,'PBMT scores'!A:Z,7,FALSE) -> 0.00 | H131: =VLOOKUP(A131,'PBMT scores'!A:Z,9,FALSE) -> 0.00 | I131: =VLOOKUP(A131,'PBMT scores'!A:Z,10,FALSE) -> 0.00 | J131: =VLOOKUP(A131,'PBMT scores'!A:Z,11,FALSE) -> 0.00 | L131: =VLOOKUP(A131,'PBMT scores'!A:Z,13,FALSE) -> 0.10 | M131: =VLOOKUP(A131,'PBMT scores'!A:Z,14,FALSE) -> 0.04 | N131: =VLOOKUP(A131,'PBMT scores'!A:Z,15,FALSE) -> 0.46 | O131: =VLOOKUP(A131,'PBMT scores'!A:Z,16,FALSE) -> 0.02 | R131: =VLOOKUP(A131,'PBMT scores'!A:Z,19,FALSE) -> 0.03 | S131: =VLOOKUP(A131,'PBMT scores'!A:Z,20,FALSE) -> 0.00
A132: 17661-50-6 | B132: =VLOOKUP(A132,'PBMT scores'!A:Z,3,FALSE) -> Tetradecyl stearate(1) | C132: =VLOOKUP(A132,'PBMT scores'!A:Z,4,FALSE) -> REACH | E132: =VLOOKUP(A132,'PBMT scores'!A:Z,6,FALSE) -> 0.01 | F132: =VLOOKUP(A132,'PBMT scores'!A:Z,7,FALSE) -> 0.01 | H132: =VLOOKUP(A132,'PBMT scores'!A:Z,9,FALSE) -> 0.00 | I132: =VLOOKUP(A132,'PBMT scores'!A:Z,10,FALSE) -> 0.00 | J132: =VLOOKUP(A132,'PBMT scores'!A:Z,11,FALSE) -> 0.00 | L132: =VLOOKUP(A132,'PBMT scores'!A:Z,13,FALSE) -> 0.13 | M132: =VLOOKUP(A132,'PBMT scores'!A:Z,14,FALSE) -> 0.70 | N132: =VLOOKUP(A132,'PBMT scores'!A:Z,15,FALSE) -> 0.01 | O132: =VLOOKUP(A132,'PBMT scores'!A:Z,16,FALSE) -> 0.00 | R132: =VLOOKUP(A132,'PBMT scores'!A:Z,19,FALSE) -> 0.01 | S132: =VLOOKUP(A132,'PBMT scores'!A:Z,20,FALSE) -> 0.00
A133: 540-10-3 | B133: =VLOOKUP(A133,'PBMT scores'!A:Z,3,FALSE) -> Hexadecyl palmitate(1) | C133: =VLOOKUP(A133,'PBMT scores'!A:Z,4,FALSE) -> REACH | E133: =VLOOKUP(A133,'PBMT scores'!A:Z,6,FALSE) -> 0.01 | F133: =VLOOKUP(A133,'PBMT scores'!A:Z,7,FALSE) -> 0.01 | H133: =VLOOKUP(A133,'PBMT scores'!A:Z,9,FALSE) -> 0.00 | I133: =VLOOKUP(A133,'PBMT scores'!A:Z,10,FALSE) -> 0.00 | J133: =VLOOKUP(A133,'PBMT scores'!A:Z,11,FALSE) -> 0.00 | L133: =VLOOKUP(A133,'PBMT scores'!A:Z,13,FALSE) -> 0.13 | M133: =VLOOKUP(A133,'PBMT scores'!A:Z,14,FALSE) -> 0.70 | N133: =VLOOKUP(A133,'PBMT scores'!A:Z,15,FALSE) -> 0.01 | O133: =VLOOKUP(A133,'PBMT scores'!A:Z,16,FALSE) -> 0.00 | R133: =VLOOKUP(A133,'PBMT scores'!A:Z,19,FALSE) -> 0.01 | S133: =VLOOKUP(A133,'PBMT scores'!A:Z,20,FALSE) -> 0.00
A134: 26402-26-6 | B134: =VLOOKUP(A134,'PBMT scores'!A:Z,3,FALSE) -> Octanoic acid, monoester with glycerol(1) | C134: =VLOOKUP(A134,'PBMT scores'!A:Z,4,FALSE) -> REACH | E134: =VLOOKUP(A134,'PBMT scores'!A:Z,6,FALSE) -> 0.01 | F134: =VLOOKUP(A134,'PBMT scores'!A:Z,7,FALSE) -> 0.00 | H134: =VLOOKUP(A134,'PBMT scores'!A:Z,9,FALSE) -> 0.00 | I134: =VLOOKUP(A134,'PBMT scores'!A:Z,10,FALSE) -> 0.00 | J134: =VLOOKUP(A134,'PBMT scores'!A:Z,11,FALSE) -> 0.00 | L134: =VLOOKUP(A134,'PBMT scores'!A:Z,13,FALSE) -> 0.02 | M134: =VLOOKUP(A134,'PBMT scores'!A:Z,14,FALSE) -> 0.02 | N134: =VLOOKUP(A134,'PBMT scores'!A:Z,15,FALSE) -> 0.67 | O134: =VLOOKUP(A134,'PBMT scores'!A:Z,16,FALSE) -> 0.02 | R134: =VLOOKUP(A134,'PBMT scores'!A:Z,19,FALSE) -> 0.04 | S134: =VLOOKUP(A134,'PBMT scores'!A:Z,20,FALSE) -> 0.00
A135: 630-02-4 | B135: =VLOOKUP(A135,'PBMT scores'!A:Z,3,FALSE) -> octacosaan | C135: =VLOOKUP(A135,'PBMT scores'!A:Z,4,FALSE) -> RIWA | E135: =VLOOKUP(A135,'PBMT scores'!A:Z,6,FALSE) -> 0.01 | F135: =VLOOKUP(A135,'PBMT scores'!A:Z,7,FALSE) -> 0.03 | H135: =VLOOKUP(A135,'PBMT scores'!A:Z,9,FALSE) -> 0.00 | I135: =VLOOKUP(A135,'PBMT scores'!A:Z,10,FALSE) -> 0.00 | J135: =VLOOKUP(A135,'PBMT scores'!A:Z,11,FALSE) -> 0.00 | L135: =VLOOKUP(A135,'PBMT scores'!A:Z,13,FALSE) -> 0.11 | M135: =VLOOKUP(A135,'PBMT scores'!A:Z,14,FALSE) -> 0.67 | N135: =VLOOKUP(A135,'PBMT scores'!A:Z,15,FALSE) -> 0.00 | O135: =VLOOKUP(A135,'PBMT scores'!A:Z,16,FALSE) -> 0.01 | R135: =VLOOKUP(A135,'PBMT scores'!A:Z,19,FALSE) -> 0.00 | S135: =VLOOKUP(A135,'PBMT scores'!A:Z,20,FALSE) -> 0.02
A136: 27841-06-1 | B136: =VLOOKUP(A136,'PBMT scores'!A:Z,3,FALSE) -> 2,2-dimethyl-1,3-propanediyl didecanoate(1) | C136: =VLOOKUP(A136,'PBMT scores'!A:Z,4,FALSE) -> REACH | E136: =VLOOKUP(A136,'PBMT scores'!A:Z,6,FALSE) -> 0.01 | F136: =VLOOKUP(A136,'PBMT scores'!A:Z,7,FALSE) -> 0.02 | H136: =VLOOKUP(A136,'PBMT scores'!A:Z,9,FALSE) -> 0.00 | I136: =VLOOKUP(A136,'PBMT scores'!A:Z,10,FALSE) -> 0.00 | J136: =VLOOKUP(A136,'PBMT scores'!A:Z,11,FALSE) -> 0.00 | L136: =VLOOKUP(A136,'PBMT scores'!A:Z,13,FALSE) -> 0.10 | M136: =VLOOKUP(A136,'PBMT scores'!A:Z,14,FALSE) -> 0.65 | N136: =VLOOKUP(A136,'PBMT scores'!A:Z,15,FALSE) -> 0.05 | O136: =VLOOKUP(A136,'PBMT scores'!A:Z,16,FALSE) -> 0.12 | R136: =VLOOKUP(A136,'PBMT scores'!A:Z,19,FALSE) -> 0.02 | S136: =VLOOKUP(A136,'PBMT scores'!A:Z,20,FALSE) -> 0.04
A137: 102-19-2 | B137: =VLOOKUP(A137,'PBMT scores'!A:Z,3,FALSE) -> Isopentyl phenylacetate(1) | C137: =VLOOKUP(A137,'PBMT scores'!A:Z,4,FALSE) -> REACH | E137: =VLOOKUP(A137,'PBMT scores'!A:Z,6,FALSE) -> 0.01 | F137: =VLOOKUP(A137,'PBMT scores'!A:Z,7,FALSE) -> 0.00 | H137: =VLOOKUP(A137,'PBMT scores'!A:Z,9,FALSE) -> 0.00 | I137: =VLOOKUP(A137,'PBMT scores'!A:Z,10,FALSE) -> 0.00 | J137: =VLOOKUP(A137,'PBMT scores'!A:Z,11,FALSE) -> 0.00 | L137: =VLOOKUP(A137,'PBMT scores'!A:Z,13,FALSE) -> 0.15 | M137: =VLOOKUP(A137,'PBMT scores'!A:Z,14,FALSE) -> 0.12 | N137: =VLOOKUP(A137,'PBMT scores'!A:Z,15,FALSE) -> 0.32 | O137: =VLOOKUP(A137,'PBMT scores'!A:Z,16,FALSE) -> 0.08 | R137: =VLOOKUP(A137,'PBMT scores'!A:Z,19,FALSE) -> 0.03 | S137: =VLOOKUP(A137,'PBMT scores'!A:Z,20,FALSE) -> 0.01
A138: 26266-58-0 | B138: =VLOOKUP(A138,'PBMT scores'!A:Z,3,FALSE) -> Anhydro-D-glucitol trioleate(1) | C138: =VLOOKUP(A138,'PBMT scores'!A:Z,4,FALSE) -> REACH | E138: =VLOOKUP(A138,'PBMT scores'!A:Z,6,FALSE) -> 0.01 | F138: =VLOOKUP(A138,'PBMT scores'!A:Z,7,FALSE) -> 0.08 | H138: =VLOOKUP(A138,'PBMT scores'!A:Z,9,FALSE) -> 0.33 | I138: =VLOOKUP(A138,'PBMT scores'!A:Z,10,FALSE) -> 0.33 | J138: =VLOOKUP(A138,'PBMT scores'!A:Z,11,FALSE) -> 0.33 | L138: =VLOOKUP(A138,'PBMT scores'!A:Z,13,FALSE) -> 0.56 | M138: =VLOOKUP(A138,'PBMT scores'!A:Z,14,FALSE) -> 0.94 | N138: =VLOOKUP(A138,'PBMT scores'!A:Z,15,FALSE) -> 0.00 | O138: =VLOOKUP(A138,'PBMT scores'!A:Z,16,FALSE) -> 0.00 | R138: =VLOOKUP(A138,'PBMT scores'!A:Z,19,FALSE) -> 0.00 | S138: =VLOOKUP(A138,'PBMT scores'!A:Z,20,FALSE) -> 0.02
A139: 3234-85-3 | B139: =VLOOKUP(A139,'PBMT scores'!A:Z,3,FALSE) -> Tetradecyl myristate(1) | C139: =VLOOKUP(A139,'PBMT scores'!A:Z,4,FALSE) -> REACH | E139: =VLOOKUP(A139,'PBMT scores'!A:Z,6,FALSE) -> 0.01 | F139: =VLOOKUP(A139,'PBMT scores'!A:Z,7,FALSE) -> 0.01 | H139: =VLOOKUP(A139,'PBMT scores'!A:Z,9,FALSE) -> 0.00 | I139: =VLOOKUP(A139,'PBMT scores'!A:Z,10,FALSE) -> 0.00 | J139: =VLOOKUP(A139,'PBMT scores'!A:Z,11,FALSE) -> 0.00 | L139: =VLOOKUP(A139,'PBMT scores'!A:Z,13,FALSE) -> 0.09 | M139: =VLOOKUP(A139,'PBMT scores'!A:Z,14,FALSE) -> 0.62 | N139: =VLOOKUP(A139,'PBMT scores'!A:Z,15,FALSE) -> 0.02 | O139: =VLOOKUP(A139,'PBMT scores'!A:Z,16,FALSE) -> 0.01 | R139: =VLOOKUP(A139,'PBMT scores'!A:Z,19,FALSE) -> 0.01 | S139: =VLOOKUP(A139,'PBMT scores'!A:Z,20,FALSE) -> 0.01
A140: 53824-77-4 | B140: =VLOOKUP(A140,'PBMT scores'!A:Z,3,FALSE) -> Propylene didecanoate(1) | C140: =VLOOKUP(A140,'PBMT scores'!A:Z,4,FALSE) -> REACH | E140: =VLOOKUP(A140,'PBMT scores'!A:Z,6,FALSE) -> 0.01 | F140: =VLOOKUP(A140,'PBMT scores'!A:Z,7,FALSE) -> 0.02 | H140: =VLOOKUP(A140,'PBMT scores'!A:Z,9,FALSE) -> 0.00 | I140: =VLOOKUP(A140,'PBMT scores'!A:Z,10,FALSE) -> 0.00 | J140: =VLOOKUP(A140,'PBMT scores'!A:Z,11,FALSE) -> 0.00 | L140: =VLOOKUP(A140,'PBMT scores'!A:Z,13,FALSE) -> 0.04 | M140: =VLOOKUP(A140,'PBMT scores'!A:Z,14,FALSE) -> 0.43 | N140: =VLOOKUP(A140,'PBMT scores'!A:Z,15,FALSE) -> 0.08 | O140: =VLOOKUP(A140,'PBMT scores'!A:Z,16,FALSE) -> 0.19 | R140: =VLOOKUP(A140,'PBMT scores'!A:Z,19,FALSE) -> 0.02 | S140: =VLOOKUP(A140,'PBMT scores'!A:Z,20,FALSE) -> 0.05
A141: 15834-05-6 | B141: =VLOOKUP(A141,'PBMT scores'!A:Z,3,FALSE) -> 2,2-dimethylpropane-1,3-diyl dinonanoate(1) | C141: =VLOOKUP(A141,'PBMT scores'!A:Z,4,FALSE) -> REACH | E141: =VLOOKUP(A141,'PBMT scores'!A:Z,6,FALSE) -> 0.01 | F141: =VLOOKUP(A141,'PBMT scores'!A:Z,7,FALSE) -> 0.02 | H141: =VLOOKUP(A141,'PBMT scores'!A:Z,9,FALSE) -> 0.00 | I141: =VLOOKUP(A141,'PBMT scores'!A:Z,10,FALSE) -> 0.00 | J141: =VLOOKUP(A141,'PBMT scores'!A:Z,11,FALSE) -> 0.00 | L141: =VLOOKUP(A141,'PBMT scores'!A:Z,13,FALSE) -> 0.09 | M141: =VLOOKUP(A141,'PBMT scores'!A:Z,14,FALSE) -> 0.60 | N141: =VLOOKUP(A141,'PBMT scores'!A:Z,15,FALSE) -> 0.08 | O141: =VLOOKUP(A141,'PBMT scores'!A:Z,16,FALSE) -> 0.22 | R141: =VLOOKUP(A141,'PBMT scores'!A:Z,19,FALSE) -> 0.02 | S141: =VLOOKUP(A141,'PBMT scores'!A:Z,20,FALSE) -> 0.05
A142: 41395-83-9 | B142: =VLOOKUP(A142,'PBMT scores'!A:Z,3,FALSE) -> Propylene dinonanoate(1) | C142: =VLOOKUP(A142,'PBMT scores'!A:Z,4,FALSE) -> REACH | E142: =VLOOKUP(A142,'PBMT scores'!A:Z,6,FALSE) -> 0.01 | F142: =VLOOKUP(A142,'PBMT scores'!A:Z,7,FALSE) -> 0.02 | H142: =VLOOKUP(A142,'PBMT scores'!A:Z,9,FALSE) -> 0.00 | I142: =VLOOKUP(A142,'PBMT scores'!A:Z,10,FALSE) -> 0.00 | J142: =VLOOKUP(A142,'PBMT scores'!A:Z,11,FALSE) -> 0.00 | L142: =VLOOKUP(A142,'PBMT scores'!A:Z,13,FALSE) -> 0.04 | M142: =VLOOKUP(A142,'PBMT scores'!A:Z,14,FALSE) -> 0.37 | N142: =VLOOKUP(A142,'PBMT scores'!A:Z,15,FALSE) -> 0.11 | O142: =VLOOKUP(A142,'PBMT scores'!A:Z,16,FALSE) -> 0.17 | R142: =VLOOKUP(A142,'PBMT scores'!A:Z,19,FALSE) -> 0.02 | S142: =VLOOKUP(A142,'PBMT scores'!A:Z,20,FALSE) -> 0.04
A143: 22412-97-1 | B143: =VLOOKUP(A143,'PBMT scores'!A:Z,3,FALSE) -> Tetradecyl laurate(1) | C143: =VLOOKUP(A143,'PBMT scores'!A:Z,4,FALSE) -> REACH | E143: =VLOOKUP(A143,'PBMT scores'!A:Z,6,FALSE) -> 0.01 | F143: =VLOOKUP(A143,'PBMT scores'!A:Z,7,FALSE) -> 0.02 | H143: =VLOOKUP(A143,'PBMT scores'!A:Z,9,FALSE) -> 0.00 | I143: =VLOOKUP(A143,'PBMT scores'!A:Z,10,FALSE) -> 0.00 | J143: =VLOOKUP(A143,'PBMT scores'!A:Z,11,FALSE) -> 0.00 | L143: =VLOOKUP(A143,'PBMT scores'!A:Z,13,FALSE) -> 0.07 | M143: =VLOOKUP(A143,'PBMT scores'!A:Z,14,FALSE) -> 0.57 | N143: =VLOOKUP(A143,'PBMT scores'!A:Z,15,FALSE) -> 0.02 | O143: =VLOOKUP(A143,'PBMT scores'!A:Z,16,FALSE) -> 0.03 | R143: =VLOOKUP(A143,'PBMT scores'!A:Z,19,FALSE) -> 0.01 | S143: =VLOOKUP(A143,'PBMT scores'!A:Z,20,FALSE) -> 0.02
A144: 2040-64-4 | B144: =VLOOKUP(A144,'PBMT scores'!A:Z,3,FALSE) -> Dodecyl myristate(1) | C144: =VLOOKUP(A144,'PBMT scores'!A:Z,4,FALSE) -> REACH | E144: =VLOOKUP(A144,'PBMT scores'!A:Z,6,FALSE) -> 0.01 | F144: =VLOOKUP(A144,'PBMT scores'!A:Z,7,FALSE) -> 0.02 | H144: =VLOOKUP(A144,'PBMT scores'!A:Z,9,FALSE) -> 0.00 | I144: =VLOOKUP(A144,'PBMT scores'!A:Z,10,FALSE) -> 0.00 | J144: =VLOOKUP(A144,'PBMT scores'!A:Z,11,FALSE) -> 0.00 | L144: =VLOOKUP(A144,'PBMT scores'!A:Z,13,FALSE) -> 0.07 | M144: =VLOOKUP(A144,'PBMT scores'!A:Z,14,FALSE) -> 0.57 | N144: =VLOOKUP(A144,'PBMT scores'!A:Z,15,FALSE) -> 0.02 | O144: =VLOOKUP(A144,'PBMT scores'!A:Z,16,FALSE) -> 0.03 | R144: =VLOOKUP(A144,'PBMT scores'!A:Z,19,FALSE) -> 0.01 | S144: =VLOOKUP(A144,'PBMT scores'!A:Z,20,FALSE) -> 0.02
A145: 16652-76-9 | B145: =VLOOKUP(A145,'PBMT scores'!A:Z,3,FALSE) -> O-benzyl-L-valine toluene-p-sulphonate(1) | C145: =VLOOKUP(A145,'PBMT scores'!A:Z,4,FALSE) -> REACH | E145: =VLOOKUP(A145,'PBMT scores'!A:Z,6,FALSE) -> 0.01 | F145: =VLOOKUP(A145,'PBMT scores'!A:Z,7,FALSE) -> 0.00 | H145: =VLOOKUP(A145,'PBMT scores'!A:Z,9,FALSE) -> 0.00 | I145: =VLOOKUP(A145,'PBMT scores'!A:Z,10,FALSE) -> 0.00 | J145: =VLOOKUP(A145,'PBMT scores'!A:Z,11,FALSE) -> 0.00 | L145: =VLOOKUP(A145,'PBMT scores'!A:Z,13,FALSE) -> 0.12 | M145: =VLOOKUP(A145,'PBMT scores'!A:Z,14,FALSE) -> 0.05 | N145: =VLOOKUP(A145,'PBMT scores'!A:Z,15,FALSE) -> 0.73 | O145: =VLOOKUP(A145,'PBMT scores'!A:Z,16,FALSE) -> 0.00 | R145: =VLOOKUP(A145,'PBMT scores'!A:Z,19,FALSE) -> 0.05 | S145: =VLOOKUP(A145,'PBMT scores'!A:Z,20,FALSE) -> 0.00
A146: 97-89-2 | B146: =VLOOKUP(A146,'PBMT scores'!A:Z,3,FALSE) -> 3,7-dimethyloct-6-enyl isobutyrate(1) | C146: =VLOOKUP(A146,'PBMT scores'!A:Z,4,FALSE) -> REACH | E146: =VLOOKUP(A146,'PBMT scores'!A:Z,6,FALSE) -> 0.01 | F146: =VLOOKUP(A146,'PBMT scores'!A:Z,7,FALSE) -> 0.01 | H146: =VLOOKUP(A146,'PBMT scores'!A:Z,9,FALSE) -> 0.00 | I146: =VLOOKUP(A146,'PBMT scores'!A:Z,10,FALSE) -> 0.00 | J146: =VLOOKUP(A146,'PBMT scores'!A:Z,11,FALSE) -> 0.00 | L146: =VLOOKUP(A146,'PBMT scores'!A:Z,13,FALSE) -> 0.14 | M146: =VLOOKUP(A146,'PBMT scores'!A:Z,14,FALSE) -> 0.09 | N146: =VLOOKUP(A146,'PBMT scores'!A:Z,15,FALSE) -> 0.21 | O146: =VLOOKUP(A146,'PBMT scores'!A:Z,16,FALSE) -> 0.27 | R146: =VLOOKUP(A146,'PBMT scores'!A:Z,19,FALSE) -> 0.03 | S146: =VLOOKUP(A146,'PBMT scores'!A:Z,20,FALSE) -> 0.03
A147: 630-01-3 | B147: =VLOOKUP(A147,'PBMT scores'!A:Z,3,FALSE) -> hexacosaan | C147: =VLOOKUP(A147,'PBMT scores'!A:Z,4,FALSE) -> RIWA | E147: =VLOOKUP(A147,'PBMT scores'!A:Z,6,FALSE) -> 0.01 | F147: =VLOOKUP(A147,'PBMT scores'!A:Z,7,FALSE) -> 0.03 | H147: =VLOOKUP(A147,'PBMT scores'!A:Z,9,FALSE) -> 0.00 | I147: =VLOOKUP(A147,'PBMT scores'!A:Z,10,FALSE) -> 0.00 | J147: =VLOOKUP(A147,'PBMT scores'!A:Z,11,FALSE) -> 0.00 | L147: =VLOOKUP(A147,'PBMT scores'!A:Z,13,FALSE) -> 0.09 | M147: =VLOOKUP(A147,'PBMT scores'!A:Z,14,FALSE) -> 0.62 | N147: =VLOOKUP(A147,'PBMT scores'!A:Z,15,FALSE) -> 0.00 | O147: =VLOOKUP(A147,'PBMT scores'!A:Z,16,FALSE) -> 0.02 | R147: =VLOOKUP(A147,'PBMT scores'!A:Z,19,FALSE) -> 0.00 | S147: =VLOOKUP(A147,'PBMT scores'!A:Z,20,FALSE) -> 0.03
A148: 627-83-8 | B148: =VLOOKUP(A148,'PBMT scores'!A:Z,3,FALSE) -> Ethylene distearate(1) | C148: =VLOOKUP(A148,'PBMT scores'!A:Z,4,FALSE) -> REACH | E148: =VLOOKUP(A148,'PBMT scores'!A:Z,6,FALSE) -> 0.01 | F148: =VLOOKUP(A148,'PBMT scores'!A:Z,7,FALSE) -> 0.01 | H148: =VLOOKUP(A148,'PBMT scores'!A:Z,9,FALSE) -> 0.00 | I148: =VLOOKUP(A148,'PBMT scores'!A:Z,10,FALSE) -> 0.00 | J148: =VLOOKUP(A148,'PBMT scores'!A:Z,11,FALSE) -> 0.00 | L148: =VLOOKUP(A148,'PBMT scores'!A:Z,13,FALSE) -> 0.18 | M148: =VLOOKUP(A148,'PBMT scores'!A:Z,14,FALSE) -> 0.77 | N148: =VLOOKUP(A148,'PBMT scores'!A:Z,15,FALSE) -> 0.00 | O148: =VLOOKUP(A148,'PBMT scores'!A:Z,16,FALSE) -> 0.00 | R148: =VLOOKUP(A148,'PBMT scores'!A:Z,19,FALSE) -> 0.01 | S148: =VLOOKUP(A148,'PBMT scores'!A:Z,20,FALSE) -> 0.00
A149: 13945-76-1 | B149: =VLOOKUP(A149,'PBMT scores'!A:Z,3,FALSE) -> Dodecyl laurate(1) | C149: =VLOOKUP(A149,'PBMT scores'!A:Z,4,FALSE) -> REACH | E149: =VLOOKUP(A149,'PBMT scores'!A:Z,6,FALSE) -> 0.01 | F149: =VLOOKUP(A149,'PBMT scores'!A:Z,7,FALSE) -> 0.02 | H149: =VLOOKUP(A149,'PBMT scores'!A:Z,9,FALSE) -> 0.00 | I149: =VLOOKUP(A149,'PBMT scores'!A:Z,10,FALSE) -> 0.00 | J149: =VLOOKUP(A149,'PBMT scores'!A:Z,11,FALSE) -> 0.00 | L149: =VLOOKUP(A149,'PBMT scores'!A:Z,13,FALSE) -> 0.06 | M149: =VLOOKUP(A149,'PBMT scores'!A:Z,14,FALSE) -> 0.52 | N149: =VLOOKUP(A149,'PBMT scores'!A:Z,15,FALSE) -> 0.04 | O149: =VLOOKUP(A149,'PBMT scores'!A:Z,16,FALSE) -> 0.13 | R149: =VLOOKUP(A149,'PBMT scores'!A:Z,19,FALSE) -> 0.01 | S149: =VLOOKUP(A149,'PBMT scores'!A:Z,20,FALSE) -> 0.05
A150: 492-38-6 | B150: =VLOOKUP(A150,'PBMT scores'!A:Z,3,FALSE) -> Atropic acid(1) | C150: =VLOOKUP(A150,'PBMT scores'!A:Z,4,FALSE) -> REACH | E150: =VLOOKUP(A150,'PBMT scores'!A:Z,6,FALSE) -> 0.01 | F150: =VLOOKUP(A150,'PBMT scores'!A:Z,7,FALSE) -> 0.00 | H150: =VLOOKUP(A150,'PBMT scores'!A:Z,9,FALSE) -> 0.00 | I150: =VLOOKUP(A150,'PBMT scores'!A:Z,10,FALSE) -> 0.00 | J150: =VLOOKUP(A150,'PBMT scores'!A:Z,11,FALSE) -> 0.00 | L150: =VLOOKUP(A150,'PBMT scores'!A:Z,13,FALSE) -> 0.04 | M150: =VLOOKUP(A150,'PBMT scores'!A:Z,14,FALSE) -> 0.03 | N150: =VLOOKUP(A150,'PBMT scores'!A:Z,15,FALSE) -> 0.61 | O150: =VLOOKUP(A150,'PBMT scores'!A:Z,16,FALSE) -> 0.11 | R150: =VLOOKUP(A150,'PBMT scores'!A:Z,19,FALSE) -> 0.04 | S150: =VLOOKUP(A150,'PBMT scores'!A:Z,20,FALSE) -> 0.02
A151: 41669-30-1 | B151: =VLOOKUP(A151,'PBMT scores'!A:Z,3,FALSE) -> Isooctadecyl isooctadecanoate(1) | C151: =VLOOKUP(A151,'PBMT scores'!A:Z,4,FALSE) -> REACH | E151: =VLOOKUP(A151,'PBMT scores'!A:Z,6,FALSE) -> 0.01 | F151: =VLOOKUP(A151,'PBMT scores'!A:Z,7,FALSE) -> 0.01 | H151: =VLOOKUP(A151,'PBMT scores'!A:Z,9,FALSE) -> 0.00 | I151: =VLOOKUP(A151,'PBMT scores'!A:Z,10,FALSE) -> 0.00 | J151: =VLOOKUP(A151,'PBMT scores'!A:Z,11,FALSE) -> 0.00 | L151: =VLOOKUP(A151,'PBMT scores'!A:Z,13,FALSE) -> 0.62 | M151: =VLOOKUP(A151,'PBMT scores'!A:Z,14,FALSE) -> 0.95 | N151: =VLOOKUP(A151,'PBMT scores'!A:Z,15,FALSE) -> 0.00 | O151: =VLOOKUP(A151,'PBMT scores'!A:Z,16,FALSE) -> 0.00 | R151: =VLOOKUP(A151,'PBMT scores'!A:Z,19,FALSE) -> 0.01 | S151: =VLOOKUP(A151,'PBMT scores'!A:Z,20,FALSE) -> 0.00
A152: 36528-28-6 | B152: =VLOOKUP(A152,'PBMT scores'!A:Z,3,FALSE) -> Decyl laurate(1) | C152: =VLOOKUP(A152,'PBMT scores'!A:Z,4,FALSE) -> REACH | E152: =VLOOKUP(A152,'PBMT scores'!A:Z,6,FALSE) -> 0.01 | F152: =VLOOKUP(A152,'PBMT scores'!A:Z,7,FALSE) -> 0.04 | H152: =VLOOKUP(A152,'PBMT scores'!A:Z,9,FALSE) -> 0.00 | I152: =VLOOKUP(A152,'PBMT scores'!A:Z,10,FALSE) -> 0.00 | J152: =VLOOKUP(A152,'PBMT scores'!A:Z,11,FALSE) -> 0.00 | L152: =VLOOKUP(A152,'PBMT scores'!A:Z,13,FALSE) -> 0.05 | M152: =VLOOKUP(A152,'PBMT scores'!A:Z,14,FALSE) -> 0.47 | N152: =VLOOKUP(A152,'PBMT scores'!A:Z,15,FALSE) -> 0.05 | O152: =VLOOKUP(A152,'PBMT scores'!A:Z,16,FALSE) -> 0.42 | R152: =VLOOKUP(A152,'PBMT scores'!A:Z,19,FALSE) -> 0.02 | S152: =VLOOKUP(A152,'PBMT scores'!A:Z,20,FALSE) -> 0.09
A153: 2432-87-3 | B153: =VLOOKUP(A153,'PBMT scores'!A:Z,3,FALSE) -> Dioctyl sebacate(1) | C153: =VLOOKUP(A153,'PBMT scores'!A:Z,4,FALSE) -> REACH | E153: =VLOOKUP(A153,'PBMT scores'!A:Z,6,FALSE) -> 0.01 | F153: =VLOOKUP(A153,'PBMT scores'!A:Z,7,FALSE) -> 0.02 | H153: =VLOOKUP(A153,'PBMT scores'!A:Z,9,FALSE) -> 0.00 | I153: =VLOOKUP(A153,'PBMT scores'!A:Z,10,FALSE) -> 0.00 | J153: =VLOOKUP(A153,'PBMT scores'!A:Z,11,FALSE) -> 0.00 | L153: =VLOOKUP(A153,'PBMT scores'!A:Z,13,FALSE) -> 0.06 | M153: =VLOOKUP(A153,'PBMT scores'!A:Z,14,FALSE) -> 0.51 | N153: =VLOOKUP(A153,'PBMT scores'!A:Z,15,FALSE) -> 0.04 | O153: =VLOOKUP(A153,'PBMT scores'!A:Z,16,FALSE) -> 0.05 | R153: =VLOOKUP(A153,'PBMT scores'!A:Z,19,FALSE) -> 0.02 | S153: =VLOOKUP(A153,'PBMT scores'!A:Z,20,FALSE) -> 0.03
A154: 31335-74-7 | B154: =VLOOKUP(A154,'PBMT scores'!A:Z,3,FALSE) -> 2,2-dimethyl-1,3-propanediyl dioctanoate(1) | C154: =VLOOKUP(A154,'PBMT scores'!A:Z,4,FALSE) -> REACH | E154: =VLOOKUP(A154,'PBMT scores'!A:Z,6,FALSE) -> 0.01 | F154: =VLOOKUP(A154,'PBMT scores'!A:Z,7,FALSE) -> 0.02 | H154: =VLOOKUP(A154,'PBMT scores'!A:Z,9,FALSE) -> 0.00 | I154: =VLOOKUP(A154,'PBMT scores'!A:Z,10,FALSE) -> 0.00 | J154: =VLOOKUP(A154,'PBMT scores'!A:Z,11,FALSE) -> 0.00 | L154: =VLOOKUP(A154,'PBMT scores'!A:Z,13,FALSE) -> 0.07 | M154: =VLOOKUP(A154,'PBMT scores'!A:Z,14,FALSE) -> 0.53 | N154: =VLOOKUP(A154,'PBMT scores'!A:Z,15,FALSE) -> 0.11 | O154: =VLOOKUP(A154,'PBMT scores'!A:Z,16,FALSE) -> 0.20 | R154: =VLOOKUP(A154,'PBMT scores'!A:Z,19,FALSE) -> 0.02 | S154: =VLOOKUP(A154,'PBMT scores'!A:Z,20,FALSE) -> 0.05
A155: 17671-26-0 | B155: =VLOOKUP(A155,'PBMT scores'!A:Z,3,FALSE) -> Dodecyl nonan-1-oate(1) | C155: =VLOOKUP(A155,'PBMT scores'!A:Z,4,FALSE) -> REACH | E155: =VLOOKUP(A155,'PBMT scores'!A:Z,6,FALSE) -> 0.01 | F155: =VLOOKUP(A155,'PBMT scores'!A:Z,7,FALSE) -> 0.04 | H155: =VLOOKUP(A155,'PBMT scores'!A:Z,9,FALSE) -> 0.00 | I155: =VLOOKUP(A155,'PBMT scores'!A:Z,10,FALSE) -> 0.00 | J155: =VLOOKUP(A155,'PBMT scores'!A:Z,11,FALSE) -> 0.00 | L155: =VLOOKUP(A155,'PBMT scores'!A:Z,13,FALSE) -> 0.05 | M155: =VLOOKUP(A155,'PBMT scores'!A:Z,14,FALSE) -> 0.44 | N155: =VLOOKUP(A155,'PBMT scores'!A:Z,15,FALSE) -> 0.06 | O155: =VLOOKUP(A155,'PBMT scores'!A:Z,16,FALSE) -> 0.56 | R155: =VLOOKUP(A155,'PBMT scores'!A:Z,19,FALSE) -> 0.02 | S155: =VLOOKUP(A155,'PBMT scores'!A:Z,20,FALSE) -> 0.11
A156: 41847-86-3 | B156: =VLOOKUP(A156,'PBMT scores'!A:Z,3,FALSE) -> 8-(2,2-dimethoxyethoxy)-2,6-dimethyloct-2-ene(1) | C156: =VLOOKUP(A156,'PBMT scores'!A:Z,4,FALSE) -> REACH | E156: =VLOOKUP(A156,'PBMT scores'!A:Z,6,FALSE) -> 0.01 | F156: =VLOOKUP(A156,'PBMT scores'!A:Z,7,FALSE) -> 0.01 | H156: =VLOOKUP(A156,'PBMT scores'!A:Z,9,FALSE) -> 0.00 | I156: =VLOOKUP(A156,'PBMT scores'!A:Z,10,FALSE) -> 0.00 | J156: =VLOOKUP(A156,'PBMT scores'!A:Z,11,FALSE) -> 0.00 | L156: =VLOOKUP(A156,'PBMT scores'!A:Z,13,FALSE) -> 0.25 | M156: =VLOOKUP(A156,'PBMT scores'!A:Z,14,FALSE) -> 0.19 | N156: =VLOOKUP(A156,'PBMT scores'!A:Z,15,FALSE) -> 0.39 | O156: =VLOOKUP(A156,'PBMT scores'!A:Z,16,FALSE) -> 0.32 | R156: =VLOOKUP(A156,'PBMT scores'!A:Z,19,FALSE) -> 0.04 | S156: =VLOOKUP(A156,'PBMT scores'!A:Z,20,FALSE) -> 0.03
A157: 646-31-1 | B157: =VLOOKUP(A157,'PBMT scores'!A:Z,3,FALSE) -> tetracosaan | C157: =VLOOKUP(A157,'PBMT scores'!A:Z,4,FALSE) -> RIWA | E157: =VLOOKUP(A157,'PBMT scores'!A:Z,6,FALSE) -> 0.01 | F157: =VLOOKUP(A157,'PBMT scores'!A:Z,7,FALSE) -> 0.04 | H157: =VLOOKUP(A157,'PBMT scores'!A:Z,9,FALSE) -> 0.00 | I157: =VLOOKUP(A157,'PBMT scores'!A:Z,10,FALSE) -> 0.00 | J157: =VLOOKUP(A157,'PBMT scores'!A:Z,11,FALSE) -> 0.00 | L157: =VLOOKUP(A157,'PBMT scores'!A:Z,13,FALSE) -> 0.08 | M157: =VLOOKUP(A157,'PBMT scores'!A:Z,14,FALSE) -> 0.58 | N157: =VLOOKUP(A157,'PBMT scores'!A:Z,15,FALSE) -> 0.00 | O157: =VLOOKUP(A157,'PBMT scores'!A:Z,16,FALSE) -> 0.03 | R157: =VLOOKUP(A157,'PBMT scores'!A:Z,19,FALSE) -> 0.01 | S157: =VLOOKUP(A157,'PBMT scores'!A:Z,20,FALSE) -> 0.04
A158: 5303-24-2 | B158: =VLOOKUP(A158,'PBMT scores'!A:Z,3,FALSE) -> Octyl laurate(1) | C158: =VLOOKUP(A158,'PBMT scores'!A:Z,4,FALSE) -> REACH | E158: =VLOOKUP(A158,'PBMT scores'!A:Z,6,FALSE) -> 0.01 | F158: =VLOOKUP(A158,'PBMT scores'!A:Z,7,FALSE) -> 0.04 | H158: =VLOOKUP(A158,'PBMT scores'!A:Z,9,FALSE) -> 0.00 | I158: =VLOOKUP(A158,'PBMT scores'!A:Z,10,FALSE) -> 0.00 | J158: =VLOOKUP(A158,'PBMT scores'!A:Z,11,FALSE) -> 0.00 | L158: =VLOOKUP(A158,'PBMT scores'!A:Z,13,FALSE) -> 0.04 | M158: =VLOOKUP(A158,'PBMT scores'!A:Z,14,FALSE) -> 0.42 | N158: =VLOOKUP(A158,'PBMT scores'!A:Z,15,FALSE) -> 0.07 | O158: =VLOOKUP(A158,'PBMT scores'!A:Z,16,FALSE) -> 0.61 | R158: =VLOOKUP(A158,'PBMT scores'!A:Z,19,FALSE) -> 0.02 | S158: =VLOOKUP(A158,'PBMT scores'!A:Z,20,FALSE) -> 0.12
A159: 624-03-3 | B159: =VLOOKUP(A159,'PBMT scores'!A:Z,3,FALSE) -> Ethane-1,2-diyl palmitate(1) | C159: =VLOOKUP(A159,'PBMT scores'!A:Z,4,FALSE) -> REACH | E159: =VLOOKUP(A159,'PBMT scores'!A:Z,6,FALSE) -> 0.01 | F159: =VLOOKUP(A159,'PBMT scores'!A:Z,7,FALSE) -> 0.01 | H159: =VLOOKUP(A159,'PBMT scores'!A:Z,9,FALSE) -> 0.00 | I159: =VLOOKUP(A159,'PBMT scores'!A:Z,10,FALSE) -> 0.00 | J159: =VLOOKUP(A159,'PBMT scores'!A:Z,11,FALSE) -> 0.00 | L159: =VLOOKUP(A159,'PBMT scores'!A:Z,13,FALSE) -> 0.13 | M159: =VLOOKUP(A159,'PBMT scores'!A:Z,14,FALSE) -> 0.69 | N159: =VLOOKUP(A159,'PBMT scores'!A:Z,15,FALSE) -> 0.01 | O159: =VLOOKUP(A159,'PBMT scores'!A:Z,16,FALSE) -> 0.00 | R159: =VLOOKUP(A159,'PBMT scores'!A:Z,19,FALSE) -> 0.01 | S159: =VLOOKUP(A159,'PBMT scores'!A:Z,20,FALSE) -> 0.01
A160: 83-13-6 | B160: =VLOOKUP(A160,'PBMT scores'!A:Z,3,FALSE) -> Diethyl phenylmalonate(1) | C160: =VLOOKUP(A160,'PBMT scores'!A:Z,4,FALSE) -> REACH | E160: =VLOOKUP(A160,'PBMT scores'!A:Z,6,FALSE) -> 0.01 | F160: =VLOOKUP(A160,'PBMT scores'!A:Z,7,FALSE) -> 0.00 | H160: =VLOOKUP(A160,'PBMT scores'!A:Z,9,FALSE) -> 0.00 | I160: =VLOOKUP(A160,'PBMT scores'!A:Z,10,FALSE) -> 0.00 | J160: =VLOOKUP(A160,'PBMT scores'!A:Z,11,FALSE) -> 0.00 | L160: =VLOOKUP(A160,'PBMT scores'!A:Z,13,FALSE) -> 0.12 | M160: =VLOOKUP(A160,'PBMT scores'!A:Z,14,FALSE) -> 0.09 | N160: =VLOOKUP(A160,'PBMT scores'!A:Z,15,FALSE) -> 0.47 | O160: =VLOOKUP(A160,'PBMT scores'!A:Z,16,FALSE) -> 0.01 | R160: =VLOOKUP(A160,'PBMT scores'!A:Z,19,FALSE) -> 0.04 | S160: =VLOOKUP(A160,'PBMT scores'!A:Z,20,FALSE) -> 0.00
A161: 34316-64-8 | B161: =VLOOKUP(A161,'PBMT scores'!A:Z,3,FALSE) -> Hexyl laurate(1) | C161: =VLOOKUP(A161,'PBMT scores'!A:Z,4,FALSE) -> REACH | E161: =VLOOKUP(A161,'PBMT scores'!A:Z,6,FALSE) -> 0.01 | F161: =VLOOKUP(A161,'PBMT scores'!A:Z,7,FALSE) -> 0.03 | H161: =VLOOKUP(A161,'PBMT scores'!A:Z,9,FALSE) -> 0.00 | I161: =VLOOKUP(A161,'PBMT scores'!A:Z,10,FALSE) -> 0.00 | J161: =VLOOKUP(A161,'PBMT scores'!A:Z,11,FALSE) -> 0.00 | L161: =VLOOKUP(A161,'PBMT scores'!A:Z,13,FALSE) -> 0.03 | M161: =VLOOKUP(A161,'PBMT scores'!A:Z,14,FALSE) -> 0.34 | N161: =VLOOKUP(A161,'PBMT scores'!A:Z,15,FALSE) -> 0.10 | O161: =VLOOKUP(A161,'PBMT scores'!A:Z,16,FALSE) -> 0.54 | R161: =VLOOKUP(A161,'PBMT scores'!A:Z,19,FALSE) -> 0.02 | S161: =VLOOKUP(A161,'PBMT scores'!A:Z,20,FALSE) -> 0.10
A162: 943-88-4 | B162: =VLOOKUP(A162,'PBMT scores'!A:Z,3,FALSE) -> 4-(4-methoxyphenyl)-3-buten-2-one(1) | C162: =VLOOKUP(A162,'PBMT scores'!A:Z,4,FALSE) -> REACH | E162: =VLOOKUP(A162,'PBMT scores'!A:Z,6,FALSE) -> 0.01 | F162: =VLOOKUP(A162,'PBMT scores'!A:Z,7,FALSE) -> 0.00 | H162: =VLOOKUP(A162,'PBMT scores'!A:Z,9,FALSE) -> 0.00 | I162: =VLOOKUP(A162,'PBMT scores'!A:Z,10,FALSE) -> 0.00 | J162: =VLOOKUP(A162,'PBMT scores'!A:Z,11,FALSE) -> 0.00 | L162: =VLOOKUP(A162,'PBMT scores'!A:Z,13,FALSE) -> 0.20 | M162: =VLOOKUP(A162,'PBMT scores'!A:Z,14,FALSE) -> 0.09 | N162: =VLOOKUP(A162,'PBMT scores'!A:Z,15,FALSE) -> 0.43 | O162: =VLOOKUP(A162,'PBMT scores'!A:Z,16,FALSE) -> 0.11 | R162: =VLOOKUP(A162,'PBMT scores'!A:Z,19,FALSE) -> 0.04 | S162: =VLOOKUP(A162,'PBMT scores'!A:Z,20,FALSE) -> 0.02
A163: 922-32-7 | B163: =VLOOKUP(A163,'PBMT scores'!A:Z,3,FALSE) -> Phosphocreatine, sodium salt(1) | C163: =VLOOKUP(A163,'PBMT scores'!A:Z,4,FALSE) -> REACH | E163: =VLOOKUP(A163,'PBMT scores'!A:Z,6,FALSE) -> 0.01 | F163: =VLOOKUP(A163,'PBMT scores'!A:Z,7,FALSE) -> 0.00 | H163: =VLOOKUP(A163,'PBMT scores'!A:Z,9,FALSE) -> 0.00 | I163: =VLOOKUP(A163,'PBMT scores'!A:Z,10,FALSE) -> 0.00 | J163: =VLOOKUP(A163,'PBMT scores'!A:Z,11,FALSE) -> 0.00 | L163: =VLOOKUP(A163,'PBMT scores'!A:Z,13,FALSE) -> 0.07 | M163: =VLOOKUP(A163,'PBMT scores'!A:Z,14,FALSE) -> 0.04 | N163: =VLOOKUP(A163,'PBMT scores'!A:Z,15,FALSE) -> 0.99 | O163: =VLOOKUP(A163,'PBMT scores'!A:Z,16,FALSE) -> 0.00 | R163: =VLOOKUP(A163,'PBMT scores'!A:Z,19,FALSE) -> 0.06 | S163: =VLOOKUP(A163,'PBMT scores'!A:Z,20,FALSE) -> 0.00
A164: 104-01-8 | B164: =VLOOKUP(A164,'PBMT scores'!A:Z,3,FALSE) -> 4-methoxyphenylacetic acid(1) | C164: =VLOOKUP(A164,'PBMT scores'!A:Z,4,FALSE) -> REACH | E164: =VLOOKUP(A164,'PBMT scores'!A:Z,6,FALSE) -> 0.01 | F164: =VLOOKUP(A164,'PBMT scores'!A:Z,7,FALSE) -> 0.00 | H164: =VLOOKUP(A164,'PBMT scores'!A:Z,9,FALSE) -> 0.00 | I164: =VLOOKUP(A164,'PBMT scores'!A:Z,10,FALSE) -> 0.00 | J164: =VLOOKUP(A164,'PBMT scores'!A:Z,11,FALSE) -> 0.00 | L164: =VLOOKUP(A164,'PBMT scores'!A:Z,13,FALSE) -> 0.07 | M164: =VLOOKUP(A164,'PBMT scores'!A:Z,14,FALSE) -> 0.04 | N164: =VLOOKUP(A164,'PBMT scores'!A:Z,15,FALSE) -> 0.67 | O164: =VLOOKUP(A164,'PBMT scores'!A:Z,16,FALSE) -> 0.05 | R164: =VLOOKUP(A164,'PBMT scores'!A:Z,19,FALSE) -> 0.05 | S164: =VLOOKUP(A164,'PBMT scores'!A:Z,20,FALSE) -> 0.01
A165: 97-41-6 | B165: =VLOOKUP(A165,'PBMT scores'!A:Z,3,FALSE) -> Ethyl 2,2-dimethyl-3-(2-methylpropenyl)cyclopropanecarboxylate(1) | C165: =VLOOKUP(A165,'PBMT scores'!A:Z,4,FALSE) -> REACH | E165: =VLOOKUP(A165,'PBMT scores'!A:Z,6,FALSE) -> 0.01 | F165: =VLOOKUP(A165,'PBMT scores'!A:Z,7,FALSE) -> 0.01 | H165: =VLOOKUP(A165,'PBMT scores'!A:Z,9,FALSE) -> 0.00 | I165: =VLOOKUP(A165,'PBMT scores'!A:Z,10,FALSE) -> 0.00 | J165: =VLOOKUP(A165,'PBMT scores'!A:Z,11,FALSE) -> 0.00 | L165: =VLOOKUP(A165,'PBMT scores'!A:Z,13,FALSE) -> 0.21 | M165: =VLOOKUP(A165,'PBMT scores'!A:Z,14,FALSE) -> 0.10 | N165: =VLOOKUP(A165,'PBMT scores'!A:Z,15,FALSE) -> 0.30 | O165: =VLOOKUP(A165,'PBMT scores'!A:Z,16,FALSE) -> 0.13 | R165: =VLOOKUP(A165,'PBMT scores'!A:Z,19,FALSE) -> 0.04 | S165: =VLOOKUP(A165,'PBMT scores'!A:Z,20,FALSE) -> 0.02
A166: 4521-28-2 | B166: =VLOOKUP(A166,'PBMT scores'!A:Z,3,FALSE) -> 4-(4-methoxyphenyl)butyric acid(1) | C166: =VLOOKUP(A166,'PBMT scores'!A:Z,4,FALSE) -> REACH | E166: =VLOOKUP(A166,'PBMT scores'!A:Z,6,FALSE) -> 0.01 | F166: =VLOOKUP(A166,'PBMT scores'!A:Z,7,FALSE) -> 0.01 | H166: =VLOOKUP(A166,'PBMT scores'!A:Z,9,FALSE) -> 0.00 | I166: =VLOOKUP(A166,'PBMT scores'!A:Z,10,FALSE) -> 0.00 | J166: =VLOOKUP(A166,'PBMT scores'!A:Z,11,FALSE) -> 0.00 | L166: =VLOOKUP(A166,'PBMT scores'!A:Z,13,FALSE) -> 0.09 | M166: =VLOOKUP(A166,'PBMT scores'!A:Z,14,FALSE) -> 0.07 | N166: =VLOOKUP(A166,'PBMT scores'!A:Z,15,FALSE) -> 0.59 | O166: =VLOOKUP(A166,'PBMT scores'!A:Z,16,FALSE) -> 0.13 | R166: =VLOOKUP(A166,'PBMT scores'!A:Z,19,FALSE) -> 0.05 | S166: =VLOOKUP(A166,'PBMT scores'!A:Z,20,FALSE) -> 0.02
A167: 629-97-0 | B167: =VLOOKUP(A167,'PBMT scores'!A:Z,3,FALSE) -> docosaan | C167: =VLOOKUP(A167,'PBMT scores'!A:Z,4,FALSE) -> RIWA | E167: =VLOOKUP(A167,'PBMT scores'!A:Z,6,FALSE) -> 0.01 | F167: =VLOOKUP(A167,'PBMT scores'!A:Z,7,FALSE) -> 0.05 | H167: =VLOOKUP(A167,'PBMT scores'!A:Z,9,FALSE) -> 0.00 | I167: =VLOOKUP(A167,'PBMT scores'!A:Z,10,FALSE) -> 0.00 | J167: =VLOOKUP(A167,'PBMT scores'!A:Z,11,FALSE) -> 0.00 | L167: =VLOOKUP(A167,'PBMT scores'!A:Z,13,FALSE) -> 0.06 | M167: =VLOOKUP(A167,'PBMT scores'!A:Z,14,FALSE) -> 0.53 | N167: =VLOOKUP(A167,'PBMT scores'!A:Z,15,FALSE) -> 0.00 | O167: =VLOOKUP(A167,'PBMT scores'!A:Z,16,FALSE) -> 0.08 | R167: =VLOOKUP(A167,'PBMT scores'!A:Z,19,FALSE) -> 0.01 | S167: =VLOOKUP(A167,'PBMT scores'!A:Z,20,FALSE) -> 0.06
A168: 1603-79-8 | B168: =VLOOKUP(A168,'PBMT scores'!A:Z,3,FALSE) -> Ethyl phenylglyoxylate(1) | C168: =VLOOKUP(A168,'PBMT scores'!A:Z,4,FALSE) -> REACH | E168: =VLOOKUP(A168,'PBMT scores'!A:Z,6,FALSE) -> 0.01 | F168: =VLOOKUP(A168,'PBMT scores'!A:Z,7,FALSE) -> 0.00 | H168: =VLOOKUP(A168,'PBMT scores'!A:Z,9,FALSE) -> 0.00 | I168: =VLOOKUP(A168,'PBMT scores'!A:Z,10,FALSE) -> 0.00 | J168: =VLOOKUP(A168,'PBMT scores'!A:Z,11,FALSE) -> 0.00 | L168: =VLOOKUP(A168,'PBMT scores'!A:Z,13,FALSE) -> 0.10 | M168: =VLOOKUP(A168,'PBMT scores'!A:Z,14,FALSE) -> 0.05 | N168: =VLOOKUP(A168,'PBMT scores'!A:Z,15,FALSE) -> 0.58 | O168: =VLOOKUP(A168,'PBMT scores'!A:Z,16,FALSE) -> 0.03 | R168: =VLOOKUP(A168,'PBMT scores'!A:Z,19,FALSE) -> 0.05 | S168: =VLOOKUP(A168,'PBMT scores'!A:Z,20,FALSE) -> 0.01
A169: 111-01-3 | B169: =VLOOKUP(A169,'PBMT scores'!A:Z,3,FALSE) -> 2,6,10,15,19,23-hexamethyltetracosane(2) | C169: =VLOOKUP(A169,'PBMT scores'!A:Z,4,FALSE) -> REACH | E169: =VLOOKUP(A169,'PBMT scores'!A:Z,6,FALSE) -> 0.01 | F169: =VLOOKUP(A169,'PBMT scores'!A:Z,7,FALSE) -> 0.03 | H169: =VLOOKUP(A169,'PBMT scores'!A:Z,9,FALSE) -> 0.00 | I169: =VLOOKUP(A169,'PBMT scores'!A:Z,10,FALSE) -> 0.00 | J169: =VLOOKUP(A169,'PBMT scores'!A:Z,11,FALSE) -> 0.00 | L169: =VLOOKUP(A169,'PBMT scores'!A:Z,13,FALSE) -> 0.53 | M169: =VLOOKUP(A169,'PBMT scores'!A:Z,14,FALSE) -> 0.93 | N169: =VLOOKUP(A169,'PBMT scores'!A:Z,15,FALSE) -> 0.00 | O169: =VLOOKUP(A169,'PBMT scores'!A:Z,16,FALSE) -> 0.01 | R169: =VLOOKUP(A169,'PBMT scores'!A:Z,19,FALSE) -> 0.00 | S169: =VLOOKUP(A169,'PBMT scores'!A:Z,20,FALSE) -> 0.02
A170: 1738-76-7 | B170: =VLOOKUP(A170,'PBMT scores'!A:Z,3,FALSE) -> O-benzylglycine toluene-p-sulphonate(1) | C170: =VLOOKUP(A170,'PBMT scores'!A:Z,4,FALSE) -> REACH | E170: =VLOOKUP(A170,'PBMT scores'!A:Z,6,FALSE) -> 0.01 | F170: =VLOOKUP(A170,'PBMT scores'!A:Z,7,FALSE) -> 0.00 | H170: =VLOOKUP(A170,'PBMT scores'!A:Z,9,FALSE) -> 0.00 | I170: =VLOOKUP(A170,'PBMT scores'!A:Z,10,FALSE) -> 0.00 | J170: =VLOOKUP(A170,'PBMT scores'!A:Z,11,FALSE) -> 0.00 | L170: =VLOOKUP(A170,'PBMT scores'!A:Z,13,FALSE) -> 0.09 | M170: =VLOOKUP(A170,'PBMT scores'!A:Z,14,FALSE) -> 0.05 | N170: =VLOOKUP(A170,'PBMT scores'!A:Z,15,FALSE) -> 0.82 | O170: =VLOOKUP(A170,'PBMT scores'!A:Z,16,FALSE) -> 0.00 | R170: =VLOOKUP(A170,'PBMT scores'!A:Z,19,FALSE) -> 0.06 | S170: =VLOOKUP(A170,'PBMT scores'!A:Z,20,FALSE) -> 0.00
A171: 115-83-3 | B171: =VLOOKUP(A171,'PBMT scores'!A:Z,3,FALSE) -> pentaerythritoltetrastearate(1) | C171: =VLOOKUP(A171,'PBMT scores'!A:Z,4,FALSE) -> REACH | E171: =VLOOKUP(A171,'PBMT scores'!A:Z,6,FALSE) -> 0.01 | F171: =VLOOKUP(A171,'PBMT scores'!A:Z,7,FALSE) -> 0.06 | H171: =VLOOKUP(A171,'PBMT scores'!A:Z,9,FALSE) -> 0.17 | I171: =VLOOKUP(A171,'PBMT scores'!A:Z,10,FALSE) -> 0.00 | J171: =VLOOKUP(A171,'PBMT scores'!A:Z,11,FALSE) -> 0.33 | L171: =VLOOKUP(A171,'PBMT scores'!A:Z,13,FALSE) -> 0.68 | M171: =VLOOKUP(A171,'PBMT scores'!A:Z,14,FALSE) -> 0.96 | N171: =VLOOKUP(A171,'PBMT scores'!A:Z,15,FALSE) -> 0.00 | O171: =VLOOKUP(A171,'PBMT scores'!A:Z,16,FALSE) -> 0.00 | R171: =VLOOKUP(A171,'PBMT scores'!A:Z,19,FALSE) -> 0.00 | S171: =VLOOKUP(A171,'PBMT scores'!A:Z,20,FALSE) -> 0.01
A172: 94134-83-5 | B172: =VLOOKUP(A172,'PBMT scores'!A:Z,3,FALSE) -> 11-methyldodecyl laurate(1) | C172: =VLOOKUP(A172,'PBMT scores'!A:Z,4,FALSE) -> REACH | E172: =VLOOKUP(A172,'PBMT scores'!A:Z,6,FALSE) -> 0.01 | F172: =VLOOKUP(A172,'PBMT scores'!A:Z,7,FALSE) -> 0.02 | H172: =VLOOKUP(A172,'PBMT scores'!A:Z,9,FALSE) -> 0.00 | I172: =VLOOKUP(A172,'PBMT scores'!A:Z,10,FALSE) -> 0.00 | J172: =VLOOKUP(A172,'PBMT scores'!A:Z,11,FALSE) -> 0.00 | L172: =VLOOKUP(A172,'PBMT scores'!A:Z,13,FALSE) -> 0.16 | M172: =VLOOKUP(A172,'PBMT scores'!A:Z,14,FALSE) -> 0.75 | N172: =VLOOKUP(A172,'PBMT scores'!A:Z,15,FALSE) -> 0.03 | O172: =VLOOKUP(A172,'PBMT scores'!A:Z,16,FALSE) -> 0.07 | R172: =VLOOKUP(A172,'PBMT scores'!A:Z,19,FALSE) -> 0.02 | S172: =VLOOKUP(A172,'PBMT scores'!A:Z,20,FALSE) -> 0.04
A173: 93-03-8 | B173: =VLOOKUP(A173,'PBMT scores'!A:Z,3,FALSE) -> 3,4-dimethoxybenzyl alcohol(1) | C173: =VLOOKUP(A173,'PBMT scores'!A:Z,4,FALSE) -> REACH | E173: =VLOOKUP(A173,'PBMT scores'!A:Z,6,FALSE) -> 0.01 | F173: =VLOOKUP(A173,'PBMT scores'!A:Z,7,FALSE) -> 0.00 | H173: =VLOOKUP(A173,'PBMT scores'!A:Z,9,FALSE) -> 0.00 | I173: =VLOOKUP(A173,'PBMT scores'!A:Z,10,FALSE) -> 0.00 | J173: =VLOOKUP(A173,'PBMT scores'!A:Z,11,FALSE) -> 0.00 | L173: =VLOOKUP(A173,'PBMT scores'!A:Z,13,FALSE) -> 0.13 | M173: =VLOOKUP(A173,'PBMT scores'!A:Z,14,FALSE) -> 0.06 | N173: =VLOOKUP(A173,'PBMT scores'!A:Z,15,FALSE) -> 0.66 | O173: =VLOOKUP(A173,'PBMT scores'!A:Z,16,FALSE) -> 0.02 | R173: =VLOOKUP(A173,'PBMT scores'!A:Z,19,FALSE) -> 0.06 | S173: =VLOOKUP(A173,'PBMT scores'!A:Z,20,FALSE) -> 0.01
A174: 7420-89-5 | B174: =VLOOKUP(A174,'PBMT scores'!A:Z,3,FALSE) -> Disodium 1,5-dihydroxypentane-1,5-disulphonate(1) | C174: =VLOOKUP(A174,'PBMT scores'!A:Z,4,FALSE) -> REACH | E174: =VLOOKUP(A174,'PBMT scores'!A:Z,6,FALSE) -> 0.01 | F174: =VLOOKUP(A174,'PBMT scores'!A:Z,7,FALSE) -> 0.00 | H174: =VLOOKUP(A174,'PBMT scores'!A:Z,9,FALSE) -> 0.00 | I174: =VLOOKUP(A174,'PBMT scores'!A:Z,10,FALSE) -> 0.00 | J174: =VLOOKUP(A174,'PBMT scores'!A:Z,11,FALSE) -> 0.00 | L174: =VLOOKUP(A174,'PBMT scores'!A:Z,13,FALSE) -> 0.03 | M174: =VLOOKUP(A174,'PBMT scores'!A:Z,14,FALSE) -> 0.02 | N174: =VLOOKUP(A174,'PBMT scores'!A:Z,15,FALSE) -> 0.98 | O174: =VLOOKUP(A174,'PBMT scores'!A:Z,16,FALSE) -> 0.00 | R174: =VLOOKUP(A174,'PBMT scores'!A:Z,19,FALSE) -> 0.07 | S174: =VLOOKUP(A174,'PBMT scores'!A:Z,20,FALSE) -> 0.00
A175: 35153-15-2 | B175: =VLOOKUP(A175,'PBMT scores'!A:Z,3,FALSE) -> (Z)-tetradec-9-enol(1) | C175: =VLOOKUP(A175,'PBMT scores'!A:Z,4,FALSE) -> REACH | E175: =VLOOKUP(A175,'PBMT scores'!A:Z,6,FALSE) -> 0.01 | F175: =VLOOKUP(A175,'PBMT scores'!A:Z,7,FALSE) -> 0.02 | H175: =VLOOKUP(A175,'PBMT scores'!A:Z,9,FALSE) -> 0.00 | I175: =VLOOKUP(A175,'PBMT scores'!A:Z,10,FALSE) -> 0.00 | J175: =VLOOKUP(A175,'PBMT scores'!A:Z,11,FALSE) -> 0.00 | L175: =VLOOKUP(A175,'PBMT scores'!A:Z,13,FALSE) -> 0.05 | M175: =VLOOKUP(A175,'PBMT scores'!A:Z,14,FALSE) -> 0.07 | N175: =VLOOKUP(A175,'PBMT scores'!A:Z,15,FALSE) -> 0.25 | O175: =VLOOKUP(A175,'PBMT scores'!A:Z,16,FALSE) -> 0.55 | R175: =VLOOKUP(A175,'PBMT scores'!A:Z,19,FALSE) -> 0.04 | S175: =VLOOKUP(A175,'PBMT scores'!A:Z,20,FALSE) -> 0.06
A176: 122-72-5 | B176: =VLOOKUP(A176,'PBMT scores'!A:Z,3,FALSE) -> 3-phenylpropyl acetate(1) | C176: =VLOOKUP(A176,'PBMT scores'!A:Z,4,FALSE) -> REACH | E176: =VLOOKUP(A176,'PBMT scores'!A:Z,6,FALSE) -> 0.01 | F176: =VLOOKUP(A176,'PBMT scores'!A:Z,7,FALSE) -> 0.00 | H176: =VLOOKUP(A176,'PBMT scores'!A:Z,9,FALSE) -> 0.00 | I176: =VLOOKUP(A176,'PBMT scores'!A:Z,10,FALSE) -> 0.00 | J176: =VLOOKUP(A176,'PBMT scores'!A:Z,11,FALSE) -> 0.00 | L176: =VLOOKUP(A176,'PBMT scores'!A:Z,13,FALSE) -> 0.12 | M176: =VLOOKUP(A176,'PBMT scores'!A:Z,14,FALSE) -> 0.07 | N176: =VLOOKUP(A176,'PBMT scores'!A:Z,15,FALSE) -> 0.41 | O176: =VLOOKUP(A176,'PBMT scores'!A:Z,16,FALSE) -> 0.04 | R176: =VLOOKUP(A176,'PBMT scores'!A:Z,19,FALSE) -> 0.05 | S176: =VLOOKUP(A176,'PBMT scores'!A:Z,20,FALSE) -> 0.01
A177: 2306-88-9 | B177: =VLOOKUP(A177,'PBMT scores'!A:Z,3,FALSE) -> Octyl octanoate(1) | C177: =VLOOKUP(A177,'PBMT scores'!A:Z,4,FALSE) -> REACH | E177: =VLOOKUP(A177,'PBMT scores'!A:Z,6,FALSE) -> 0.01 | F177: =VLOOKUP(A177,'PBMT scores'!A:Z,7,FALSE) -> 0.03 | H177: =VLOOKUP(A177,'PBMT scores'!A:Z,9,FALSE) -> 0.00 | I177: =VLOOKUP(A177,'PBMT scores'!A:Z,10,FALSE) -> 0.00 | J177: =VLOOKUP(A177,'PBMT scores'!A:Z,11,FALSE) -> 0.00 | L177: =VLOOKUP(A177,'PBMT scores'!A:Z,13,FALSE) -> 0.03 | M177: =VLOOKUP(A177,'PBMT scores'!A:Z,14,FALSE) -> 0.14 | N177: =VLOOKUP(A177,'PBMT scores'!A:Z,15,FALSE) -> 0.15 | O177: =VLOOKUP(A177,'PBMT scores'!A:Z,16,FALSE) -> 0.36 | R177: =VLOOKUP(A177,'PBMT scores'!A:Z,19,FALSE) -> 0.03 | S177: =VLOOKUP(A177,'PBMT scores'!A:Z,20,FALSE) -> 0.07
A178: 112-95-8 | B178: =VLOOKUP(A178,'PBMT scores'!A:Z,3,FALSE) -> eicosaan | C178: =VLOOKUP(A178,'PBMT scores'!A:Z,4,FALSE) -> RIWA | E178: =VLOOKUP(A178,'PBMT scores'!A:Z,6,FALSE) -> 0.01 | F178: =VLOOKUP(A178,'PBMT scores'!A:Z,7,FALSE) -> 0.07 | H178: =VLOOKUP(A178,'PBMT scores'!A:Z,9,FALSE) -> 0.00 | I178: =VLOOKUP(A178,'PBMT scores'!A:Z,10,FALSE) -> 0.00 | J178: =VLOOKUP(A178,'PBMT scores'!A:Z,11,FALSE) -> 0.00 | L178: =VLOOKUP(A178,'PBMT scores'!A:Z,13,FALSE) -> 0.05 | M178: =VLOOKUP(A178,'PBMT scores'!A:Z,14,FALSE) -> 0.48 | N178: =VLOOKUP(A178,'PBMT scores'!A:Z,15,FALSE) -> 0.01 | O178: =VLOOKUP(A178,'PBMT scores'!A:Z,16,FALSE) -> 0.23 | R178: =VLOOKUP(A178,'PBMT scores'!A:Z,19,FALSE) -> 0.01 | S178: =VLOOKUP(A178,'PBMT scores'!A:Z,20,FALSE) -> 0.11
A179: 19321-40-5 | B179: =VLOOKUP(A179,'PBMT scores'!A:Z,3,FALSE) -> pentaerythritoltetraoleate(1) | C179: =VLOOKUP(A179,'PBMT scores'!A:Z,4,FALSE) -> REACH | E179: =VLOOKUP(A179,'PBMT scores'!A:Z,6,FALSE) -> 0.01 | F179: =VLOOKUP(A179,'PBMT scores'!A:Z,7,FALSE) -> 0.06 | H179: =VLOOKUP(A179,'PBMT scores'!A:Z,9,FALSE) -> 0.17 | I179: =VLOOKUP(A179,'PBMT scores'!A:Z,10,FALSE) -> 0.00 | J179: =VLOOKUP(A179,'PBMT scores'!A:Z,11,FALSE) -> 0.33 | L179: =VLOOKUP(A179,'PBMT scores'!A:Z,13,FALSE) -> 0.66 | M179: =VLOOKUP(A179,'PBMT scores'!A:Z,14,FALSE) -> 0.95 | N179: =VLOOKUP(A179,'PBMT scores'!A:Z,15,FALSE) -> 0.00 | O179: =VLOOKUP(A179,'PBMT scores'!A:Z,16,FALSE) -> 0.00 | R179: =VLOOKUP(A179,'PBMT scores'!A:Z,19,FALSE) -> 0.00 | S179: =VLOOKUP(A179,'PBMT scores'!A:Z,20,FALSE) -> 0.01
A180: 925-21-3 | B180: =VLOOKUP(A180,'PBMT scores'!A:Z,3,FALSE) -> Butyl hydrogen maleate(1) | C180: =VLOOKUP(A180,'PBMT scores'!A:Z,4,FALSE) -> REACH | E180: =VLOOKUP(A180,'PBMT scores'!A:Z,6,FALSE) -> 0.01 | F180: =VLOOKUP(A180,'PBMT scores'!A:Z,7,FALSE) -> 0.01 | H180: =VLOOKUP(A180,'PBMT scores'!A:Z,9,FALSE) -> 0.00 | I180: =VLOOKUP(A180,'PBMT scores'!A:Z,10,FALSE) -> 0.00 | J180: =VLOOKUP(A180,'PBMT scores'!A:Z,11,FALSE) -> 0.00 | L180: =VLOOKUP(A180,'PBMT scores'!A:Z,13,FALSE) -> 0.01 | M180: =VLOOKUP(A180,'PBMT scores'!A:Z,14,FALSE) -> 0.01 | N180: =VLOOKUP(A180,'PBMT scores'!A:Z,15,FALSE) -> 0.60 | O180: =VLOOKUP(A180,'PBMT scores'!A:Z,16,FALSE) -> 0.07 | R180: =VLOOKUP(A180,'PBMT scores'!A:Z,19,FALSE) -> 0.06 | S180: =VLOOKUP(A180,'PBMT scores'!A:Z,20,FALSE) -> 0.02
A181: 62125-22-8 | B181: =VLOOKUP(A181,'PBMT scores'!A:Z,3,FALSE) -> 2,2-bis[[(1-oxoisooctadecyl)oxy]methyl]-1,3-propanediyl bis(isooctadecanoate)(1) | C181: =VLOOKUP(A181,'PBMT scores'!A:Z,4,FALSE) -> REACH | E181: =VLOOKUP(A181,'PBMT scores'!A:Z,6,FALSE) -> 0.01 | F181: =VLOOKUP(A181,'PBMT scores'!A:Z,7,FALSE) -> 0.06 | H181: =VLOOKUP(A181,'PBMT scores'!A:Z,9,FALSE) -> 0.17 | I181: =VLOOKUP(A181,'PBMT scores'!A:Z,10,FALSE) -> 0.00 | J181: =VLOOKUP(A181,'PBMT scores'!A:Z,11,FALSE) -> 0.33 | L181: =VLOOKUP(A181,'PBMT scores'!A:Z,13,FALSE) -> 0.99 | M181: =VLOOKUP(A181,'PBMT scores'!A:Z,14,FALSE) -> 1.00 | N181: =VLOOKUP(A181,'PBMT scores'!A:Z,15,FALSE) -> 0.00 | O181: =VLOOKUP(A181,'PBMT scores'!A:Z,16,FALSE) -> 0.00 | R181: =VLOOKUP(A181,'PBMT scores'!A:Z,19,FALSE) -> 0.00 | S181: =VLOOKUP(A181,'PBMT scores'!A:Z,20,FALSE) -> 0.01
A182: 68955-56-6 | B182: =VLOOKUP(A182,'PBMT scores'!A:Z,3,FALSE) -> Amines, C36-alkylenedi-(1) | C182: =VLOOKUP(A182,'PBMT scores'!A:Z,4,FALSE) -> REACH | E182: =VLOOKUP(A182,'PBMT scores'!A:Z,6,FALSE) -> 0.01 | F182: =VLOOKUP(A182,'PBMT scores'!A:Z,7,FALSE) -> 0.08 | H182: =VLOOKUP(A182,'PBMT scores'!A:Z,9,FALSE) -> 0.33 | I182: =VLOOKUP(A182,'PBMT scores'!A:Z,10,FALSE) -> 0.33 | J182: =VLOOKUP(A182,'PBMT scores'!A:Z,11,FALSE) -> 0.33 | L182: =VLOOKUP(A182,'PBMT scores'!A:Z,13,FALSE) -> 0.92 | M182: =VLOOKUP(A182,'PBMT scores'!A:Z,14,FALSE) -> 0.99 | N182: =VLOOKUP(A182,'PBMT scores'!A:Z,15,FALSE) -> 0.00 | O182: =VLOOKUP(A182,'PBMT scores'!A:Z,16,FALSE) -> 0.00 | R182: =VLOOKUP(A182,'PBMT scores'!A:Z,19,FALSE) -> 0.00 | S182: =VLOOKUP(A182,'PBMT scores'!A:Z,20,FALSE) -> 0.02
A183: 140-10-3 | B183: =VLOOKUP(A183,'PBMT scores'!A:Z,3,FALSE) -> trans-cinnamic acid(3) | C183: =VLOOKUP(A183,'PBMT scores'!A:Z,4,FALSE) -> REACH | E183: =VLOOKUP(A183,'PBMT scores'!A:Z,6,FALSE) -> 0.01 | F183: =VLOOKUP(A183,'PBMT scores'!A:Z,7,FALSE) -> 0.01 | H183: =VLOOKUP(A183,'PBMT scores'!A:Z,9,FALSE) -> 0.00 | I183: =VLOOKUP(A183,'PBMT scores'!A:Z,10,FALSE) -> 0.00 | J183: =VLOOKUP(A183,'PBMT scores'!A:Z,11,FALSE) -> 0.00 | L183: =VLOOKUP(A183,'PBMT scores'!A:Z,13,FALSE) -> 0.04 | M183: =VLOOKUP(A183,'PBMT scores'!A:Z,14,FALSE) -> 0.03 | N183: =VLOOKUP(A183,'PBMT scores'!A:Z,15,FALSE) -> 0.61 | O183: =VLOOKUP(A183,'PBMT scores'!A:Z,16,FALSE) -> 0.10 | R183: =VLOOKUP(A183,'PBMT scores'!A:Z,19,FALSE) -> 0.06 | S183: =VLOOKUP(A183,'PBMT scores'!A:Z,20,FALSE) -> 0.02
A184: 68527-77-5 | B184: =VLOOKUP(A184,'PBMT scores'!A:Z,3,FALSE) -> 2,4,6-trimethylcyclohex-3-ene-1-methanol(1) | C184: =VLOOKUP(A184,'PBMT scores'!A:Z,4,FALSE) -> REACH | E184: =VLOOKUP(A184,'PBMT scores'!A:Z,6,FALSE) -> 0.01 | F184: =VLOOKUP(A184,'PBMT scores'!A:Z,7,FALSE) -> 0.01 | H184: =VLOOKUP(A184,'PBMT scores'!A:Z,9,FALSE) -> 0.00 | I184: =VLOOKUP(A184,'PBMT scores'!A:Z,10,FALSE) -> 0.00 | J184: =VLOOKUP(A184,'PBMT scores'!A:Z,11,FALSE) -> 0.00 | L184: =VLOOKUP(A184,'PBMT scores'!A:Z,13,FALSE) -> 0.08 | M184: =VLOOKUP(A184,'PBMT scores'!A:Z,14,FALSE) -> 0.10 | N184: =VLOOKUP(A184,'PBMT scores'!A:Z,15,FALSE) -> 0.44 | O184: =VLOOKUP(A184,'PBMT scores'!A:Z,16,FALSE) -> 0.25 | R184: =VLOOKUP(A184,'PBMT scores'!A:Z,19,FALSE) -> 0.05 | S184: =VLOOKUP(A184,'PBMT scores'!A:Z,20,FALSE) -> 0.04
A185: 28473-19-0 | B185: =VLOOKUP(A185,'PBMT scores'!A:Z,3,FALSE) -> Diisodecyl sebacate(1) | C185: =VLOOKUP(A185,'PBMT scores'!A:Z,4,FALSE) -> REACH | E185: =VLOOKUP(A185,'PBMT scores'!A:Z,6,FALSE) -> 0.01 | F185: =VLOOKUP(A185,'PBMT scores'!A:Z,7,FALSE) -> 0.01 | H185: =VLOOKUP(A185,'PBMT scores'!A:Z,9,FALSE) -> 0.00 | I185: =VLOOKUP(A185,'PBMT scores'!A:Z,10,FALSE) -> 0.00 | J185: =VLOOKUP(A185,'PBMT scores'!A:Z,11,FALSE) -> 0.00 | L185: =VLOOKUP(A185,'PBMT scores'!A:Z,13,FALSE) -> 0.41 | M185: =VLOOKUP(A185,'PBMT scores'!A:Z,14,FALSE) -> 0.90 | N185: =VLOOKUP(A185,'PBMT scores'!A:Z,15,FALSE) -> 0.02 | O185: =VLOOKUP(A185,'PBMT scores'!A:Z,16,FALSE) -> 0.01 | R185: =VLOOKUP(A185,'PBMT scores'!A:Z,19,FALSE) -> 0.02 | S185: =VLOOKUP(A185,'PBMT scores'!A:Z,20,FALSE) -> 0.01
A186: 15872-89-6 | B186: =VLOOKUP(A186,'PBMT scores'!A:Z,3,FALSE) -> Diheptyl succinate(1) | C186: =VLOOKUP(A186,'PBMT scores'!A:Z,4,FALSE) -> REACH | E186: =VLOOKUP(A186,'PBMT scores'!A:Z,6,FALSE) -> 0.01 | F186: =VLOOKUP(A186,'PBMT scores'!A:Z,7,FALSE) -> 0.01 | H186: =VLOOKUP(A186,'PBMT scores'!A:Z,9,FALSE) -> 0.00 | I186: =VLOOKUP(A186,'PBMT scores'!A:Z,10,FALSE) -> 0.00 | J186: =VLOOKUP(A186,'PBMT scores'!A:Z,11,FALSE) -> 0.00 | L186: =VLOOKUP(A186,'PBMT scores'!A:Z,13,FALSE) -> 0.03 | M186: =VLOOKUP(A186,'PBMT scores'!A:Z,14,FALSE) -> 0.20 | N186: =VLOOKUP(A186,'PBMT scores'!A:Z,15,FALSE) -> 0.17 | O186: =VLOOKUP(A186,'PBMT scores'!A:Z,16,FALSE) -> 0.03 | R186: =VLOOKUP(A186,'PBMT scores'!A:Z,19,FALSE) -> 0.04 | S186: =VLOOKUP(A186,'PBMT scores'!A:Z,20,FALSE) -> 0.02
A187: 593-45-3 | B187: =VLOOKUP(A187,'PBMT scores'!A:Z,3,FALSE) -> octadecaan | C187: =VLOOKUP(A187,'PBMT scores'!A:Z,4,FALSE) -> RIWA | E187: =VLOOKUP(A187,'PBMT scores'!A:Z,6,FALSE) -> 0.01 | F187: =VLOOKUP(A187,'PBMT scores'!A:Z,7,FALSE) -> 0.09 | H187: =VLOOKUP(A187,'PBMT scores'!A:Z,9,FALSE) -> 0.00 | I187: =VLOOKUP(A187,'PBMT scores'!A:Z,10,FALSE) -> 0.00 | J187: =VLOOKUP(A187,'PBMT scores'!A:Z,11,FALSE) -> 0.00 | L187: =VLOOKUP(A187,'PBMT scores'!A:Z,13,FALSE) -> 0.04 | M187: =VLOOKUP(A187,'PBMT scores'!A:Z,14,FALSE) -> 0.43 | N187: =VLOOKUP(A187,'PBMT scores'!A:Z,15,FALSE) -> 0.02 | O187: =VLOOKUP(A187,'PBMT scores'!A:Z,16,FALSE) -> 0.49 | R187: =VLOOKUP(A187,'PBMT scores'!A:Z,19,FALSE) -> 0.01 | S187: =VLOOKUP(A187,'PBMT scores'!A:Z,20,FALSE) -> 0.17
A188: 2495-35-4 | B188: =VLOOKUP(A188,'PBMT scores'!A:Z,3,FALSE) -> Benzyl acrylate(1) | C188: =VLOOKUP(A188,'PBMT scores'!A:Z,4,FALSE) -> REACH | E188: =VLOOKUP(A188,'PBMT scores'!A:Z,6,FALSE) -> 0.01 | F188: =VLOOKUP(A188,'PBMT scores'!A:Z,7,FALSE) -> 0.00 | H188: =VLOOKUP(A188,'PBMT scores'!A:Z,9,FALSE) -> 0.00 | I188: =VLOOKUP(A188,'PBMT scores'!A:Z,10,FALSE) -> 0.00 | J188: =VLOOKUP(A188,'PBMT scores'!A:Z,11,FALSE) -> 0.00 | L188: =VLOOKUP(A188,'PBMT scores'!A:Z,13,FALSE) -> 0.09 | M188: =VLOOKUP(A188,'PBMT scores'!A:Z,14,FALSE) -> 0.04 | N188: =VLOOKUP(A188,'PBMT scores'!A:Z,15,FALSE) -> 0.46 | O188: =VLOOKUP(A188,'PBMT scores'!A:Z,16,FALSE) -> 0.02 | R188: =VLOOKUP(A188,'PBMT scores'!A:Z,19,FALSE) -> 0.05 | S188: =VLOOKUP(A188,'PBMT scores'!A:Z,20,FALSE) -> 0.01
A189: 70969-58-3 | B189: =VLOOKUP(A189,'PBMT scores'!A:Z,3,FALSE) -> Diisobutyl hexahydrophthalate(1) | C189: =VLOOKUP(A189,'PBMT scores'!A:Z,4,FALSE) -> REACH | E189: =VLOOKUP(A189,'PBMT scores'!A:Z,6,FALSE) -> 0.01 | F189: =VLOOKUP(A189,'PBMT scores'!A:Z,7,FALSE) -> 0.01 | H189: =VLOOKUP(A189,'PBMT scores'!A:Z,9,FALSE) -> 0.00 | I189: =VLOOKUP(A189,'PBMT scores'!A:Z,10,FALSE) -> 0.00 | J189: =VLOOKUP(A189,'PBMT scores'!A:Z,11,FALSE) -> 0.00 | L189: =VLOOKUP(A189,'PBMT scores'!A:Z,13,FALSE) -> 0.14 | M189: =VLOOKUP(A189,'PBMT scores'!A:Z,14,FALSE) -> 0.23 | N189: =VLOOKUP(A189,'PBMT scores'!A:Z,15,FALSE) -> 0.26 | O189: =VLOOKUP(A189,'PBMT scores'!A:Z,16,FALSE) -> 0.08 | R189: =VLOOKUP(A189,'PBMT scores'!A:Z,19,FALSE) -> 0.04 | S189: =VLOOKUP(A189,'PBMT scores'!A:Z,20,FALSE) -> 0.02
A190: 28472-97-1 | B190: =VLOOKUP(A190,'PBMT scores'!A:Z,3,FALSE) -> Diisodecyl azelate(1) | C190: =VLOOKUP(A190,'PBMT scores'!A:Z,4,FALSE) -> REACH | E190: =VLOOKUP(A190,'PBMT scores'!A:Z,6,FALSE) -> 0.01 | F190: =VLOOKUP(A190,'PBMT scores'!A:Z,7,FALSE) -> 0.01 | H190: =VLOOKUP(A190,'PBMT scores'!A:Z,9,FALSE) -> 0.00 | I190: =VLOOKUP(A190,'PBMT scores'!A:Z,10,FALSE) -> 0.00 | J190: =VLOOKUP(A190,'PBMT scores'!A:Z,11,FALSE) -> 0.00 | L190: =VLOOKUP(A190,'PBMT scores'!A:Z,13,FALSE) -> 0.39 | M190: =VLOOKUP(A190,'PBMT scores'!A:Z,14,FALSE) -> 0.89 | N190: =VLOOKUP(A190,'PBMT scores'!A:Z,15,FALSE) -> 0.03 | O190: =VLOOKUP(A190,'PBMT scores'!A:Z,16,FALSE) -> 0.01 | R190: =VLOOKUP(A190,'PBMT scores'!A:Z,19,FALSE) -> 0.02 | S190: =VLOOKUP(A190,'PBMT scores'!A:Z,20,FALSE) -> 0.01
A191: 1821-12-1 | B191: =VLOOKUP(A191,'PBMT scores'!A:Z,3,FALSE) -> 4-phenylbutyric acid(1) | C191: =VLOOKUP(A191,'PBMT scores'!A:Z,4,FALSE) -> REACH | E191: =VLOOKUP(A191,'PBMT scores'!A:Z,6,FALSE) -> 0.01 | F191: =VLOOKUP(A191,'PBMT scores'!A:Z,7,FALSE) -> 0.01 | H191: =VLOOKUP(A191,'PBMT scores'!A:Z,9,FALSE) -> 0.00 | I191: =VLOOKUP(A191,'PBMT scores'!A:Z,10,FALSE) -> 0.00 | J191: =VLOOKUP(A191,'PBMT scores'!A:Z,11,FALSE) -> 0.00 | L191: =VLOOKUP(A191,'PBMT scores'!A:Z,13,FALSE) -> 0.06 | M191: =VLOOKUP(A191,'PBMT scores'!A:Z,14,FALSE) -> 0.04 | N191: =VLOOKUP(A191,'PBMT scores'!A:Z,15,FALSE) -> 0.59 | O191: =VLOOKUP(A191,'PBMT scores'!A:Z,16,FALSE) -> 0.11 | R191: =VLOOKUP(A191,'PBMT scores'!A:Z,19,FALSE) -> 0.06 | S191: =VLOOKUP(A191,'PBMT scores'!A:Z,20,FALSE) -> 0.02
A192: 629-78-7 | B192: =VLOOKUP(A192,'PBMT scores'!A:Z,3,FALSE) -> N-heptadecane(1) | C192: =VLOOKUP(A192,'PBMT scores'!A:Z,4,FALSE) -> REACH | E192: =VLOOKUP(A192,'PBMT scores'!A:Z,6,FALSE) -> 0.01 | F192: =VLOOKUP(A192,'PBMT scores'!A:Z,7,FALSE) -> 0.09 | H192: =VLOOKUP(A192,'PBMT scores'!A:Z,9,FALSE) -> 0.00 | I192: =VLOOKUP(A192,'PBMT scores'!A:Z,10,FALSE) -> 0.00 | J192: =VLOOKUP(A192,'PBMT scores'!A:Z,11,FALSE) -> 0.00 | L192: =VLOOKUP(A192,'PBMT scores'!A:Z,13,FALSE) -> 0.04 | M192: =VLOOKUP(A192,'PBMT scores'!A:Z,14,FALSE) -> 0.40 | N192: =VLOOKUP(A192,'PBMT scores'!A:Z,15,FALSE) -> 0.02 | O192: =VLOOKUP(A192,'PBMT scores'!A:Z,16,FALSE) -> 0.55 | R192: =VLOOKUP(A192,'PBMT scores'!A:Z,19,FALSE) -> 0.02 | S192: =VLOOKUP(A192,'PBMT scores'!A:Z,20,FALSE) -> 0.18
A193: 30673-36-0 | B193: =VLOOKUP(A193,'PBMT scores'!A:Z,3,FALSE) -> Butyl decanoate(1) | C193: =VLOOKUP(A193,'PBMT scores'!A:Z,4,FALSE) -> REACH | E193: =VLOOKUP(A193,'PBMT scores'!A:Z,6,FALSE) -> 0.01 | F193: =VLOOKUP(A193,'PBMT scores'!A:Z,7,FALSE) -> 0.02 | H193: =VLOOKUP(A193,'PBMT scores'!A:Z,9,FALSE) -> 0.00 | I193: =VLOOKUP(A193,'PBMT scores'!A:Z,10,FALSE) -> 0.00 | J193: =VLOOKUP(A193,'PBMT scores'!A:Z,11,FALSE) -> 0.00 | L193: =VLOOKUP(A193,'PBMT scores'!A:Z,13,FALSE) -> 0.02 | M193: =VLOOKUP(A193,'PBMT scores'!A:Z,14,FALSE) -> 0.04 | N193: =VLOOKUP(A193,'PBMT scores'!A:Z,15,FALSE) -> 0.19 | O193: =VLOOKUP(A193,'PBMT scores'!A:Z,16,FALSE) -> 0.26 | R193: =VLOOKUP(A193,'PBMT scores'!A:Z,19,FALSE) -> 0.04 | S193: =VLOOKUP(A193,'PBMT scores'!A:Z,20,FALSE) -> 0.05
A194: 109-43-3 | B194: =VLOOKUP(A194,'PBMT scores'!A:Z,3,FALSE) -> Dibutyl sebacate(1) | C194: =VLOOKUP(A194,'PBMT scores'!A:Z,4,FALSE) -> REACH | E194: =VLOOKUP(A194,'PBMT scores'!A:Z,6,FALSE) -> 0.01 | F194: =VLOOKUP(A194,'PBMT scores'!A:Z,7,FALSE) -> 0.02 | H194: =VLOOKUP(A194,'PBMT scores'!A:Z,9,FALSE) -> 0.00 | I194: =VLOOKUP(A194,'PBMT scores'!A:Z,10,FALSE) -> 0.00 | J194: =VLOOKUP(A194,'PBMT scores'!A:Z,11,FALSE) -> 0.00 | L194: =VLOOKUP(A194,'PBMT scores'!A:Z,13,FALSE) -> 0.03 | M194: =VLOOKUP(A194,'PBMT scores'!A:Z,14,FALSE) -> 0.20 | N194: =VLOOKUP(A194,'PBMT scores'!A:Z,15,FALSE) -> 0.17 | O194: =VLOOKUP(A194,'PBMT scores'!A:Z,16,FALSE) -> 0.03 | R194: =VLOOKUP(A194,'PBMT scores'!A:Z,19,FALSE) -> 0.04 | S194: =VLOOKUP(A194,'PBMT scores'!A:Z,20,FALSE) -> 0.02
A195: 121-97-1 | B195: =VLOOKUP(A195,'PBMT scores'!A:Z,3,FALSE) -> p-methoxypropiophenone(1) | C195: =VLOOKUP(A195,'PBMT scores'!A:Z,4,FALSE) -> REACH | E195: =VLOOKUP(A195,'PBMT scores'!A:Z,6,FALSE) -> 0.01 | F195: =VLOOKUP(A195,'PBMT scores'!A:Z,7,FALSE) -> 0.01 | H195: =VLOOKUP(A195,'PBMT scores'!A:Z,9,FALSE) -> 0.00 | I195: =VLOOKUP(A195,'PBMT scores'!A:Z,10,FALSE) -> 0.00 | J195: =VLOOKUP(A195,'PBMT scores'!A:Z,11,FALSE) -> 0.00 | L195: =VLOOKUP(A195,'PBMT scores'!A:Z,13,FALSE) -> 0.18 | M195: =VLOOKUP(A195,'PBMT scores'!A:Z,14,FALSE) -> 0.08 | N195: =VLOOKUP(A195,'PBMT scores'!A:Z,15,FALSE) -> 0.43 | O195: =VLOOKUP(A195,'PBMT scores'!A:Z,16,FALSE) -> 0.09 | R195: =VLOOKUP(A195,'PBMT scores'!A:Z,19,FALSE) -> 0.06 | S195: =VLOOKUP(A195,'PBMT scores'!A:Z,20,FALSE) -> 0.02
A196: 544-76-3 | B196: =VLOOKUP(A196,'PBMT scores'!A:Z,3,FALSE) -> hexadecaan | C196: =VLOOKUP(A196,'PBMT scores'!A:Z,4,FALSE) -> RIWA | E196: =VLOOKUP(A196,'PBMT scores'!A:Z,6,FALSE) -> 0.01 | F196: =VLOOKUP(A196,'PBMT scores'!A:Z,7,FALSE) -> 0.10 | H196: =VLOOKUP(A196,'PBMT scores'!A:Z,9,FALSE) -> 0.00 | I196: =VLOOKUP(A196,'PBMT scores'!A:Z,10,FALSE) -> 0.00 | J196: =VLOOKUP(A196,'PBMT scores'!A:Z,11,FALSE) -> 0.00 | L196: =VLOOKUP(A196,'PBMT scores'!A:Z,13,FALSE) -> 0.04 | M196: =VLOOKUP(A196,'PBMT scores'!A:Z,14,FALSE) -> 0.37 | N196: =VLOOKUP(A196,'PBMT scores'!A:Z,15,FALSE) -> 0.03 | O196: =VLOOKUP(A196,'PBMT scores'!A:Z,16,FALSE) -> 0.80 | R196: =VLOOKUP(A196,'PBMT scores'!A:Z,19,FALSE) -> 0.02 | S196: =VLOOKUP(A196,'PBMT scores'!A:Z,20,FALSE) -> 0.23
A197: 2500-88-1 | B197: =VLOOKUP(A197,'PBMT scores'!A:Z,3,FALSE) -> Dioctadecyl disulphide(1) | C197: =VLOOKUP(A197,'PBMT scores'!A:Z,4,FALSE) -> REACH | E197: =VLOOKUP(A197,'PBMT scores'!A:Z,6,FALSE) -> 0.01 | F197: =VLOOKUP(A197,'PBMT scores'!A:Z,7,FALSE) -> 0.06 | H197: =VLOOKUP(A197,'PBMT scores'!A:Z,9,FALSE) -> 0.18 | I197: =VLOOKUP(A197,'PBMT scores'!A:Z,10,FALSE) -> 0.02 | J197: =VLOOKUP(A197,'PBMT scores'!A:Z,11,FALSE) -> 0.34 | L197: =VLOOKUP(A197,'PBMT scores'!A:Z,13,FALSE) -> 0.32 | M197: =VLOOKUP(A197,'PBMT scores'!A:Z,14,FALSE) -> 0.87 | N197: =VLOOKUP(A197,'PBMT scores'!A:Z,15,FALSE) -> 0.00 | O197: =VLOOKUP(A197,'PBMT scores'!A:Z,16,FALSE) -> 0.00 | R197: =VLOOKUP(A197,'PBMT scores'!A:Z,19,FALSE) -> 0.00 | S197: =VLOOKUP(A197,'PBMT scores'!A:Z,20,FALSE) -> 0.01
A198: 61444-38-0 | B198: =VLOOKUP(A198,'PBMT scores'!A:Z,3,FALSE) -> (Z)-hex-3-enyl (Z)-hex-3-enoate(1) | C198: =VLOOKUP(A198,'PBMT scores'!A:Z,4,FALSE) -> REACH | E198: =VLOOKUP(A198,'PBMT scores'!A:Z,6,FALSE) -> 0.01 | F198: =VLOOKUP(A198,'PBMT scores'!A:Z,7,FALSE) -> 0.01 | H198: =VLOOKUP(A198,'PBMT scores'!A:Z,9,FALSE) -> 0.00 | I198: =VLOOKUP(A198,'PBMT scores'!A:Z,10,FALSE) -> 0.00 | J198: =VLOOKUP(A198,'PBMT scores'!A:Z,11,FALSE) -> 0.00 | L198: =VLOOKUP(A198,'PBMT scores'!A:Z,13,FALSE) -> 0.02 | M198: =VLOOKUP(A198,'PBMT scores'!A:Z,14,FALSE) -> 0.01 | N198: =VLOOKUP(A198,'PBMT scores'!A:Z,15,FALSE) -> 0.29 | O198: =VLOOKUP(A198,'PBMT scores'!A:Z,16,FALSE) -> 0.12 | R198: =VLOOKUP(A198,'PBMT scores'!A:Z,19,FALSE) -> 0.05 | S198: =VLOOKUP(A198,'PBMT scores'!A:Z,20,FALSE) -> 0.03
A199: 30374-01-7 | B199: =VLOOKUP(A199,'PBMT scores'!A:Z,3,FALSE) -> Isooctyl 3-mercaptopropionate(1) | C199: =VLOOKUP(A199,'PBMT scores'!A:Z,4,FALSE) -> REACH | E199: =VLOOKUP(A199,'PBMT scores'!A:Z,6,FALSE) -> 0.02 | F199: =VLOOKUP(A199,'PBMT scores'!A:Z,7,FALSE) -> 0.01 | H199: =VLOOKUP(A199,'PBMT scores'!A:Z,9,FALSE) -> 0.00 | I199: =VLOOKUP(A199,'PBMT scores'!A:Z,10,FALSE) -> 0.00 | J199: =VLOOKUP(A199,'PBMT scores'!A:Z,11,FALSE) -> 0.00 | L199: =VLOOKUP(A199,'PBMT scores'!A:Z,13,FALSE) -> 0.14 | M199: =VLOOKUP(A199,'PBMT scores'!A:Z,14,FALSE) -> 0.11 | N199: =VLOOKUP(A199,'PBMT scores'!A:Z,15,FALSE) -> 0.31 | O199: =VLOOKUP(A199,'PBMT scores'!A:Z,16,FALSE) -> 0.08 | R199: =VLOOKUP(A199,'PBMT scores'!A:Z,19,FALSE) -> 0.05 | S199: =VLOOKUP(A199,'PBMT scores'!A:Z,20,FALSE) -> 0.02
A200: 90052-75-8 | B200: =VLOOKUP(A200,'PBMT scores'!A:Z,3,FALSE) -> 2-octyldodecyl 12-[(1-oxooctadecyl)oxy]octadecanoate(1) | C200: =VLOOKUP(A200,'PBMT scores'!A:Z,4,FALSE) -> REACH | E200: =VLOOKUP(A200,'PBMT scores'!A:Z,6,FALSE) -> 0.02 | F200: =VLOOKUP(A200,'PBMT scores'!A:Z,7,FALSE) -> 0.05 | H200: =VLOOKUP(A200,'PBMT scores'!A:Z,9,FALSE) -> 0.13 | I200: =VLOOKUP(A200,'PBMT scores'!A:Z,10,FALSE) -> 0.13 | J200: =VLOOKUP(A200,'PBMT scores'!A:Z,11,FALSE) -> 0.13 | L200: =VLOOKUP(A200,'PBMT scores'!A:Z,13,FALSE) -> 0.16 | M200: =VLOOKUP(A200,'PBMT scores'!A:Z,14,FALSE) -> 0.75 | N200: =VLOOKUP(A200,'PBMT scores'!A:Z,15,FALSE) -> 0.00 | O200: =VLOOKUP(A200,'PBMT scores'!A:Z,16,FALSE) -> 0.00 | R200: =VLOOKUP(A200,'PBMT scores'!A:Z,19,FALSE) -> 0.00 | S200: =VLOOKUP(A200,'PBMT scores'!A:Z,20,FALSE) -> 0.01
... 4300 more rows

Sheet Analysis
B2: =_xlfn.CONCAT("EINECS REACH (N =",COUNTIF('PBMT scores'!D:D,"Reach"),")") -> EINECS REACH (N =5316)
C3: # | D3: Percentage | G3: # | H3: Percentage | K3: # | L3: Percentage | O3: # | P3: Percentage
B4: 1/3 > PMT | C4: =COUNTIFS('PBMT scores'!F:F,"<0.33333333333",'PBMT scores'!D:D,"Reach") -> 2,602 | D4: =C4/COUNTIF('PBMT scores'!D:D,"Reach") -> 49% | F4: 1/3 > P | G4: =COUNTIFS('PBMT scores'!M:M,"<0.33333333333",'PBMT scores'!D:D,"reach") -> 3,610 | H4: =G4/COUNTIF('PBMT scores'!D:D,"Reach") -> 68% | J4: 1/3 > M | K4: =COUNTIFS('PBMT scores'!N:N,"<0.33333333333",'PBMT scores'!D:D,"reach") -> 3,621 | L4: =K4/COUNTIF('PBMT scores'!D:D,"Reach") -> 68% | N4: 1/3 > T | O4: =COUNTIFS('PBMT scores'!I:I,"<0.33333333333",'PBMT scores'!D:D,"reach") -> 1,177 | P4: =O4/COUNTIF('PBMT scores'!D:D,"Reach") -> 22%
B5: 1/3 < PMT < 0.5 | C5: =COUNTIFS('PBMT scores'!F:F,">=0.33333333333",'PBMT scores'!F:F,"<0.5",'PBMT scores'!D:D,"REACH") -> 1,952 | D5: =C5/COUNTIF('PBMT scores'!D:D,"Reach") -> 37% | F5: 1/3 < P < 0.5 | G5: =COUNTIFS('PBMT scores'!M:M,">=0.33333333333",'PBMT scores'!M:M,"<0.5",'PBMT scores'!D:D,"reach") -> 523 | H5: =G5/COUNTIF('PBMT scores'!D:D,"Reach") -> 10% | J5: 1/3 < M < 0.5 | K5: =COUNTIFS('PBMT scores'!N:N,">=0.33333333333",'PBMT scores'!D:D,"reach",'PBMT scores'!N:N,"<0.5") -> 386 | L5: =K5/COUNTIF('PBMT scores'!D:D,"Reach") -> 7% | N5: 1/3 < T < 0.5 | O5: =COUNTIFS('PBMT scores'!I:I,">=0.33333333333",'PBMT scores'!D:D,"reach",'PBMT scores'!I:I,"<0.5") -> 1,722 | P5: =O5/COUNTIF('PBMT scores'!D:D,"Reach") -> 32%
B6: 0.5 > PMT | C6: =COUNTIFS('PBMT scores'!F:F,">0.5",'PBMT scores'!D:D,"reach") -> 762 | D6: =C6/COUNTIF('PBMT scores'!D:D,"Reach") -> 14% | F6: 0.5 > P | G6: =COUNTIFS('PBMT scores'!M:M,">0.5",'PBMT scores'!D:D,"reach") -> 1,183 | H6: =G6/COUNTIF('PBMT scores'!D:D,"Reach") -> 22% | J6: 0.5 > M | K6: =COUNTIFS('PBMT scores'!N:N,">0.5",'PBMT scores'!D:D,"reach") -> 1,309 | L6: =K6/COUNTIF('PBMT scores'!D:D,"Reach") -> 25% | N6: 0.5 > T | O6: =COUNTIFS('PBMT scores'!I:I,">0.5",'PBMT scores'!D:D,"reach") -> 2,417 | P6: =O6/COUNTIF('PBMT scores'!D:D,"Reach") -> 45%
B8: RIWA (N = 1,116)
C9: # | D9: Percentage | G9: # | H9: Percentage | K9: # | L9: Percentage | O9: # | P9: Percentage
B10: 1/3 > PMT | C10: =COUNTIFS('PBMT scores'!F:F,"<0.33333333333",'PBMT scores'!D:D,"Riwa") -> 241 | D10: =C10/COUNTIF('PBMT scores'!D:D,"Riwa") -> 21% | F10: 1/3 > P | G10: =COUNTIFS('PBMT scores'!F:F,"<0.33333333333",'PBMT scores'!D:D,"riwa") -> 241 | H10: =G10/COUNTIF('PBMT scores'!D:D,"Riwa") -> 21% | J10: 1/3 > M | K10: =COUNTIFS('PBMT scores'!N:N,"<0.33333333333",'PBMT scores'!D:D,"riwa") -> 636 | L10: =K10/COUNTIF('PBMT scores'!D:D,"Riwa") -> 55% | N10: 1/3 > T | O10: =COUNTIFS('PBMT scores'!I:I,"<0.33333333333",'PBMT scores'!D:D,"riwa") -> 65 | P10: =O10/COUNTIF('PBMT scores'!D:D,"Riwa") -> 6%
B11: 1/3 < PMT < 0.5 | C11: =COUNTIFS('PBMT scores'!F:F,">=0.33333333333",'PBMT scores'!F:F,"<0.5",'PBMT scores'!D:D,"Riwa") -> 554 | D11: =C11/COUNTIF('PBMT scores'!D:D,"Riwa") -> 48% | F11: 1/3 < P < 0.5 | G11: =COUNTIFS('PBMT scores'!F:F,">=0.33333333333",'PBMT scores'!F:F,"<0.5",'PBMT scores'!D:D,"riwa") -> 554 | H11: =G11/COUNTIF('PBMT scores'!D:D,"Riwa") -> 48% | J11: 1/3 < M < 0.5 | K11: =COUNTIFS('PBMT scores'!N:N,">=0.33333333333",'PBMT scores'!D:D,"riwa",'PBMT scores'!N:N,"<0.5") -> 126 | L11: =K11/COUNTIF('PBMT scores'!D:D,"Riwa") -> 11% | N11: 1/3 < T < 0.5 | O11: =COUNTIFS('PBMT scores'!I:I,">=0.33333333333",'PBMT scores'!D:D,"riwa",'PBMT scores'!I:I,"<0.5") -> 319 | P11: =O11/COUNTIF('PBMT scores'!D:D,"Riwa") -> 27%
B12: 0.5 > PMT | C12: =COUNTIFS('PBMT scores'!F:F,">0.5",'PBMT scores'!D:D,"riwa") -> 366 | D12: =C12/COUNTIF('PBMT scores'!D:D,"Riwa") -> 32% | F12: 0.5 > P | G12: =COUNTIFS('PBMT scores'!F:F,">0.5",'PBMT scores'!D:D,"riwa") -> 366 | H12: =G12/COUNTIF('PBMT scores'!D:D,"Riwa") -> 32% | J12: 0.5 > M | K12: =COUNTIFS('PBMT scores'!N:N,">0.5",'PBMT scores'!D:D,"riwa") -> 399 | L12: =K12/COUNTIF('PBMT scores'!D:D,"Riwa") -> 34% | N12: 0.5 > T | O12: =COUNTIFS('PBMT scores'!I:I,">0.5",'PBMT scores'!D:D,"riwa") -> 777 | P12: =O12/COUNTIF('PBMT scores'!D:D,"Riwa") -> 67%
C14: PMT-score | E14: P-score | G14: M-score | I14: T-score
C15: EINECS/ REACH | D15: RIWA | E15: EINECS/ REACH | F15: RIWA | G15: EINECS/ REACH | H15: RIWA | I15: EINECS/ REACH | J15: RIWA
B16: score < 0.33 | C16: =D4 -> 49% | D16: =D10 -> 21% | E16: =H4 -> 68% | F16: =H10 -> 21% | G16: =L4 -> 68% | H16: =L10 -> 55% | I16: =P4 -> 22% | J16: =P10 -> 6%
B17: 0.33 ≤ score < 0.5 | C17: =D5 -> 37% | D17: =D11 -> 48% | E17: =H5 -> 10% | F17: =H11 -> 48% | G17: =L5 -> 7% | H17: =L11 -> 11% | I17: =P5 -> 32% | J17: =P11 -> 27%
B18: score ≥ 0.5 | C18: 14% | D18: 32% | E18: 22% | F18: 32% | G18: =L6 -> 25% | H18: 34% | I18: 45% | J18: 67%
C20: PMT-score | E20: P-score | G20: M-score | I20: T-score
C21: EINECS/ REACH | D21: RIWA | E21: EINECS/ REACH | F21: RIWA | G21: EINECS/ REACH | H21: RIWA | I21: EINECS/ REACH | J21: RIWA
B22: score < 0.33 | C22: =C4 -> 2,602 | D22: =C10 -> 241 | E22: =G4 -> 3,610 | F22: =G10 -> 241 | G22: =K4 -> 3,621 | H22: =K10 -> 636 | I22: =O4 -> 1,177 | J22: =O10 -> 65
B23: 0.33 < score < 0.5 | C23: =C5 -> 1,952 | D23: =C11 -> 554 | E23: =G5 -> 523 | F23: =G11 -> 554 | G23: =K5 -> 386 | H23: =K11 -> 126 | I23: =O5 -> 1,722 | J23: =O11 -> 319
B24: score > 0.5 | C24: 762 | D24: 366 | E24: 1,183 | F24: 366 | G24: 1,309 | H24: 399 | I24: 2,417 | J24: 777
